{"text_format":"1","workbook":"xlsx","n_sheets":5,"sheets":["Başvurular","Finans Hareketleri","Konaklama","Ulaşım","Yurtdisi"],"not_rendered":{"charts":0,"images":0,"macros":1,"external_links":0,"defined_names":0,"comments":0,"pivot_tables":0},"unopened":[],"bounds":{"document_bytes":16777216,"sheet_cells":100000,"rows_first":2000,"rows_last":500,"rows_between":2000,"halvings":0,"cell_chars":16384,"cell_head_chars":4096},"cells_cut":0,"cells_raw":0,"read":"whole","date_system":"1900"}

{"sheet":"Başvurular","index":0,"n_rows":32,"n_cols":15,"rows_kept":32,"cut":false,"hidden":false,"merged":[[0,0,0,15]]}
["01 Ocak 2017 - 28 Şubat 2017 Tarihlerinde Düzenlenecek Bilimsel Etkinliklere Katılımı Destekleme Başvuruları \n(Bilimsel Araştırma Projeleri Koordinasyon Birimi Komisyon Toplantı Tarihi: 13 Aralık 2016 Toplantı No.2016/10)"]
["Çağrı Dönemi","SicilNo","Adı Soyadı","Birimi","KadroUnvani","EtkinlikAdi","Yurt İçimi?","Ülke","IlAdi","Etkinlik Rolleri","EtkinlikBaslamaTarihi","EtkinlikBitisTarihi","Katılım Ücretlimi?","Katılım Ücreti","Komisyon Kararı"]
["3. Çağrı","06882","BELMA BULUT","Hukuk Fakültesi Dekanlığı, Özel Hukuk Bölüm Başkanlığı Milletlerarası Özel Hukuk Anabilim Dalı Başkanlığı","Araştırma Görevlisi","MARENER 2017","Yurt Dışı","Isveç","Malmö","Bildiri Sunmak","2017-01-24","2017-01-25","Katılım Ücretli","280.00 DOLAR","Yolluk, 2 günlük yurtdışı yevmiyesi, 280 $ katılım giderinin Fakülte Bütçesinden karşılanmak üzere Kabul"]
["3. Çağrı","02201","Nevzat ÖZGÜR","Mühendislik Fakültesi Dekanlığı, Jeoloji Mühendisliği Bölüm Başkanlığı Mineroloji Petrografi Anabilim Dalı Başkanlığı","Profesör","Stanford Geothermal Workshop 42nd Annual","Yurt Dışı","Amerika Birleşik Devletleri","California","Bildiri Sunmak","2017-02-13","2017-02-15","Katılım Ücretli","690.00 DOLAR","Yolluk, 3 günlük yurtdışı yevmiyesi, 400,00 EURO'ya kadar katılım giderinin Fakülte Bütçesinden karşılanmak üzere Kabul"]
["3. Çağrı","05310","Bilal ÇİĞ"," Sağlık Bilimleri Enstitüsü Müdürlüğü","Araştırma Görevlisi","International Conference on Reproductive Biology and Comparative Endocrinology (ICRBCE) and 35th Annual Meeting  of The Society for Reproductive Biology  and Comparative Endocrinology","Yurt Dışı","Hindistan","Haidarâbâd","Poster Sunmak","2017-02-09","2017-02-11","Katılım Ücretli","Ücret İstemiyor","Yolluk, Etkinlikten 1 gün önce, 1 gün sonra olmak üzere 5 günlük yurtdışı yevmiyesinin  20164747/SDÜ.05310 nolu Güdümlü Projeden karşılanmak üzere Kabul "]
["3. Çağrı","06164","Ahmi ÖZ","Tıp Fakültesi Dekanlığı, Temel Tıp Bilimleri Bölüm Başkanlığı Biyofizik Anabilim Dalı Başkanlığı","Araştırma Görevlisi","International Conference on Reproductive Biology and Comparative Endocrinology (ICRBCE)  and  35th Annual Meeting of  Society for Reproductive Biology and Comparative Endocrinology","Yurt Dışı","Hindistan","Haidarâbâd","Poster Sunmak","2017-02-09","2017-02-11","Katılım Ücretli","Ücret İstemiyor","Yolluk, Etkinlikten 1 gün önce, 1 gün sonra olmak üzere 5 günlük yurtdışı yevmiyesinin   20164747/SDÜ.06164 nolu Güdümlü Projeden karşılanmak üzere Kabul "]
["3. Çağrı","03635","Mustafa NAZIROĞLU","Tıp Fakültesi Dekanlığı, Temel Tıp Bilimleri Bölüm Başkanlığı Biyofizik Anabilim Dalı Başkanlığı","Profesör","International Conference on Reproductive Biology and Comparative Endocrinology and The 35th Annual Meeting of The Society for Reproductive Biology and Comparative Endocrinology and  and The 35th Annual Meeting of The Society for Reproductive Biology and Comparative Endocrinology","Yurt Dışı","Hindistan","Haidarâbâd","Bildiri Sunmak","2017-02-09","2017-02-11","Katılım Ücretli","Ücret İstemiyor","Yolluk, 5 günlük yurtdışı yevmiyesi 20164747/SDÜ.03635 nolu Güdümlü Projeden karşılanmak üzere  Kabul"]
["3. Çağrı","02574","Oktay KÖSE","Güzel Sanatlar Fakültesi Dekanlığı, Resim Bölüm Başkanlığı Resim Anasanat Dalı Başkanlığı","Yardımcı Doçent","2017 4th International Conference on Linguistics, Literature and Arts (ICLLA 2017)","Yurt Dışı","Vietnam","Thanh Pho Ho Chi Minh","Panelist","2017-02-22","2017-02-24","Katılım Ücretli","225,00 $","Yolluk, etkinlikten 1 gün önce, 1 sonra olmak üzere 5 günlük yurtdışı  yevmiyesinin ve 225,00 $ katılım giderinin 20164747/SDÜ.02574 nolu Güdümlü Projeden karşılanmak üzere Kabul"]
["3. Çağrı","02415","Muharrem Zafer ÇAĞLAR","Teknik Bilimler Meslek Yüksekokulu Müdürlüğü, Görsel, İşitsel Teknikler Ve Medya Yapımcılığı Bölüm Başkanlığı Radyo ve Televizyon Programcılığı","Öğretim Görevlisi","Mesleki görgü ve bilgimi geliştirmek ve medya çalışmaları hakkında bilgi edinmek amacıyla, İspanya'nın Başkenti Madrid ve önemli şehirlerinden Barselona'yı performans puanlarımdan karşılanmak üzere ziyaret etmek.","Yurt Dışı","İspanya","Madrid","Bilgi-Görgü Arttırma","2017-01-30","2017-02-06","Katılım Ücretsiz","Ücret İstemiyor","Yolluk, 5 günlük yurtdışı yevmiyesi 20164747/SDÜ.02415 nolu Güdümlü Projeden karşılanmak üzere  Kabul"]
["3. Çağrı","04533","Ahmet SONGUR","İktisadi Ve İdari Bilimler Fakültesi Dekanlığı, İşletme Bölüm Başkanlığı Üretim Yönetimi Ve Pazarlama Anabilim Dalı Başkanlığı","Yardımcı Doçent","6th Annual International Conference on Humanities and Social Sciences","Yurt Dışı","İspanya","Barcelona","Bildiri Sunmak","2017-01-26","2017-01-29","Katılım Ücretli","1000.00 TL","Yolluk, 3 günlük yurtdışı yevmiyesi, 1.000, TL katılım giderinin Fakülte Bütçesinden karşılanmak üzere Kabul"]
["3. Çağrı","00744","Nedret ÇAĞLAR","Teknik Bilimler Meslek Yüksekokulu Müdürlüğü, Görsel, İşitsel Teknikler Ve Medya Yapımcılığı Bölüm Başkanlığı Radyo ve Televizyon Programcılığı","Yardımcı Doçent","Mesleki görgü ve bilgi birikimimi geliştirmek ve medya faaliyetleri hakkında bilgi edinmek amacıyla, İspanya'nın Madrid ve Barcelona şehirlerini performansımdan karşılanmak üzere ziyaret etmek.","Yurt Dışı","İspanya","Madrid","Bilgi-Görgü Arttırma","2017-01-30","2017-02-06","Katılım Ücretsiz","Ücret İstemiyor","Yolluk, 5 günlük yurtdışı yevmiyesi 20164747/SDÜ.00744 nolu Güdümlü Projeden karşılanmak üzere  Kabul"]
["3. Çağrı","04351","İbrahim DEMİRTAŞ","Şarkikaraağaç Meslek Yüksekokulu Müdürlüğü, Yönetim Ve Organizasyon Bölüm Başkanlığı İşletme Yönetimi","Öğretim Görevlisi","6th Annual International Conference on Humanities and Social Sciences","Yurt Dışı","İspanya","Barcelona","Bildiri Sunmak","2017-01-26","2017-01-29","Katılım Ücretli","1000.00 TL","Yolluk, 3 günlük yurtdışı yevmiyesi ve 1.000,00 TL katılım giderinin MYO Bütçesinden karşılanmak üzere Kabul"]
["3. Çağrı","04218","Elçin ESENLİK","Diş Hekimliği Fakültesi Dekanlığı, Klinik Diş Hekimliği Bilimleri Bölüm Başkanlığı Ortodonti Anabilim Dalı Başkanlığı","Doçent","13. Uluslar Arası Dudak Damak Yarıkları Kongresi","Yurt Dışı","Hindistan","Chennai","Bildiri Sunmak","2017-02-08","2017-02-11","Katılım Ücretli","2250.00 TL","Yolluk, 3 günlük yurtdışı yevmiyesi, 400,00 EURO'ya kadar katılım giderinin Fakülte Bütçesinden karşılanmak üzere Kabul"]
["3. Çağrı","03396","Bayram ÇEVİK","Ziraat Fakültesi Dekanlığı, Bitki Koruma Bölüm Başkanlığı Fitapatoloji Anabilim Dalı Başkanlığı","Profesör","COST FA1405 Annual Meeting , \"Systems biology approaches to identify mechanisms underlying crop-arthropod-microbe interactions\"  semposyumu  and \"Hands-on Systems Biology Training School\"","Yurt Dışı","Slovenya","Ljubljana","Bildiri Sunmak,Diğer","2017-01-31","2017-02-04","Katılım Ücretsiz","Ücret İstemiyor","Yolluk, 5 günlük yurtdışı yevmiyesinin 20164747/SDÜ.03396 nolu Güdümlü Projeden karşılanmak üzere Kabul"]
["3. Çağrı","01134","Levent BAŞAYİĞİT","Ziraat Fakültesi Dekanlığı, Toprak Bilimi Ve Bitki Besleme Bölüm Başkanlığı Toprak Anabilim Dalı Başkanlığı","Profesör","6th INTERNATIONAL SYMPOSIUM ON AGRICULTURAL SCIENCES \"AGRORES 2017\"","Yurt Dışı","Bosna-Hersek","Banja Luka","Poster Sunmak","2017-02-27","2017-03-02","Katılım Ücretli","80.00 EURO","Yolluk, 4 günlük yurtdışı yevmiyesi ve 80,00 € katılım giderinin 20164747/SDÜ.01134 nolu Güdümlü Projeden karşılanmak üzere Kabul"]
["3. Çağrı","05878","Muhammet Hamdi MÜCEVHER","Uluborlu Selahattin Karasoy Meslek Yüksekokulu Müdürlüğü, Pazarlama Ve Reklamcılık Bölüm Başkanlığı Halkla İlişkiler ve Tanıtım","Öğretim Görevlisi","6th Annual Conference on Humanities and Social Sciences","Yurt Dışı","İspanya","Barcelona","Bildiri Sunmak","2017-01-26","2017-01-29","Katılım Ücretli","1000.00 TL","Yolluk, 3 günlük yurtdışı yevmiyesi ve 1.000,00 TL katılım giderinin Fakülte Bütçesinden karşılanmak üzere Kabul"]
["3. Çağrı","04524","Erdal EKE","İktisadi Ve İdari Bilimler Fakültesi Dekanlığı, Sağlık Yönetimi Bölüm Başkanlığı Temel Sağlık Hizmetleri Anabilim Dalı Başkanlığı","Yardımcı Doçent","6th Annual Conference on Humanities and Social Sciences","Yurt Dışı","İspanya","Barcelona","Bildiri Sunmak","2017-01-26","2017-01-29","Katılım Ücretli","1000.00 TL","Yolluk, 3 günlük yurtdışı yevmiyesi ve 1.000,00 TL katılım giderinin Fakülte Bütçesinden karşılanmak üzere Kabul"]
["3. Çağrı","02231","Bülent DEDE","Fen Edebiyat Fakültesi Dekanlığı, Kimya Bölüm Başkanlığı Anorganik Kimya Anabilim Dalı Başkanlığı","Doçent","7. Kozmetik Kimyası Üretimi ve Standardizasyonu Kongresi","Yurt İçi",null,"Antalya","Poster Sunmak","2017-02-24","2017-02-26","Katılım Ücretli","300.00 TL","Yolluk, 3 günlük yurtiçi yevmiyesi ve 300,00 TL katılım giderinin 20164747/SDÜ.02231 nolu Güdümlü Projeden karşılanmak üzere Kabul"]
["3. Çağrı","05597","Şirvan ŞEN DEMİR","İktisadi Ve İdari Bilimler Fakültesi Dekanlığı, Turizm İşletmeciliği Bölüm Başkanlığı Turizm İşletmeciliği Anabilim Dalı Başkanlığı","Doçent","21. Doğu Akdeniz Uluslararası Turizm ve Seyahat Fuarı","Yurt İçi",null,"İstanbul","Bilgi-Görgü Arttırma","2017-01-26","2017-01-29","Katılım Ücretsiz","Ücret İstemiyor","Yolluk, 4 günlük yurtiçi yevmiyesinin 20164747/SDÜ.05597 nolu Güdümlü Projeden karşılanmak üzere Kabul"]
["3. Çağrı","05609","Mahmut DEMİR","Eğirdir Turizm Ve Otelcilik Yüksekokulu Müdürlüğü, Konaklama İşletmeciliği Bölüm Başkanlığı Konaklama İşletmeciliği Anabilim Dalı Başkanlığı","Doçent","21. Doğu Akdeniz Uluslararası Turizm ve Seyahat Fuarı","Yurt İçi",null,"İstanbul","Bilgi-Görgü Arttırma","2017-01-26","2017-01-29","Katılım Ücretsiz","Ücret İstemiyor","Yolluk, 4 günlük yurtiçi yevmiyesinin 20164747/SDÜ.05609 nolu Güdümlü Projeden karşılanmak üzere Kabul"]
["3. Çağrı","04504","Özgür DAVRAS","Isparta Meslek Yüksekokulu Müdürlüğü, Otel, Lokanta Ve İkram Hizmetleri Bölüm Başkanlığı Aşçılık","Öğretim Görevlisi","Sosyal Bilimlerde Bilimsel Makale Yazma Eğitimi","Yurt İçi",null,"Antalya","Katılım","2017-01-16","2017-01-20","Katılım Ücretli","350.00 TL","Yolluk, 5 günlük yurtiçi yevmiyesi ve 350,00 TL Kurs katılımı ücretinin 20164747/SDÜ.04504 nolu Güdümlü Projeden karşılanmak üzere Kabul"]
["3. Çağrı","03736","Ceylan YOL"," Yabancı Diller Yüksekokulu Müdürlüğü","Okutman","The WEI International Academic Conference on Education and Humanities in Barcelona","Yurt Dışı","İspanya","Barcelona","Bildiri Sunmak","2017-01-23","2017-01-25","Katılım Ücretli","415.00 DOLAR","Yolluk, 3 günlük yurtdışı yevmiyesi ve 400,00 €'ya kadar katılım giderinin Yüksekokul Bütçesinden karşılanmak üzere Kabul"]
["3. Çağrı","04644","Osman ÇÖLLÜ"," Yabancı Diller Yüksekokulu Müdürlüğü","Okutman","6th Annual Conference on Humanities and Social Sciences","Yurt Dışı","İspanya","Barcelona","Bildiri Sunmak","2017-01-26","2017-01-29","Katılım Ücretli","1000.00 TL","Yolluk, 3 günlük yurtdışı yevmiyesi ve 1.000,00 TL katılım giderinin Yüksekokul Bütçesinden karşılanmak üzere Kabul"]
["3. Çağrı","05901","Zeynep Gazali DEMİRTAŞ","İletişim Fakültesi Dekanlığı, Gazetecilik Bölüm Başkanlığı Genel Gazetecilik Anabilim Dalı Başkanlığı","Araştırma Görevlisi","6th Annual Conference on Humanities and Social Sciences","Yurt Dışı","İspanya","Barcelona","Bildiri Sunmak","2017-01-26","2017-01-29","Katılım Ücretli","1000.00 TL","Yolluk, 3 günlük yurtdışı yevmiyesi ve 1.000,00 TL katılım giderinin Fakülte  Bütçesinden karşılanmak üzere Kabul"]
["3. Çağrı","05046","Elif AKKAŞ","İktisadi Ve İdari Bilimler Fakültesi Dekanlığı, Sağlık Yönetimi Bölüm Başkanlığı Sağlık Kurumlarında  Yönetim Ve Organizasyon Anabilim Dalı Başkanlığı","Yardımcı Doçent","6th Annual Conference on Humanities and Social Sciences","Yurt Dışı","İspanya","Barcelona","Bildiri Sunmak","2017-01-26","2017-01-29","Katılım Ücretli","900.00 TL","Yolluk, 3 günlük yurtdışı yevmiyesi, 900,00 TL katılım giderinin Fakülte Bütçesinden karşılanmak üzere Kabul"]
["3. Çağrı","06633","Ahmet ALKAN","İktisadi Ve İdari Bilimler Fakültesi Dekanlığı, Sağlık Yönetimi Bölüm Başkanlığı Sağlık Kurumlarında  Yönetim Ve Organizasyon Anabilim Dalı Başkanlığı","Araştırma Görevlisi","6th Annual Conference on Humanities and Social Sciences","Yurt Dışı","İspanya","Barcelona","Bildiri Sunmak","2017-01-26","2017-01-29","Katılım Ücretli","900.00 TL","Yolluk, 3 günlük yurtdışı yevmiyesi, 900,00 TL katılım giderinin Fakülte Bütçesinden karşılanmak üzere Kabul"]
["3. Çağrı","04632","Ramazan ERDEM","İktisadi Ve İdari Bilimler Fakültesi Dekanlığı, Sağlık Yönetimi Bölüm Başkanlığı Sağlık Kurumlarında  Yönetim Ve Organizasyon Anabilim Dalı Başkanlığı","Profesör","6th Annual Conference on Humanities and Social Sciences","Yurt Dışı","İspanya","Barcelona","Bildiri Sunmak","2017-01-25","2017-01-29","Katılım Ücretli","900.00 TL","Yolluk, 3 günlük yurtdışı yevmiyesi, 900,00 TL katılım giderinin Fakülte Bütçesinden karşılanmak üzere Kabul"]
["3. Çağrı","03458","Devrim VURAL YILMAZ","İktisadi Ve İdari Bilimler Fakültesi Dekanlığı, İnsan Kaynakları Yönetimi Bölüm Başkanlığı İnsan Kaynakları Yönetimi Anabilim Dalı Başkanlığı","Yardımcı Doçent","INTCESS 2017- 4th INTERNATIONAL CONFERENCE ON EDUCATION, AND SOCIAL SCIENCES","Yurt İçi",null,"İstanbul","Bildiri Sunmak","2017-02-06","2017-02-07","Katılım Ücretli","550.00 DOLAR","Yolluk, 2 günlük yurtiçi yevmiyesi, 500,00 TL ye kadar katılım giderinin Fakülte Bütçesinden karşılanmak üzere Kabul"]
["3. Çağrı","06883","HÜSEYİN KÖKER","Fen Edebiyat Fakültesi Dekanlığı, Arkeoloji Bölüm Başkanlığı Klasik Arkeoloji Anabilim Dalı Başkanlığı","Yardımcı Doçent","İKİNCİ ULUSLARARASI AKDENİZ DÜNYASINDA PARA TARİHİ VE NUMİSMATİK KONGRESİ","Yurt İçi",null,"Antalya","Bildiri Sunmak","2017-01-05","2017-01-08","Katılım Ücretsiz","Ücret İstemiyor","Yolluk, 3 günlük yurtiçi yevmiyesinin 20164747/SDÜ.06883 Nolu Güdümlü Projeden puanı oluştuğunda karşılanmak üzere Kabul"]
["3. Çağrı","02266","Mehmet Ali KOYUNCU","Ziraat Fakültesi Dekanlığı, Bahçe Bitkileri Bölüm Başkanlığı Bahçe Bitkileri Anabilim Dalı Başkanlığı","Profesör","10 th International Frutic Symposium Quality and Safety of Fresh Horticultural commodities","Yurt Dışı","Almanya","Berlin","Bildiri Sunmak","2017-02-07","2017-02-09","Katılım Ücretli","330.00 €","Yolluk, 3 günlük yurtdışı yevmiyesi ve 330,00 € katılım giderinin Fakülte Bütçesinden karşılanmak üzere Kabul"]
["3.Çağrı","03801","Nihat MOROVA","Teknoloji Fkültesi ","Yrd. Doç. Dr.","Yol Projelendirme-Netpro Sertifika Eğitim Programı","Yurtiçi",null,"Ankara","Eğitime Katılmak","2017-01-27","2017-01-29","Katılım Ücretsiz",null,"Yolluk, 3 günlük yurtiçi yevmiyesinin  20164747/SDÜ.03801 nolu Güdümlü Projeden karşılanmak üzere Kabul"]
["3. Çağrı","03459","Murat ÇELİKER","Güzel Sanatlar Fakültesi Dekanlığı, Resim Bölüm Başkanlığı Resim Anasanat Dalı Başkanlığı","Yardımcı Doçent","2017 4th International Conference on Linguistics, Literature and Arts (ICLLA 2017)","Yurt Dışı","Vietnam","Thanh Pho Ho Chi Minh","Panelist","2017-02-22","2017-02-24","Katılım Ücretli","225,00 $","Yolluk, etkinlikten 1 gün önce, 1 sonra olmak üzere 5 günlük yurtdışı  yevmiyesinin ve 225,00 $ katılım giderinin 20164747/SDÜ.02574 nolu Güdümlü Projeden karşılanmak üzere Kabul"]

{"sheet":"Finans Hareketleri","index":1,"n_rows":112,"n_cols":12,"rows_kept":112,"cut":false,"hidden":false,"merged":[]}
["SicilNo","TC","Adı Soyadı","BaşvuruId","EtkinlikAdi","Adi","Adi","FinansTutar","Adi","GorevlendirmeBaslamaTarihi","GorevlendirmeBitisTarihi","BasvuruTarihi"]
["01419","25138198030","Hüseyin FAKİR","370","Orman Fakültesi Dekanlar Toplantısı","3. Çağrı","Fakülte Bütçesi","550.00","TL","2016-12-06","2016-12-07","2016-11-22 16:39:51.240"]
["04720","10528678490","Gürkan KALKAN","373","YİYECEK İÇECEK DEPARTMANINDA ÇALIŞANLARIN BEŞ FAKTÖR KİŞİLİK ÖZELLİKLERİNİN HİZMET VERMEYE YATKINLIĞI VE İŞ TATMİNİ DÜZEYLERİ ARASINDAKİ İLİŞKİLERİ; KÜLTÜRLER ARASI KARŞILAŞTIRMALI BİR ARAŞTIRMA","3. Çağrı","BAP","170.48","TL","2016-12-03","2016-12-04","2016-11-23 10:47:05.237"]
["04720","10528678490","Gürkan KALKAN","375","YİYECEK İÇECEK DEPARTMANINDA ÇALIŞANLARIN BEŞ FAKTÖR KİŞİLİK ÖZELLİKLERİNİN HİZMET VERMEYE YATKINLIĞI VE İŞ TATMİNİ DÜZEYLERİ ARASINDAKİ İLİŞKİLERİ; KÜLTÜRLER ARASI KARŞILAŞTIRMALI BİR ARAŞTIRMA","3. Çağrı","BAP","17048.00","TL","2016-12-10","2016-12-11","2016-11-23 10:50:53.017"]
["04720","10528678490","Gürkan KALKAN","376","YİYECEK İÇECEK DEPARTMANINDA ÇALIŞANLARIN BEŞ FAKTÖR KİŞİLİK ÖZELLİKLERİNİN HİZMET VERMEYE YATKINLIĞI VE İŞ TATMİNİ DÜZEYLERİ ARASINDAKİ İLİŞKİLERİ; KÜLTÜRLER ARASI KARŞILAŞTIRMALI BİR ARAŞTIRMA","3. Çağrı","BAP","17048.00","TL","2016-12-10","2016-12-11","2016-11-23 10:54:15.293"]
["04720","10528678490","Gürkan KALKAN","376","YİYECEK İÇECEK DEPARTMANINDA ÇALIŞANLARIN BEŞ FAKTÖR KİŞİLİK ÖZELLİKLERİNİN HİZMET VERMEYE YATKINLIĞI VE İŞ TATMİNİ DÜZEYLERİ ARASINDAKİ İLİŞKİLERİ; KÜLTÜRLER ARASI KARŞILAŞTIRMALI BİR ARAŞTIRMA","3. Çağrı","BAP","170.48","TL","2016-12-17","2016-12-18","2016-11-23 10:54:15.293"]
["04720","10528678490","Gürkan KALKAN","377","YİYECEK İÇECEK DEPARTMANINDA ÇALIŞANLARIN BEŞ FAKTÖR KİŞİLİK ÖZELLİKLERİNİN HİZMET VERMEYE YATKINLIĞI VE İŞ TATMİNİ DÜZEYLERİ ARASINDAKİ İLİŞKİLERİ; KÜLTÜRLER ARASI KARŞILAŞTIRMALI BİR ARAŞTIRMA","3. Çağrı","BAP","17048.00","TL","2016-12-10","2016-12-11","2016-11-23 10:57:32.570"]
["04720","10528678490","Gürkan KALKAN","377","YİYECEK İÇECEK DEPARTMANINDA ÇALIŞANLARIN BEŞ FAKTÖR KİŞİLİK ÖZELLİKLERİNİN HİZMET VERMEYE YATKINLIĞI VE İŞ TATMİNİ DÜZEYLERİ ARASINDAKİ İLİŞKİLERİ; KÜLTÜRLER ARASI KARŞILAŞTIRMALI BİR ARAŞTIRMA","3. Çağrı","BAP","170.48","TL","2016-12-17","2016-12-18","2016-11-23 10:57:32.570"]
["04720","10528678490","Gürkan KALKAN","377","YİYECEK İÇECEK DEPARTMANINDA ÇALIŞANLARIN BEŞ FAKTÖR KİŞİLİK ÖZELLİKLERİNİN HİZMET VERMEYE YATKINLIĞI VE İŞ TATMİNİ DÜZEYLERİ ARASINDAKİ İLİŞKİLERİ; KÜLTÜRLER ARASI KARŞILAŞTIRMALI BİR ARAŞTIRMA","3. Çağrı","BAP","170.48","TL","2016-12-24","2016-12-25","2016-11-23 10:57:32.570"]
["04720","10528678490","Gürkan KALKAN","378","YİYECEK İÇECEK DEPARTMANINDA ÇALIŞANLARIN BEŞ FAKTÖR KİŞİLİK ÖZELLİKLERİNİN HİZMET VERMEYE YATKINLIĞI VE İŞ TATMİNİ DÜZEYLERİ ARASINDAKİ İLİŞKİLERİ; KÜLTÜRLER ARASI KARŞILAŞTIRMALI BİR ARAŞTIRMA","3. Çağrı","BAP","170.48","TL","2016-12-31","2017-01-01","2016-11-23 11:01:49.293"]
["04720","10528678490","Gürkan KALKAN","379","YİYECEK İÇECEK DEPARTMANINDA ÇALIŞANLARIN BEŞ FAKTÖR KİŞİLİK ÖZELLİKLERİNİN HİZMET VERMEYE YATKINLIĞI VE İŞ TATMİNİ DÜZEYLERİ ARASINDAKİ İLİŞKİLERİ; KÜLTÜRLER ARASI KARŞILAŞTIRMALI BİR ARAŞTIRMA","3. Çağrı","BAP","170.48","TL","2016-12-31","2017-01-01","2016-11-23 11:06:40.047"]
["04720","10528678490","Gürkan KALKAN","379","YİYECEK İÇECEK DEPARTMANINDA ÇALIŞANLARIN BEŞ FAKTÖR KİŞİLİK ÖZELLİKLERİNİN HİZMET VERMEYE YATKINLIĞI VE İŞ TATMİNİ DÜZEYLERİ ARASINDAKİ İLİŞKİLERİ; KÜLTÜRLER ARASI KARŞILAŞTIRMALI BİR ARAŞTIRMA","3. Çağrı","BAP","170.48","TL","2017-01-07","2017-01-08","2016-11-23 11:06:40.047"]
["04720","10528678490","Gürkan KALKAN","380","YİYECEK İÇECEK DEPARTMANINDA ÇALIŞANLARIN BEŞ FAKTÖR KİŞİLİK ÖZELLİKLERİNİN HİZMET VERMEYE YATKINLIĞI VE İŞ TATMİNİ DÜZEYLERİ ARASINDAKİ İLİŞKİLERİ; KÜLTÜRLER ARASI KARŞILAŞTIRMALI BİR ARAŞTIRMA","3. Çağrı","BAP","170.48","TL","2016-12-31","2017-01-01","2016-11-23 11:10:52.080"]
["04720","10528678490","Gürkan KALKAN","380","YİYECEK İÇECEK DEPARTMANINDA ÇALIŞANLARIN BEŞ FAKTÖR KİŞİLİK ÖZELLİKLERİNİN HİZMET VERMEYE YATKINLIĞI VE İŞ TATMİNİ DÜZEYLERİ ARASINDAKİ İLİŞKİLERİ; KÜLTÜRLER ARASI KARŞILAŞTIRMALI BİR ARAŞTIRMA","3. Çağrı","BAP","170.48","TL","2017-01-07","2017-01-08","2016-11-23 11:10:52.080"]
["04720","10528678490","Gürkan KALKAN","380","YİYECEK İÇECEK DEPARTMANINDA ÇALIŞANLARIN BEŞ FAKTÖR KİŞİLİK ÖZELLİKLERİNİN HİZMET VERMEYE YATKINLIĞI VE İŞ TATMİNİ DÜZEYLERİ ARASINDAKİ İLİŞKİLERİ; KÜLTÜRLER ARASI KARŞILAŞTIRMALI BİR ARAŞTIRMA","3. Çağrı","BAP","170.48","TL","2017-01-14","2017-01-15","2016-11-23 11:10:52.080"]
["00730","21320121350","Yıldız BOLAT","381","Balıkçılık Araştırma Grubu Toplantısı","3. Çağrı","Fakülte Bütçesi","225.00","TL","2016-12-01","2016-12-03","2016-11-23 11:22:04.193"]
["06683","29173855910","Hasan GÖKSU","391","The Relationship Between Personality Traits of Employees and Service Orientation and Job Satisfaction in Food and Beverage Department: A Cross Cultural Research","3. Çağrı","Fakülte Bütçesi","2430.00","TL","2017-01-20","2017-01-28","2016-11-23 14:37:58.610"]
["06683","29173855910","Hasan GÖKSU","391","The Relationship Between Personality Traits of Employees and Service Orientation and Job Satisfaction in Food and Beverage Department: A Cross Cultural Research","3. Çağrı","Fakülte Bütçesi","675.00","AUD (Avustrayla Doları)","2017-01-20","2017-01-28","2016-11-23 14:37:58.610"]
["02415","23360053530","Muharrem Zafer ÇAĞLAR","365","Mesleki görgü ve bilgimi geliştirmek ve medya çalışmaları hakkında bilgi edinmek amacıyla, İspanya'nın Başkenti Madrid ve önemli şehirlerinden Barselona'yı performans puanlarımdan karşılanmak üzere ziyaret etmek.","3. Çağrı","BAP","710.00","EURO","2017-01-29","2017-02-07","2016-11-22 13:00:54.340"]
["00744","23285056012","Nedret ÇAĞLAR","393","Mesleki görgü ve bilgi birikimimi geliştirmek ve medya faaliyetleri hakkında bilgi edinmek amacıyla, İspanya'nın Madrid ve Barcelona şehirlerini performansımdan karşılanmak üzere ziyaret etmek.","3. Çağrı","BAP","710.00","EURO","2017-01-29","2017-02-07","2016-11-23 16:57:23.103"]
["01070","33779102620","İbrahim ÖZDEMİR","402","TÜBİTAK 1001 Projesi Arazi Çalışması","3. Çağrı","Kurum Dışı Proje","470.00","TL","2017-01-19","2017-01-22","2016-11-28 14:56:12.800"]
["01070","33779102620","İbrahim ÖZDEMİR","403","TÜBİTAK 1001 Projesi arazi çalışması","3. Çağrı","Kurum Dışı Proje","470.00","TL","2017-01-26","2017-01-29","2016-11-28 15:03:42.947"]
["03673","21598321506","Ahmet MERT","404","Tübitak 1001 115O476 nolu proje arazi çalışması","3. Çağrı","Kurum Dışı Proje","220.00","TL","2017-01-19","2017-01-22","2016-11-28 15:27:01.010"]
["03673","21598321506","Ahmet MERT","405","Arazi çalışması","3. Çağrı","Kurum Dışı Proje","220.00","TL","2017-01-26","2017-01-29","2016-11-28 15:30:32.623"]
["04525","20731342620","Halil SÜEL","407","Biyolojik Çeşitlilik Ölçüm Süreçleri: Envanter, Veri Transfer ve Hesaplama Teknikleri Projesi","3. Çağrı","İstemiyorum","0.00","TL","2017-01-09","2017-01-15","2016-11-28 20:07:08.287"]
["01068","14837107078","Kürşad ÖZKAN","411","Biyolojik çeşitlilik ölçüm süreçleri - envanter, veri transferi ve hesaplama teknikleri","3. Çağrı","İstemiyorum","0.00","TL","2017-01-10","2017-01-13","2016-11-29 14:39:49.167"]
["05242","27364827302","Ali ŞENOL","412","Biyolojik çeşitlilik ölçüm süreçleri - envanter, veri transferi ve hesaplama teknikleri","3. Çağrı","İstemiyorum","0.00","TL","2017-01-09","2017-01-15","2016-11-29 15:08:19.123"]
["05688","39499861076","Zakir DENİZ","414","TÜBİTAK 2214/A Yurt Dısı Doktora Sırası Arastırma Burs Programı kapsamında İsviçrede arastırma yapmak","3. Çağrı","Kurum Dışı Proje","18000.00","EURO","2017-03-01","2017-05-29","2016-11-30 09:53:04.640"]
["04752","41662753880","Mehmet Güvenç NEGİZ","415","Biyolojik Çeşitlilik Ölçüm Süreçleri - Envanter, Veri Transfer ve Hesaplama Teknikleri Projesi","3. Çağrı","İstemiyorum","0.00","TL","2017-01-13","2017-01-15","2016-11-30 10:01:17.733"]
["03672","59764361674","Serkan GÜLSOY","416","Biyolojik çeşitlilik ölçüm süreçleri - envanter, veri transferi ve hesaplama teknikleri","3. Çağrı","İstemiyorum","0.00","TL","2017-01-10","2017-01-13","2016-11-30 15:37:23.867"]
["01071","12409844024","Ramazan ÖZÇELİK","417","Bucak Yöresi Doğal Sedir (Cedrus libani A. Rich.) ve Toros Göknarı (Abies cilicica Car.) Karışık Meşcereleri İçin Ticari Hacim Denklemlerinin Geliştirilmesi","3. Çağrı","BAP","150.00","TL","2017-01-13","2017-01-15","2016-11-30 15:51:59.370"]
["03396","56080479212","Bayram ÇEVİK","418","COST FA1405 Annual Meeting , \"Systems biology approaches to identify mechanisms underlying crop-arthropod-microbe interactions\"  semposyumu  and \"Hands-on Systems Biology Training School\"","3. Çağrı","İstemiyorum","0.00","TL","2017-01-31","2017-02-02","2016-11-30 16:10:41.523"]
["05609","38185799358","Mahmut DEMİR","419","Utrecht International Tourism & Recreation Fair","3. Çağrı","BAP","3000.00","TL","2017-01-10","2017-01-15","2016-12-01 20:43:44.230"]
["02369","49762191762","Nevzat Özgü YİĞİT","408","114Y598 nolu TÜBİTAK proje Toplantısı","3. Çağrı","Kurum Dışı Proje","2500.00","TL","2017-01-22","2017-01-30","2016-11-29 10:08:40.717"]
["03683","53497283630","Bilgehan İlker HARMAN","406","114Y598 nolu TÜBİTAK Proje Toplantısı","3. Çağrı","Kurum Dışı Proje","2500.00","TL","2017-01-22","2017-01-30","2016-11-28 16:34:19.743"]
["03805","21292148942","Tuğba SARDOHAN KÖSEOĞLU","410","114Y598 nolu TÜBİTAK proje Toplantısı","3. Çağrı","Kurum Dışı Proje","2500.00","TL","2017-01-22","2017-01-30","2016-11-29 13:10:13.007"]
["03481","54859000124","Şehnaz Şule KAPLAN BEKAROĞLU","409","114Y598 nolu TÜBİTAK Proje Toplantısı","3. Çağrı","Kurum Dışı Proje","1000.00","TL","2017-01-23","2017-01-29","2016-11-29 10:26:52.597"]
["01134","28850042582","Levent BAŞAYİĞİT","422","6th INTERNATIONAL SYMPOSIUM ON AGRICULTURAL SCIENCES \"AGRORES 2017\"","3. Çağrı","BAP","0.00","TL","2017-02-27","2017-03-03","2016-12-02 14:25:46.400"]
["03374","15326321272","Murat Yusuf UÇAN","424","TIM-InoSuıt-Inovasyon Odaklı Mentörlük Projesi(üniversite-sanayi işbirliği ) 3 aylık deneyim paylaşım toplantısının 1. toplantısı","3. Çağrı","Fakülte Bütçesi","500.00","TL","2017-02-02","2017-02-04","2016-12-03 16:39:51.540"]
["04524","26950027898","Erdal EKE","426","6th Annual Conference on Humanities and Social Sciences","3. Çağrı","Fakülte Bütçesi","4500.00","TL","2017-01-25","2017-01-30","2016-12-04 18:11:33.547"]
["02231","24479016744","Bülent DEDE","427","7. Kozmetik Kimyası Üretimi ve Standardizasyonu Kongresi","3. Çağrı","BAP","160.00","TL","2017-02-24","2017-02-26","2016-12-04 19:59:34.920"]
["05597","28721114882","Şirvan ŞEN DEMİR","428","21. Doğu Akdeniz Uluslararası Turizm ve Seyahat Fuarı","3. Çağrı","Fakülte Bütçesi","1000.00","TL","2017-01-25","2017-01-29","2016-12-05 00:43:04.300"]
["05609","38185799358","Mahmut DEMİR","429","21. Doğu Akdeniz Uluslararası Turizm ve Seyahat Fuarı","3. Çağrı","Fakülte Bütçesi","1000.00","TL","2017-01-25","2017-01-29","2016-12-05 00:49:34.657"]
["03396","56080479212","Bayram ÇEVİK","418","COST FA1405 Annual Meeting , \"Systems biology approaches to identify mechanisms underlying crop-arthropod-microbe interactions\"  semposyumu  and \"Hands-on Systems Biology Training School\"","3. Çağrı","BAP","300.00","EURO","2017-02-03","2017-02-05","2016-11-30 16:10:41.523"]
["03635","22277087140","Mustafa NAZIROĞLU","346","International Conference on Reproductive Biology and Comparative Endocrinology and The 35th Annual Meeting of The Society for Reproductive Biology and Comparative Endocrinology and  and The 35th Annual Meeting of The Society for Reproductive Biology and Comparative Endocrinology","3. Çağrı","BAP","5500.00","TL","2017-02-06","2017-02-12","2016-11-18 11:24:50.460"]
["04504","52357091866","Özgür DAVRAS","430","Sosyal Bilimlerde Bilimsel Makale Yazma Eğitimi","3. Çağrı","BAP","350.00","TL","2017-01-16","2017-01-20","2016-12-05 10:40:05.617"]
["05310","57424211444","Bilal ÇİĞ","339","International Conference on Reproductive Biology and Comparative Endocrinology (ICRBCE) and 35th Annual Meeting  of The Society for Reproductive Biology  and Comparative Endocrinology","3. Çağrı","BAP","3670.00","TL","2017-02-06","2017-02-12","2016-11-14 23:09:16.693"]
["04351","36586840662","İbrahim DEMİRTAŞ","395","6th Annual International Conference on Humanities and Social Sciences","3. Çağrı","Fakülte Bütçesi","4500.00","TL","2017-01-25","2017-01-30","2016-11-24 11:06:20.760"]
["05901","32989732542","Zeynep Gazali DEMİRTAŞ","433","6th Annual Conference on Humanities and Social Sciences","3. Çağrı","Fakülte Bütçesi","4500.00","TL","2017-01-25","2017-01-30","2016-12-05 13:13:19.800"]
["02220","48022536022","Ahmet TOLUNAY","434","Mesleki Örgütlenmesini Yapmış Meslek Mensuplarının Örgütsel Kazançları","3. Çağrı","BAP","300.00","TL","2017-01-06","2017-01-08","2016-12-05 13:36:09.250"]
["02220","48022536022","Ahmet TOLUNAY","435","Mesleki Örgütlenmesini Tamamlamış Meslek Mensuplarının Örgütsel Kazançları","3. Çağrı","BAP","250.00","TL","2017-01-13","2017-01-15","2016-12-05 13:43:38.603"]
["02220","48022536022","Ahmet TOLUNAY","436","Mesleki Örgütlenmesini Tamamlamış Meslek Mensuplarının Örgütsel Kazançları","3. Çağrı","BAP","300.00","TL","2017-01-20","2017-01-22","2016-12-05 13:53:57.867"]
["02220","48022536022","Ahmet TOLUNAY","437","Mesleki Örgütlenmesini Tamamlamış Meslek Mensuplarının Örgütsel Kazançları","3. Çağrı","BAP","300.00","TL","2017-01-27","2017-01-29","2016-12-05 13:57:43.337"]
["02220","48022536022","Ahmet TOLUNAY","438","Mesleki Örgütlenmesini Tamamlamış Meslek Mensuplarının Örgütsel Kazançları","3. Çağrı","BAP","300.00","TL","2017-02-03","2017-02-05","2016-12-05 14:03:12.243"]
["04644","11171466816","Osman ÇÖLLÜ","432","6th Annual Conference on Humanities and Social Sciences","3. Çağrı","Fakülte Bütçesi","4500.00","TL","2017-01-25","2017-01-30","2016-12-05 13:10:10.773"]
["03736","28207577996","Ceylan YOL","431","The WEI International Academic Conference on Education and Humanities in Barcelona","3. Çağrı","Fakülte Bütçesi","475.00","EURO","2017-01-22","2017-01-26","2016-12-05 13:09:17.043"]
["04533","47701149430","Ahmet SONGUR","392","6th Annual International Conference on Humanities and Social Sciences","3. Çağrı","Fakülte Bütçesi","4500.00","TL","2017-01-25","2017-01-30","2016-11-23 16:22:05.797"]
["05878","21380381848","Muhammet Hamdi MÜCEVHER","425","6th Annual Conference on Humanities and Social Sciences","3. Çağrı","Fakülte Bütçesi","4500.00","TL","2017-01-26","2017-01-29","2016-12-03 20:49:40.730"]
["02415","23360053530","Muharrem Zafer ÇAĞLAR","365","Mesleki görgü ve bilgimi geliştirmek ve medya çalışmaları hakkında bilgi edinmek amacıyla, İspanya'nın Başkenti Madrid ve önemli şehirlerinden Barselona'yı performans puanlarımdan karşılanmak üzere ziyaret etmek.","3. Çağrı","BAP","710.00","EURO","2017-01-29","2017-02-07","2016-11-22 13:00:54.340"]
["00744","23285056012","Nedret ÇAĞLAR","393","Mesleki görgü ve bilgi birikimimi geliştirmek ve medya faaliyetleri hakkında bilgi edinmek amacıyla, İspanya'nın Madrid ve Barcelona şehirlerini performansımdan karşılanmak üzere ziyaret etmek.","3. Çağrı","BAP","710.00","EURO","2017-01-29","2017-02-07","2016-11-23 16:57:23.103"]
["02369","49762191762","Nevzat Özgü YİĞİT","408","114Y598 nolu TÜBİTAK proje Toplantısı","3. Çağrı","Kurum Dışı Proje","2500.00","TL","2017-01-22","2017-01-30","2016-11-29 10:08:40.717"]
["03683","53497283630","Bilgehan İlker HARMAN","406","114Y598 nolu TÜBİTAK Proje Toplantısı","3. Çağrı","Kurum Dışı Proje","2500.00","TL","2017-01-22","2017-01-30","2016-11-28 16:34:19.743"]
["01070","33779102620","İbrahim ÖZDEMİR","402","TÜBİTAK 1001 Projesi Arazi Çalışması","3. Çağrı","Kurum Dışı Proje","470.00","TL","2017-01-19","2017-01-22","2016-11-28 14:56:12.800"]
["03805","21292148942","Tuğba SARDOHAN KÖSEOĞLU","410","114Y598 nolu TÜBİTAK proje Toplantısı","3. Çağrı","Kurum Dışı Proje","2500.00","TL","2017-01-22","2017-01-30","2016-11-29 13:10:13.007"]
["01070","33779102620","İbrahim ÖZDEMİR","403","TÜBİTAK 1001 Projesi arazi çalışması","3. Çağrı","Kurum Dışı Proje","470.00","TL","2017-01-26","2017-01-29","2016-11-28 15:03:42.947"]
["04720","10528678490","Gürkan KALKAN","373","YİYECEK İÇECEK DEPARTMANINDA ÇALIŞANLARIN BEŞ FAKTÖR KİŞİLİK ÖZELLİKLERİNİN HİZMET VERMEYE YATKINLIĞI VE İŞ TATMİNİ DÜZEYLERİ ARASINDAKİ İLİŞKİLERİ; KÜLTÜRLER ARASI KARŞILAŞTIRMALI BİR ARAŞTIRMA","3. Çağrı","BAP","170.48","TL","2016-12-03","2016-12-04","2016-11-23 10:47:05.237"]
["03481","54859000124","Şehnaz Şule KAPLAN BEKAROĞLU","409","114Y598 nolu TÜBİTAK Proje Toplantısı","3. Çağrı","Kurum Dışı Proje","1000.00","TL","2017-01-23","2017-01-29","2016-11-29 10:26:52.597"]
["03673","21598321506","Ahmet MERT","404","Tübitak 1001 115O476 nolu proje arazi çalışması","3. Çağrı","Kurum Dışı Proje","220.00","TL","2017-01-19","2017-01-22","2016-11-28 15:27:01.010"]
["01134","28850042582","Levent BAŞAYİĞİT","422","6th INTERNATIONAL SYMPOSIUM ON AGRICULTURAL SCIENCES \"AGRORES 2017\"","3. Çağrı","BAP","0.00","TL","2017-02-27","2017-03-03","2016-12-02 14:25:46.400"]
["03673","21598321506","Ahmet MERT","405","Arazi çalışması","3. Çağrı","Kurum Dışı Proje","220.00","TL","2017-01-26","2017-01-29","2016-11-28 15:30:32.623"]
["04720","10528678490","Gürkan KALKAN","375","YİYECEK İÇECEK DEPARTMANINDA ÇALIŞANLARIN BEŞ FAKTÖR KİŞİLİK ÖZELLİKLERİNİN HİZMET VERMEYE YATKINLIĞI VE İŞ TATMİNİ DÜZEYLERİ ARASINDAKİ İLİŞKİLERİ; KÜLTÜRLER ARASI KARŞILAŞTIRMALI BİR ARAŞTIRMA","3. Çağrı","BAP","17048.00","TL","2016-12-10","2016-12-11","2016-11-23 10:50:53.017"]
["02231","24479016744","Bülent DEDE","427","7. Kozmetik Kimyası Üretimi ve Standardizasyonu Kongresi","3. Çağrı","BAP","160.00","TL","2017-02-24","2017-02-26","2016-12-04 19:59:34.920"]
["04525","20731342620","Halil SÜEL","407","Biyolojik Çeşitlilik Ölçüm Süreçleri: Envanter, Veri Transfer ve Hesaplama Teknikleri Projesi","3. Çağrı","İstemiyorum","0.00","TL","2017-01-09","2017-01-15","2016-11-28 20:07:08.287"]
["04720","10528678490","Gürkan KALKAN","376","YİYECEK İÇECEK DEPARTMANINDA ÇALIŞANLARIN BEŞ FAKTÖR KİŞİLİK ÖZELLİKLERİNİN HİZMET VERMEYE YATKINLIĞI VE İŞ TATMİNİ DÜZEYLERİ ARASINDAKİ İLİŞKİLERİ; KÜLTÜRLER ARASI KARŞILAŞTIRMALI BİR ARAŞTIRMA","3. Çağrı","BAP","17048.00","TL","2016-12-10","2016-12-11","2016-11-23 10:54:15.293"]
["04720","10528678490","Gürkan KALKAN","376","YİYECEK İÇECEK DEPARTMANINDA ÇALIŞANLARIN BEŞ FAKTÖR KİŞİLİK ÖZELLİKLERİNİN HİZMET VERMEYE YATKINLIĞI VE İŞ TATMİNİ DÜZEYLERİ ARASINDAKİ İLİŞKİLERİ; KÜLTÜRLER ARASI KARŞILAŞTIRMALI BİR ARAŞTIRMA","3. Çağrı","BAP","170.48","TL","2016-12-17","2016-12-18","2016-11-23 10:54:15.293"]
["01068","14837107078","Kürşad ÖZKAN","411","Biyolojik çeşitlilik ölçüm süreçleri - envanter, veri transferi ve hesaplama teknikleri","3. Çağrı","İstemiyorum","0.00","TL","2017-01-10","2017-01-13","2016-11-29 14:39:49.167"]
["04720","10528678490","Gürkan KALKAN","377","YİYECEK İÇECEK DEPARTMANINDA ÇALIŞANLARIN BEŞ FAKTÖR KİŞİLİK ÖZELLİKLERİNİN HİZMET VERMEYE YATKINLIĞI VE İŞ TATMİNİ DÜZEYLERİ ARASINDAKİ İLİŞKİLERİ; KÜLTÜRLER ARASI KARŞILAŞTIRMALI BİR ARAŞTIRMA","3. Çağrı","BAP","17048.00","TL","2016-12-10","2016-12-11","2016-11-23 10:57:32.570"]
["04720","10528678490","Gürkan KALKAN","377","YİYECEK İÇECEK DEPARTMANINDA ÇALIŞANLARIN BEŞ FAKTÖR KİŞİLİK ÖZELLİKLERİNİN HİZMET VERMEYE YATKINLIĞI VE İŞ TATMİNİ DÜZEYLERİ ARASINDAKİ İLİŞKİLERİ; KÜLTÜRLER ARASI KARŞILAŞTIRMALI BİR ARAŞTIRMA","3. Çağrı","BAP","170.48","TL","2016-12-17","2016-12-18","2016-11-23 10:57:32.570"]
["04720","10528678490","Gürkan KALKAN","377","YİYECEK İÇECEK DEPARTMANINDA ÇALIŞANLARIN BEŞ FAKTÖR KİŞİLİK ÖZELLİKLERİNİN HİZMET VERMEYE YATKINLIĞI VE İŞ TATMİNİ DÜZEYLERİ ARASINDAKİ İLİŞKİLERİ; KÜLTÜRLER ARASI KARŞILAŞTIRMALI BİR ARAŞTIRMA","3. Çağrı","BAP","170.48","TL","2016-12-24","2016-12-25","2016-11-23 10:57:32.570"]
["03396","56080479212","Bayram ÇEVİK","418","COST FA1405 Annual Meeting , \"Systems biology approaches to identify mechanisms underlying crop-arthropod-microbe interactions\"  semposyumu  and \"Hands-on Systems Biology Training School\"","3. Çağrı","İstemiyorum","0.00","TL","2017-01-31","2017-02-02","2016-11-30 16:10:41.523"]
["03396","56080479212","Bayram ÇEVİK","418","COST FA1405 Annual Meeting , \"Systems biology approaches to identify mechanisms underlying crop-arthropod-microbe interactions\"  semposyumu  and \"Hands-on Systems Biology Training School\"","3. Çağrı","BAP","300.00","EURO","2017-02-03","2017-02-05","2016-11-30 16:10:41.523"]
["05242","27364827302","Ali ŞENOL","412","Biyolojik çeşitlilik ölçüm süreçleri - envanter, veri transferi ve hesaplama teknikleri","3. Çağrı","İstemiyorum","0.00","TL","2017-01-09","2017-01-15","2016-11-29 15:08:19.123"]
["04720","10528678490","Gürkan KALKAN","378","YİYECEK İÇECEK DEPARTMANINDA ÇALIŞANLARIN BEŞ FAKTÖR KİŞİLİK ÖZELLİKLERİNİN HİZMET VERMEYE YATKINLIĞI VE İŞ TATMİNİ DÜZEYLERİ ARASINDAKİ İLİŞKİLERİ; KÜLTÜRLER ARASI KARŞILAŞTIRMALI BİR ARAŞTIRMA","3. Çağrı","BAP","170.48","TL","2016-12-31","2017-01-01","2016-11-23 11:01:49.293"]
["05688","39499861076","Zakir DENİZ","414","TÜBİTAK 2214/A Yurt Dısı Doktora Sırası Arastırma Burs Programı kapsamında İsviçrede arastırma yapmak","3. Çağrı","Kurum Dışı Proje","18000.00","EURO","2017-03-01","2017-05-29","2016-11-30 09:53:04.640"]
["03635","22277087140","Mustafa NAZIROĞLU","346","International Conference on Reproductive Biology and Comparative Endocrinology and The 35th Annual Meeting of The Society for Reproductive Biology and Comparative Endocrinology and  and The 35th Annual Meeting of The Society for Reproductive Biology and Comparative Endocrinology","3. Çağrı","BAP","5500.00","TL","2017-02-06","2017-02-12","2016-11-18 11:24:50.460"]
["04752","41662753880","Mehmet Güvenç NEGİZ","415","Biyolojik Çeşitlilik Ölçüm Süreçleri - Envanter, Veri Transfer ve Hesaplama Teknikleri Projesi","3. Çağrı","İstemiyorum","0.00","TL","2017-01-13","2017-01-15","2016-11-30 10:01:17.733"]
["04504","52357091866","Özgür DAVRAS","430","Sosyal Bilimlerde Bilimsel Makale Yazma Eğitimi","3. Çağrı","BAP","350.00","TL","2017-01-16","2017-01-20","2016-12-05 10:40:05.617"]
["06164","39646509158","Ahmi ÖZ","343","International Conference on Reproductive Biology and Comparative Endocrinology (ICRBCE)  and  35th Annual Meeting of  Society for Reproductive Biology and Comparative Endocrinology","3. Çağrı","Fakülte Bütçesi","3520.00","TL","2017-02-06","2017-02-11","2016-11-17 15:26:11.470"]
["03672","59764361674","Serkan GÜLSOY","416","Biyolojik çeşitlilik ölçüm süreçleri - envanter, veri transferi ve hesaplama teknikleri","3. Çağrı","İstemiyorum","0.00","TL","2017-01-10","2017-01-13","2016-11-30 15:37:23.867"]
["04720","10528678490","Gürkan KALKAN","379","YİYECEK İÇECEK DEPARTMANINDA ÇALIŞANLARIN BEŞ FAKTÖR KİŞİLİK ÖZELLİKLERİNİN HİZMET VERMEYE YATKINLIĞI VE İŞ TATMİNİ DÜZEYLERİ ARASINDAKİ İLİŞKİLERİ; KÜLTÜRLER ARASI KARŞILAŞTIRMALI BİR ARAŞTIRMA","3. Çağrı","BAP","170.48","TL","2016-12-31","2017-01-01","2016-11-23 11:06:40.047"]
["04720","10528678490","Gürkan KALKAN","379","YİYECEK İÇECEK DEPARTMANINDA ÇALIŞANLARIN BEŞ FAKTÖR KİŞİLİK ÖZELLİKLERİNİN HİZMET VERMEYE YATKINLIĞI VE İŞ TATMİNİ DÜZEYLERİ ARASINDAKİ İLİŞKİLERİ; KÜLTÜRLER ARASI KARŞILAŞTIRMALI BİR ARAŞTIRMA","3. Çağrı","BAP","170.48","TL","2017-01-07","2017-01-08","2016-11-23 11:06:40.047"]
["05310","57424211444","Bilal ÇİĞ","339","International Conference on Reproductive Biology and Comparative Endocrinology (ICRBCE) and 35th Annual Meeting  of The Society for Reproductive Biology  and Comparative Endocrinology","3. Çağrı","BAP","3670.00","TL","2017-02-06","2017-02-12","2016-11-14 23:09:16.693"]
["01071","12409844024","Ramazan ÖZÇELİK","417","Bucak Yöresi Doğal Sedir (Cedrus libani A. Rich.) ve Toros Göknarı (Abies cilicica Car.) Karışık Meşcereleri İçin Ticari Hacim Denklemlerinin Geliştirilmesi","3. Çağrı","BAP","150.00","TL","2017-01-13","2017-01-15","2016-11-30 15:51:59.370"]
["04720","10528678490","Gürkan KALKAN","380","YİYECEK İÇECEK DEPARTMANINDA ÇALIŞANLARIN BEŞ FAKTÖR KİŞİLİK ÖZELLİKLERİNİN HİZMET VERMEYE YATKINLIĞI VE İŞ TATMİNİ DÜZEYLERİ ARASINDAKİ İLİŞKİLERİ; KÜLTÜRLER ARASI KARŞILAŞTIRMALI BİR ARAŞTIRMA","3. Çağrı","BAP","170.48","TL","2016-12-31","2017-01-01","2016-11-23 11:10:52.080"]
["04720","10528678490","Gürkan KALKAN","380","YİYECEK İÇECEK DEPARTMANINDA ÇALIŞANLARIN BEŞ FAKTÖR KİŞİLİK ÖZELLİKLERİNİN HİZMET VERMEYE YATKINLIĞI VE İŞ TATMİNİ DÜZEYLERİ ARASINDAKİ İLİŞKİLERİ; KÜLTÜRLER ARASI KARŞILAŞTIRMALI BİR ARAŞTIRMA","3. Çağrı","BAP","170.48","TL","2017-01-07","2017-01-08","2016-11-23 11:10:52.080"]
["04720","10528678490","Gürkan KALKAN","380","YİYECEK İÇECEK DEPARTMANINDA ÇALIŞANLARIN BEŞ FAKTÖR KİŞİLİK ÖZELLİKLERİNİN HİZMET VERMEYE YATKINLIĞI VE İŞ TATMİNİ DÜZEYLERİ ARASINDAKİ İLİŞKİLERİ; KÜLTÜRLER ARASI KARŞILAŞTIRMALI BİR ARAŞTIRMA","3. Çağrı","BAP","170.48","TL","2017-01-14","2017-01-15","2016-11-23 11:10:52.080"]
["05609","38185799358","Mahmut DEMİR","419","Utrecht International Tourism & Recreation Fair","3. Çağrı","BAP","3000.00","TL","2017-01-10","2017-01-15","2016-12-01 20:43:44.230"]
["02220","48022536022","Ahmet TOLUNAY","434","Mesleki Örgütlenmesini Yapmış Meslek Mensuplarının Örgütsel Kazançları","3. Çağrı","BAP","300.00","TL","2017-01-06","2017-01-08","2016-12-05 13:36:09.250"]
["02220","48022536022","Ahmet TOLUNAY","435","Mesleki Örgütlenmesini Tamamlamış Meslek Mensuplarının Örgütsel Kazançları","3. Çağrı","BAP","250.00","TL","2017-01-13","2017-01-15","2016-12-05 13:43:38.603"]
["02220","48022536022","Ahmet TOLUNAY","436","Mesleki Örgütlenmesini Tamamlamış Meslek Mensuplarının Örgütsel Kazançları","3. Çağrı","BAP","300.00","TL","2017-01-20","2017-01-22","2016-12-05 13:53:57.867"]
["02220","48022536022","Ahmet TOLUNAY","437","Mesleki Örgütlenmesini Tamamlamış Meslek Mensuplarının Örgütsel Kazançları","3. Çağrı","BAP","300.00","TL","2017-01-27","2017-01-29","2016-12-05 13:57:43.337"]
["02220","48022536022","Ahmet TOLUNAY","438","Mesleki Örgütlenmesini Tamamlamış Meslek Mensuplarının Örgütsel Kazançları","3. Çağrı","BAP","300.00","TL","2017-02-03","2017-02-05","2016-12-05 14:03:12.243"]
["06883","23551479590","HÜSEYİN KÖKER","443","İKİNCİ ULUSLARARASI AKDENİZ DÜNYASINDA PARA TARİHİ VE NUMİSMATİK KONGRESİ","3. Çağrı","Fakülte Bütçesi","120.00","TL","2017-01-04","2017-01-06","2016-12-06 11:05:13.527"]
["02266","20287207008","Mehmet Ali KOYUNCU","446","10 th International Frutic Symposium Quality and Safety of Fresh Horticultural Commodities","3. Çağrı","Fakülte Bütçesi","1795.00","TL","2017-02-06","2017-02-10","2016-12-08 13:35:15.087"]
["02266","20287207008","Mehmet Ali KOYUNCU","445","10 th International Frutic Symposium Quality and Safety of Fresh Horticultural commodities","3. Çağrı","Fakülte Bütçesi","1795.00","TL","2017-02-07","2017-02-09","2016-12-08 13:21:37.733"]
["06773","19522460896","SELİN EROYMAK","256","6th Annual Conference on Humanities and Social Sciences","3. Çağrı","Kurum Dışı Proje","2500.00","TL","2017-01-25","2017-01-30","2016-10-25 14:08:43.667"]
["06770","48877203100","DİLRUBA İZGÜDEN","450","6th Annual Conference on Humanities and Social Sciences","3. Çağrı","Kurum Dışı Proje","2165.00","TL","2017-01-22","2017-01-30","2016-12-09 11:03:46.013"]
["05656","37639346292","Nurdan ORAL KARA","452","6th Annual Conference on Humanities and Social Sciences (AGP 2017)","3. Çağrı","Kurum Dışı Proje","15000.00","TL","2017-01-22","2017-01-30","2016-12-09 11:42:22.320"]
["06567","21820528468","Aslı VERGİLİ","454","6th Annual Conference on Humanities and Social Sciences (AGP 2017)","3. Çağrı","Kurum Dışı Proje","7000.00","TL","2017-01-23","2017-01-30","2016-12-09 12:18:25.743"]
["06761","16870318756","KEVSER SEZER KORUCU","458","6th Annual Conference on Humanities and Social Sciences","3. Çağrı","Kurum Dışı Proje","3000.00","TL","2017-01-23","2017-01-30","2016-12-09 15:13:59.040"]
["06772","12521313064","MERVE UYSAL","460","Annual International Conference on Humanities and Social Sciences","3. Çağrı","Kurum Dışı Proje","3000.00","TL","2016-11-24","2016-11-28","2016-12-09 15:57:43.300"]
["05683","45187058390","Abuzer SARP","463","Tez Araştırması","3. Çağrı","BAP","1500.00","USD (A.B.D Doları)","2017-01-02","2017-01-16","2016-12-12 12:31:16.150"]

{"sheet":"Konaklama","index":2,"n_rows":41,"n_cols":9,"rows_kept":41,"cut":false,"hidden":false,"merged":[]}
["BaşvuruId","Adı Soyadı","EtkinlikAdi","KonaklanacakYer","KacGece","Tutar","Ücret","Para Cinsi","Gider"]
["256","SELİN EROYMAK","6th Annual Conference on Humanities and Social Sciences","Travelodge Barcelona Poblenou","7","156.50 EURO",{"$f":"IFERROR(VALUE(SUBSTITUTE(ArraySep(F2,\" \",1),\".\",\",\")),0)","v":156.5},{"$f":"IF(G2>0,ArraySep(F2,\" \",2),\"\")","v":"EURO"},{"$f":"G2*IF(H2=\"DOLAR\",3,IF(H2=\"EURO\",3.5,1))/E2","v":78.25}]
["307","Ömer Kürşad TÜFEKCİ","The Relationship between Personality Traits of Employees and Service Orientation and Job Satisfaction in Food and Beverage Department: A Cross Cultural Research","Chonburi, Tayland","6","712.50 DOLAR",{"$f":"IFERROR(VALUE(SUBSTITUTE(ArraySep(F3,\" \",1),\".\",\",\")),0)","v":712.5},{"$f":"IF(G3>0,ArraySep(F3,\" \",2),\"\")","v":"DOLAR"},{"$f":"G3*IF(H3=\"DOLAR\",3,IF(H3=\"EURO\",3.5,1))/E3","v":356.25}]
["336","Nevzat ÖZGÜR","Stanford Geothermal Workshop 42nd Annual","San francisco","5","750.00 DOLAR",{"$f":"IFERROR(VALUE(SUBSTITUTE(ArraySep(F4,\" \",1),\".\",\",\")),0)","v":750},{"$f":"IF(G4>0,ArraySep(F4,\" \",2),\"\")","v":"DOLAR"},450]
["346","Mustafa NAZIROĞLU","International Conference on Reproductive Biology and Comparative Endocrinology and The 35th Annual Meeting of The Society for Reproductive Biology and Comparative Endocrinology and  and The 35th Annual Meeting of The Society for Reproductive Biology and Comparative Endocrinology","Hotel Novotel Hyderabad","6","6405.00 TL",{"$f":"IFERROR(VALUE(SUBSTITUTE(ArraySep(F5,\" \",1),\".\",\",\")),0)","v":6405},{"$f":"IF(G5>0,ArraySep(F5,\" \",2),\"\")","v":"TL"},1067.5]
["359","Gürkan KALKAN","YİYECEK İÇECEK DEPARTMANINDA ÇALIŞANLARIN BEŞ FAKTÖR KİŞİLİK ÖZELLİKLERİNİN HİZMET VERMEYE YATKINLIĞI VE İŞ TATMİNİ DÜZEYLERİ ARASINDAKİ İLİŞKİLERİ; KÜLTÜRLER ARASI KARŞILAŞTIRMALI BİR ARAŞTIRMA","Chonburi","6","118.75 DOLAR",{"$f":"IFERROR(VALUE(SUBSTITUTE(ArraySep(F6,\" \",1),\".\",\",\")),0)","v":118.75},{"$f":"IF(G6>0,ArraySep(F6,\" \",2),\"\")","v":"DOLAR"},59.375]
["362","Oktay KÖSE","2017 4th International Conference on Linguistics, Literature and Arts (ICLLA 2017)","Silverland Jolie Hotel","4","1071.00 TL",{"$f":"IFERROR(VALUE(SUBSTITUTE(ArraySep(F7,\" \",1),\".\",\",\")),0)","v":1071},{"$f":"IF(G7>0,ArraySep(F7,\" \",2),\"\")","v":"TL"},267.75]
["371","Ömer ÇON","EU Clinical Trial Regulation New Legal Framework for Multicenter Clinical Trials","Stiftung Gästehaus der Universität Basel","3","270.00 EURO",{"$f":"IFERROR(VALUE(SUBSTITUTE(ArraySep(F8,\" \",1),\".\",\",\")),0)","v":270},{"$f":"IF(G8>0,ArraySep(F8,\" \",2),\"\")","v":"EURO"},315]
["391","Hasan GÖKSU","The Relationship Between Personality Traits of Employees and Service Orientation and Job Satisfaction in Food and Beverage Department: A Cross Cultural Research","Chon Buri","5","675.00 DOLAR",{"$f":"IFERROR(VALUE(SUBSTITUTE(ArraySep(F9,\" \",1),\".\",\",\")),0)","v":675},{"$f":"IF(G9>0,ArraySep(F9,\" \",2),\"\")","v":"DOLAR"},405]
["392","Ahmet SONGUR","6th Annual International Conference on Humanities and Social Sciences","Barselona","5","1500.00 TL",{"$f":"IFERROR(VALUE(SUBSTITUTE(ArraySep(F10,\" \",1),\".\",\",\")),0)","v":1500},{"$f":"IF(G10>0,ArraySep(F10,\" \",2),\"\")","v":"TL"},300]
["395","İbrahim DEMİRTAŞ","6th Annual International Conference on Humanities and Social Sciences","barselona","5","1500.00 TL",{"$f":"IFERROR(VALUE(SUBSTITUTE(ArraySep(F11,\" \",1),\".\",\",\")),0)","v":1500},{"$f":"IF(G11>0,ArraySep(F11,\" \",2),\"\")","v":"TL"},300]
["406","Bilgehan İlker HARMAN","114Y598 nolu TÜBİTAK Proje Toplantısı","Eriha/Kudüs","8","1300.00 TL",{"$f":"IFERROR(VALUE(SUBSTITUTE(ArraySep(F12,\" \",1),\".\",\",\")),0)","v":1300},{"$f":"IF(G12>0,ArraySep(F12,\" \",2),\"\")","v":"TL"},162.5]
["408","Nevzat Özgü YİĞİT","114Y598 nolu TÜBİTAK proje Toplantısı","Eriha/Kudüs","8","1300.00 TL",{"$f":"IFERROR(VALUE(SUBSTITUTE(ArraySep(F13,\" \",1),\".\",\",\")),0)","v":1300},{"$f":"IF(G13>0,ArraySep(F13,\" \",2),\"\")","v":"TL"},162.5]
["409","Şehnaz Şule KAPLAN BEKAROĞLU","114Y598 nolu TÜBİTAK Proje Toplantısı","Filistin","7","1000.00 TL",{"$f":"IFERROR(VALUE(SUBSTITUTE(ArraySep(F14,\" \",1),\".\",\",\")),0)","v":1000},{"$f":"IF(G14>0,ArraySep(F14,\" \",2),\"\")","v":"TL"},142.85714285714286]
["410","Tuğba SARDOHAN KÖSEOĞLU","114Y598 nolu TÜBİTAK proje Toplantısı","Eriha/Kudüs","8","1300.00 TL",{"$f":"IFERROR(VALUE(SUBSTITUTE(ArraySep(F15,\" \",1),\".\",\",\")),0)","v":1300},{"$f":"IF(G15>0,ArraySep(F15,\" \",2),\"\")","v":"TL"},162.5]
["413","Elçin ESENLİK","13. Uluslar Arası Dudak Damak Yarıkları Kongresi","Courtyard Mariott, Jaipur","11","2400.00 TL",{"$f":"IFERROR(VALUE(SUBSTITUTE(ArraySep(F16,\" \",1),\".\",\",\")),0)","v":2400},{"$f":"IF(G16>0,ArraySep(F16,\" \",2),\"\")","v":"TL"},218.18181818181819]
["415","Mehmet Güvenç NEGİZ","Biyolojik Çeşitlilik Ölçüm Süreçleri - Envanter, Veri Transfer ve Hesaplama Teknikleri Projesi","Antalya","2","0.00 TL",{"$f":"IFERROR(VALUE(SUBSTITUTE(ArraySep(F17,\" \",1),\".\",\",\")),0)","v":0},{"$f":"IF(G17>0,ArraySep(F17,\" \",2),\"\")","v":""},0]
["418","Bayram ÇEVİK","COST FA1405 Annual Meeting , \"Systems biology approaches to identify mechanisms underlying crop-arthropod-microbe interactions\"  semposyumu  and \"Hands-on Systems Biology Training School\"","Best Western Premier Hotel Slon","4","360.00 EURO",{"$f":"IFERROR(VALUE(SUBSTITUTE(ArraySep(F18,\" \",1),\".\",\",\")),0)","v":360},{"$f":"IF(G18>0,ArraySep(F18,\" \",2),\"\")","v":"EURO"},315]
["419","Mahmut DEMİR","Utrecht International Tourism & Recreation Fair","Otel","5","1250.00 TL",{"$f":"IFERROR(VALUE(SUBSTITUTE(ArraySep(F19,\" \",1),\".\",\",\")),0)","v":1250},{"$f":"IF(G19>0,ArraySep(F19,\" \",2),\"\")","v":"TL"},250]
["424","Murat Yusuf UÇAN","TIM-InoSuıt-Inovasyon Odaklı Mentörlük Projesi(üniversite-sanayi işbirliği ) 3 aylık deneyim paylaşım toplantısının 1. toplantısı","istanbul otel","1","100.00 TL",{"$f":"IFERROR(VALUE(SUBSTITUTE(ArraySep(F20,\" \",1),\".\",\",\")),0)","v":100},{"$f":"IF(G20>0,ArraySep(F20,\" \",2),\"\")","v":"TL"},100]
["425","Muhammet Hamdi MÜCEVHER","6th Annual Conference on Humanities and Social Sciences","Barselona","5","1500.00 TL",{"$f":"IFERROR(VALUE(SUBSTITUTE(ArraySep(F21,\" \",1),\".\",\",\")),0)","v":1500},{"$f":"IF(G21>0,ArraySep(F21,\" \",2),\"\")","v":"TL"},300]
["426","Erdal EKE","6th Annual Conference on Humanities and Social Sciences","Barcelona","5","1500.00 TL",{"$f":"IFERROR(VALUE(SUBSTITUTE(ArraySep(F22,\" \",1),\".\",\",\")),0)","v":1500},{"$f":"IF(G22>0,ArraySep(F22,\" \",2),\"\")","v":"TL"},300]
["428","Şirvan ŞEN DEMİR","21. Doğu Akdeniz Uluslararası Turizm ve Seyahat Fuarı","Otel","4","600.00 TL",{"$f":"IFERROR(VALUE(SUBSTITUTE(ArraySep(F23,\" \",1),\".\",\",\")),0)","v":600},{"$f":"IF(G23>0,ArraySep(F23,\" \",2),\"\")","v":"TL"},150]
["429","Mahmut DEMİR","21. Doğu Akdeniz Uluslararası Turizm ve Seyahat Fuarı","Otel","4","600.00 TL",{"$f":"IFERROR(VALUE(SUBSTITUTE(ArraySep(F24,\" \",1),\".\",\",\")),0)","v":600},{"$f":"IF(G24>0,ArraySep(F24,\" \",2),\"\")","v":"TL"},150]
["431","Ceylan YOL","The WEI International Academic Conference on Education and Humanities in Barcelona","otel","3","300.00 EURO",{"$f":"IFERROR(VALUE(SUBSTITUTE(ArraySep(F25,\" \",1),\".\",\",\")),0)","v":300},{"$f":"IF(G25>0,ArraySep(F25,\" \",2),\"\")","v":"EURO"},350]
["432","Osman ÇÖLLÜ","6th Annual Conference on Humanities and Social Sciences","Barselona","5","1500.00 TL",{"$f":"IFERROR(VALUE(SUBSTITUTE(ArraySep(F26,\" \",1),\".\",\",\")),0)","v":1500},{"$f":"IF(G26>0,ArraySep(F26,\" \",2),\"\")","v":"TL"},300]
["433","Zeynep Gazali DEMİRTAŞ","6th Annual Conference on Humanities and Social Sciences","Barselona","5","1500.00 TL",{"$f":"IFERROR(VALUE(SUBSTITUTE(ArraySep(F27,\" \",1),\".\",\",\")),0)","v":1500},{"$f":"IF(G27>0,ArraySep(F27,\" \",2),\"\")","v":"TL"},300]
["434","Ahmet TOLUNAY","Mesleki Örgütlenmesini Yapmış Meslek Mensuplarının Örgütsel Kazançları","İstanbul","2","100.00 TL",{"$f":"IFERROR(VALUE(SUBSTITUTE(ArraySep(F28,\" \",1),\".\",\",\")),0)","v":100},{"$f":"IF(G28>0,ArraySep(F28,\" \",2),\"\")","v":"TL"},50]
["435","Ahmet TOLUNAY","Mesleki Örgütlenmesini Tamamlamış Meslek Mensuplarının Örgütsel Kazançları","Ankara","2","100.00 TL",{"$f":"IFERROR(VALUE(SUBSTITUTE(ArraySep(F29,\" \",1),\".\",\",\")),0)","v":100},{"$f":"IF(G29>0,ArraySep(F29,\" \",2),\"\")","v":"TL"},50]
["436","Ahmet TOLUNAY","Mesleki Örgütlenmesini Tamamlamış Meslek Mensuplarının Örgütsel Kazançları","İzmir","2","100.00 TL",{"$f":"IFERROR(VALUE(SUBSTITUTE(ArraySep(F30,\" \",1),\".\",\",\")),0)","v":100},{"$f":"IF(G30>0,ArraySep(F30,\" \",2),\"\")","v":"TL"},50]
["437","Ahmet TOLUNAY","Mesleki Örgütlenmesini Tamamlamış Meslek Mensuplarının Örgütsel Kazançları","Adana","2","100.00 TL",{"$f":"IFERROR(VALUE(SUBSTITUTE(ArraySep(F31,\" \",1),\".\",\",\")),0)","v":100},{"$f":"IF(G31>0,ArraySep(F31,\" \",2),\"\")","v":"TL"},50]
["438","Ahmet TOLUNAY","Mesleki Örgütlenmesini Tamamlamış Meslek Mensuplarının Örgütsel Kazançları","İstanbul","2","100.00 TL",{"$f":"IFERROR(VALUE(SUBSTITUTE(ArraySep(F32,\" \",1),\".\",\",\")),0)","v":100},{"$f":"IF(G32>0,ArraySep(F32,\" \",2),\"\")","v":"TL"},50]
["440","Ahmet ALKAN","6th Annual Conference on Humanities and Social Sciences","travelodge Otel","5","500.00 TL",{"$f":"IFERROR(VALUE(SUBSTITUTE(ArraySep(F33,\" \",1),\".\",\",\")),0)","v":500},{"$f":"IF(G33>0,ArraySep(F33,\" \",2),\"\")","v":"TL"},100]
["442","Devrim VURAL YILMAZ","INTCESS 2017- 4th INTERNATIONAL CONFERENCE ON EDUCATION, AND SOCIAL SCIENCES","nippon otel istanbul","2","130.00 EURO",{"$f":"IFERROR(VALUE(SUBSTITUTE(ArraySep(F34,\" \",1),\".\",\",\")),0)","v":130},{"$f":"IF(G34>0,ArraySep(F34,\" \",2),\"\")","v":"EURO"},227.5]
["445","Mehmet Ali KOYUNCU","10 th International Frutic Symposium Quality and Safety of Fresh Horticultural commodities","Hotel","4","1375.00 TL",{"$f":"IFERROR(VALUE(SUBSTITUTE(ArraySep(F35,\" \",1),\".\",\",\")),0)","v":1375},{"$f":"IF(G35>0,ArraySep(F35,\" \",2),\"\")","v":"TL"},343.75]
["446","Mehmet Ali KOYUNCU","10 th International Frutic Symposium Quality and Safety of Fresh Horticultural Commodities","Hotel","4","1375.00 TL",{"$f":"IFERROR(VALUE(SUBSTITUTE(ArraySep(F36,\" \",1),\".\",\",\")),0)","v":1375},{"$f":"IF(G36>0,ArraySep(F36,\" \",2),\"\")","v":"TL"},343.75]
["450","DİLRUBA İZGÜDEN","6th Annual Conference on Humanities and Social Sciences","Travelodge Barcelona Poblenou","7","156.50 EURO",{"$f":"IFERROR(VALUE(SUBSTITUTE(ArraySep(F37,\" \",1),\".\",\",\")),0)","v":156.5},{"$f":"IF(G37>0,ArraySep(F37,\" \",2),\"\")","v":"EURO"},78.25]
["452","Nurdan ORAL KARA","6th Annual Conference on Humanities and Social Sciences (AGP 2017)","Travelodge Barcelona Poblenou","5","300.00 EURO",{"$f":"IFERROR(VALUE(SUBSTITUTE(ArraySep(F38,\" \",1),\".\",\",\")),0)","v":300},{"$f":"IF(G38>0,ArraySep(F38,\" \",2),\"\")","v":"EURO"},210]
["454","Aslı VERGİLİ","6th Annual Conference on Humanities and Social Sciences (AGP 2017)","Hotel Oasis","6","600.00 TL",{"$f":"IFERROR(VALUE(SUBSTITUTE(ArraySep(F39,\" \",1),\".\",\",\")),0)","v":600},{"$f":"IF(G39>0,ArraySep(F39,\" \",2),\"\")","v":"TL"},100]
["458","KEVSER SEZER KORUCU","6th Annual Conference on Humanities and Social Sciences","HOTEL OASİS","6","600.00 TL",{"$f":"IFERROR(VALUE(SUBSTITUTE(ArraySep(F40,\" \",1),\".\",\",\")),0)","v":600},{"$f":"IF(G40>0,ArraySep(F40,\" \",2),\"\")","v":"TL"},100]
["460","MERVE UYSAL","Annual International Conference on Humanities and Social Sciences","Hotel Oasis","6","600.00 TL",{"$f":"IFERROR(VALUE(SUBSTITUTE(ArraySep(F41,\" \",1),\".\",\",\")),0)","v":600},{"$f":"IF(G41>0,ArraySep(F41,\" \",2),\"\")","v":"TL"},100]

{"sheet":"Ulaşım","index":3,"n_rows":312,"n_cols":11,"rows_kept":312,"cut":false,"hidden":false,"merged":[]}
["BaşvuruId","Adı Soyadı","EtkinlikAdi","Hareket Yönü","UlasimBaslangic","UlasimBitis","Araç","Tutar","Ücret","Para Cinsi","Gider"]
["256","SELİN EROYMAK","6th Annual Conference on Humanities and Social Sciences","Gidiş","ısparta","antalya","Karayolu","20.00 TL",{"$f":"IFERROR(VALUE(SUBSTITUTE(ArraySep(H2,\" \",1),\".\",\",\")),0)","v":20},{"$f":"IF(I2>0,ArraySep(H2,\" \",2),\"\")","v":"TL"},{"$f":"I2*IF(J2=\"DOLAR\",3,IF(J2=\"EURO\",3.5,1))","v":20}]
["256","SELİN EROYMAK","6th Annual Conference on Humanities and Social Sciences","Gidiş","antalya","istanbul","Uçak","445.00 TL",{"$f":"IFERROR(VALUE(SUBSTITUTE(ArraySep(H3,\" \",1),\".\",\",\")),0)","v":445},{"$f":"IF(I3>0,ArraySep(H3,\" \",2),\"\")","v":"TL"},{"$f":"I3*IF(J3=\"DOLAR\",3,IF(J3=\"EURO\",3.5,1))","v":445}]
["256","SELİN EROYMAK","6th Annual Conference on Humanities and Social Sciences","Dönüş","antalya","ısparta","Karayolu","20.00 TL",{"$f":"IFERROR(VALUE(SUBSTITUTE(ArraySep(H4,\" \",1),\".\",\",\")),0)","v":20},{"$f":"IF(I4>0,ArraySep(H4,\" \",2),\"\")","v":"TL"},20]
["256","SELİN EROYMAK","6th Annual Conference on Humanities and Social Sciences","Dönüş","antalya","ısparta","Uçak","445.00 TL",{"$f":"IFERROR(VALUE(SUBSTITUTE(ArraySep(H5,\" \",1),\".\",\",\")),0)","v":445},{"$f":"IF(I5>0,ArraySep(H5,\" \",2),\"\")","v":"TL"},445]
["307","Ömer Kürşad TÜFEKCİ","The Relationship between Personality Traits of Employees and Service Orientation and Job Satisfaction in Food and Beverage Department: A Cross Cultural Research","Gidiş","20.01.2017","NULL","Uçak","1132.50 TL",{"$f":"IFERROR(VALUE(SUBSTITUTE(ArraySep(H6,\" \",1),\".\",\",\")),0)","v":1132.5},{"$f":"IF(I6>0,ArraySep(H6,\" \",2),\"\")","v":"TL"},1132.5]
["307","Ömer Kürşad TÜFEKCİ","The Relationship between Personality Traits of Employees and Service Orientation and Job Satisfaction in Food and Beverage Department: A Cross Cultural Research","Dönüş","NULL","28.01.2017","Uçak","1132.50 TL",{"$f":"IFERROR(VALUE(SUBSTITUTE(ArraySep(H7,\" \",1),\".\",\",\")),0)","v":1132.5},{"$f":"IF(I7>0,ArraySep(H7,\" \",2),\"\")","v":"TL"},1132.5]
["336","Nevzat ÖZGÜR","Stanford Geothermal Workshop 42nd Annual","Dönüş","San Francisco","Antalya","Uçak","1500.00 TL",{"$f":"IFERROR(VALUE(SUBSTITUTE(ArraySep(H8,\" \",1),\".\",\",\")),0)","v":1500},{"$f":"IF(I8>0,ArraySep(H8,\" \",2),\"\")","v":"TL"},1500]
["336","Nevzat ÖZGÜR","Stanford Geothermal Workshop 42nd Annual","Gidiş","antalya","San francisco","Uçak","1500.00 DOLAR",{"$f":"IFERROR(VALUE(SUBSTITUTE(ArraySep(H9,\" \",1),\".\",\",\")),0)","v":1500},{"$f":"IF(I9>0,ArraySep(H9,\" \",2),\"\")","v":"DOLAR"},4500]
["339","Bilal ÇİĞ","International Conference on Reproductive Biology and Comparative Endocrinology (ICRBCE) and 35th Annual Meeting  of The Society for Reproductive Biology  and Comparative Endocrinology","Gidiş","Isparta","Haidarabad","Uçak","1835.00 TL",{"$f":"IFERROR(VALUE(SUBSTITUTE(ArraySep(H10,\" \",1),\".\",\",\")),0)","v":1835},{"$f":"IF(I10>0,ArraySep(H10,\" \",2),\"\")","v":"TL"},1835]
["339","Bilal ÇİĞ","International Conference on Reproductive Biology and Comparative Endocrinology (ICRBCE) and 35th Annual Meeting  of The Society for Reproductive Biology  and Comparative Endocrinology","Dönüş","Haidarabad","Isparta","Uçak","1835.00 TL",{"$f":"IFERROR(VALUE(SUBSTITUTE(ArraySep(H11,\" \",1),\".\",\",\")),0)","v":1835},{"$f":"IF(I11>0,ArraySep(H11,\" \",2),\"\")","v":"TL"},1835]
["339","Bilal ÇİĞ","International Conference on Reproductive Biology and Comparative Endocrinology (ICRBCE) and 35th Annual Meeting  of The Society for Reproductive Biology  and Comparative Endocrinology","Gidiş","Isparta","Haidarabad","Uçak","1835.00 TL",{"$f":"IFERROR(VALUE(SUBSTITUTE(ArraySep(H12,\" \",1),\".\",\",\")),0)","v":1835},{"$f":"IF(I12>0,ArraySep(H12,\" \",2),\"\")","v":"TL"},1835]
["339","Bilal ÇİĞ","International Conference on Reproductive Biology and Comparative Endocrinology (ICRBCE) and 35th Annual Meeting  of The Society for Reproductive Biology  and Comparative Endocrinology","Dönüş","Haidarabad","Isparta","Uçak","1835.00 TL",{"$f":"IFERROR(VALUE(SUBSTITUTE(ArraySep(H13,\" \",1),\".\",\",\")),0)","v":1835},{"$f":"IF(I13>0,ArraySep(H13,\" \",2),\"\")","v":"TL"},1835]
["343","Ahmi ÖZ","International Conference on Reproductive Biology and Comparative Endocrinology (ICRBCE)  and  35th Annual Meeting of  Society for Reproductive Biology and Comparative Endocrinology","Gidiş","Isparta","İstanbul","Uçak","80.00 TL",{"$f":"IFERROR(VALUE(SUBSTITUTE(ArraySep(H14,\" \",1),\".\",\",\")),0)","v":80},{"$f":"IF(I14>0,ArraySep(H14,\" \",2),\"\")","v":"TL"},80]
["343","Ahmi ÖZ","International Conference on Reproductive Biology and Comparative Endocrinology (ICRBCE)  and  35th Annual Meeting of  Society for Reproductive Biology and Comparative Endocrinology","Gidiş","İstanbul","Hayderabad","Uçak","1785.00 TL",{"$f":"IFERROR(VALUE(SUBSTITUTE(ArraySep(H15,\" \",1),\".\",\",\")),0)","v":1785},{"$f":"IF(I15>0,ArraySep(H15,\" \",2),\"\")","v":"TL"},1785]
["343","Ahmi ÖZ","International Conference on Reproductive Biology and Comparative Endocrinology (ICRBCE)  and  35th Annual Meeting of  Society for Reproductive Biology and Comparative Endocrinology","Dönüş","Hayderbad","İstanbul","Uçak","1785.00 TL",{"$f":"IFERROR(VALUE(SUBSTITUTE(ArraySep(H16,\" \",1),\".\",\",\")),0)","v":1785},{"$f":"IF(I16>0,ArraySep(H16,\" \",2),\"\")","v":"TL"},1785]
["343","Ahmi ÖZ","International Conference on Reproductive Biology and Comparative Endocrinology (ICRBCE)  and  35th Annual Meeting of  Society for Reproductive Biology and Comparative Endocrinology","Dönüş","İstanbul","Isparta","Uçak","80.00 TL",{"$f":"IFERROR(VALUE(SUBSTITUTE(ArraySep(H17,\" \",1),\".\",\",\")),0)","v":80},{"$f":"IF(I17>0,ArraySep(H17,\" \",2),\"\")","v":"TL"},80]
["346","Mustafa NAZIROĞLU","International Conference on Reproductive Biology and Comparative Endocrinology and The 35th Annual Meeting of The Society for Reproductive Biology and Comparative Endocrinology and  and The 35th Annual Meeting of The Society for Reproductive Biology and Comparative Endocrinology","Gidiş","Isparta","Hyderabad","Uçak","1983.00 TL",{"$f":"IFERROR(VALUE(SUBSTITUTE(ArraySep(H18,\" \",1),\".\",\",\")),0)","v":1983},{"$f":"IF(I18>0,ArraySep(H18,\" \",2),\"\")","v":"TL"},1983]
["346","Mustafa NAZIROĞLU","International Conference on Reproductive Biology and Comparative Endocrinology and The 35th Annual Meeting of The Society for Reproductive Biology and Comparative Endocrinology and  and The 35th Annual Meeting of The Society for Reproductive Biology and Comparative Endocrinology","Dönüş","Hyderabad","Antalya","Uçak","1983.00 TL",{"$f":"IFERROR(VALUE(SUBSTITUTE(ArraySep(H19,\" \",1),\".\",\",\")),0)","v":1983},{"$f":"IF(I19>0,ArraySep(H19,\" \",2),\"\")","v":"TL"},1983]
["346","Mustafa NAZIROĞLU","International Conference on Reproductive Biology and Comparative Endocrinology and The 35th Annual Meeting of The Society for Reproductive Biology and Comparative Endocrinology and  and The 35th Annual Meeting of The Society for Reproductive Biology and Comparative Endocrinology","Dönüş","Antalya","Isparta","Karayolu","40.00 TL",{"$f":"IFERROR(VALUE(SUBSTITUTE(ArraySep(H20,\" \",1),\".\",\",\")),0)","v":40},{"$f":"IF(I20>0,ArraySep(H20,\" \",2),\"\")","v":"TL"},40]
["346","Mustafa NAZIROĞLU","International Conference on Reproductive Biology and Comparative Endocrinology and The 35th Annual Meeting of The Society for Reproductive Biology and Comparative Endocrinology and  and The 35th Annual Meeting of The Society for Reproductive Biology and Comparative Endocrinology","Dönüş","Hyderabad","Antalya","Uçak","1983.00 TL",{"$f":"IFERROR(VALUE(SUBSTITUTE(ArraySep(H21,\" \",1),\".\",\",\")),0)","v":1983},{"$f":"IF(I21>0,ArraySep(H21,\" \",2),\"\")","v":"TL"},1983]
["346","Mustafa NAZIROĞLU","International Conference on Reproductive Biology and Comparative Endocrinology and The 35th Annual Meeting of The Society for Reproductive Biology and Comparative Endocrinology and  and The 35th Annual Meeting of The Society for Reproductive Biology and Comparative Endocrinology","Dönüş","Antalya","Isparta","Karayolu","40.00 TL",{"$f":"IFERROR(VALUE(SUBSTITUTE(ArraySep(H22,\" \",1),\".\",\",\")),0)","v":40},{"$f":"IF(I22>0,ArraySep(H22,\" \",2),\"\")","v":"TL"},40]
["346","Mustafa NAZIROĞLU","International Conference on Reproductive Biology and Comparative Endocrinology and The 35th Annual Meeting of The Society for Reproductive Biology and Comparative Endocrinology and  and The 35th Annual Meeting of The Society for Reproductive Biology and Comparative Endocrinology","Gidiş","Isparta","Hyderabad","Uçak","1983.00 TL",{"$f":"IFERROR(VALUE(SUBSTITUTE(ArraySep(H23,\" \",1),\".\",\",\")),0)","v":1983},{"$f":"IF(I23>0,ArraySep(H23,\" \",2),\"\")","v":"TL"},1983]
["348","Asım Sinan YÜKSEL","Erasmus Ders Verme Hareketliliği","Gidiş","07.01.2017","NULL","Uçak","950.00 TL",{"$f":"IFERROR(VALUE(SUBSTITUTE(ArraySep(H24,\" \",1),\".\",\",\")),0)","v":950},{"$f":"IF(I24>0,ArraySep(H24,\" \",2),\"\")","v":"TL"},950]
["348","Asım Sinan YÜKSEL","Erasmus Ders Verme Hareketliliği","Dönüş","17.01.2017","NULL","Uçak","950.00 TL",{"$f":"IFERROR(VALUE(SUBSTITUTE(ArraySep(H25,\" \",1),\".\",\",\")),0)","v":950},{"$f":"IF(I25>0,ArraySep(H25,\" \",2),\"\")","v":"TL"},950]
["349","Şadi Fuat ÇANKAYA","Erasmus Ders Alma Hareketliliği","Gidiş","07.01.2017","NULL","Uçak","950.00 TL",{"$f":"IFERROR(VALUE(SUBSTITUTE(ArraySep(H26,\" \",1),\".\",\",\")),0)","v":950},{"$f":"IF(I26>0,ArraySep(H26,\" \",2),\"\")","v":"TL"},950]
["349","Şadi Fuat ÇANKAYA","Erasmus Ders Alma Hareketliliği","Dönüş","17.01.2017","NULL","Uçak","950.00 TL",{"$f":"IFERROR(VALUE(SUBSTITUTE(ArraySep(H27,\" \",1),\".\",\",\")),0)","v":950},{"$f":"IF(I27>0,ArraySep(H27,\" \",2),\"\")","v":"TL"},950]
["359","Gürkan KALKAN","YİYECEK İÇECEK DEPARTMANINDA ÇALIŞANLARIN BEŞ FAKTÖR KİŞİLİK ÖZELLİKLERİNİN HİZMET VERMEYE YATKINLIĞI VE İŞ TATMİNİ DÜZEYLERİ ARASINDAKİ İLİŞKİLERİ; KÜLTÜRLER ARASI KARŞILAŞTIRMALI BİR ARAŞTIRMA","Gidiş","Isparta","Chonburi","Uçak","1125.00 TL",{"$f":"IFERROR(VALUE(SUBSTITUTE(ArraySep(H28,\" \",1),\".\",\",\")),0)","v":1125},{"$f":"IF(I28>0,ArraySep(H28,\" \",2),\"\")","v":"TL"},1125]
["359","Gürkan KALKAN","YİYECEK İÇECEK DEPARTMANINDA ÇALIŞANLARIN BEŞ FAKTÖR KİŞİLİK ÖZELLİKLERİNİN HİZMET VERMEYE YATKINLIĞI VE İŞ TATMİNİ DÜZEYLERİ ARASINDAKİ İLİŞKİLERİ; KÜLTÜRLER ARASI KARŞILAŞTIRMALI BİR ARAŞTIRMA","Dönüş","Chonburi","Isparta","Uçak","1125.00 TL",{"$f":"IFERROR(VALUE(SUBSTITUTE(ArraySep(H29,\" \",1),\".\",\",\")),0)","v":1125},{"$f":"IF(I29>0,ArraySep(H29,\" \",2),\"\")","v":"TL"},1125]
["359","Gürkan KALKAN","YİYECEK İÇECEK DEPARTMANINDA ÇALIŞANLARIN BEŞ FAKTÖR KİŞİLİK ÖZELLİKLERİNİN HİZMET VERMEYE YATKINLIĞI VE İŞ TATMİNİ DÜZEYLERİ ARASINDAKİ İLİŞKİLERİ; KÜLTÜRLER ARASI KARŞILAŞTIRMALI BİR ARAŞTIRMA","Gidiş","Isparta","Chonburi","Uçak","1125.00 TL",{"$f":"IFERROR(VALUE(SUBSTITUTE(ArraySep(H30,\" \",1),\".\",\",\")),0)","v":1125},{"$f":"IF(I30>0,ArraySep(H30,\" \",2),\"\")","v":"TL"},1125]
["359","Gürkan KALKAN","YİYECEK İÇECEK DEPARTMANINDA ÇALIŞANLARIN BEŞ FAKTÖR KİŞİLİK ÖZELLİKLERİNİN HİZMET VERMEYE YATKINLIĞI VE İŞ TATMİNİ DÜZEYLERİ ARASINDAKİ İLİŞKİLERİ; KÜLTÜRLER ARASI KARŞILAŞTIRMALI BİR ARAŞTIRMA","Dönüş","Chonburi","Isparta","Uçak","1125.00 TL",{"$f":"IFERROR(VALUE(SUBSTITUTE(ArraySep(H31,\" \",1),\".\",\",\")),0)","v":1125},{"$f":"IF(I31>0,ArraySep(H31,\" \",2),\"\")","v":"TL"},1125]
["365","Muharrem Zafer ÇAĞLAR","Mesleki görgü ve bilgimi geliştirmek ve medya çalışmaları hakkında bilgi edinmek amacıyla, İspanya'nın Başkenti Madrid ve önemli şehirlerinden Barselona'yı performans puanlarımdan karşılanmak üzere ziyaret etmek.","Gidiş","Isparta","İstanbul","Uçak","125.00 TL",{"$f":"IFERROR(VALUE(SUBSTITUTE(ArraySep(H32,\" \",1),\".\",\",\")),0)","v":125},{"$f":"IF(I32>0,ArraySep(H32,\" \",2),\"\")","v":"TL"},125]
["365","Muharrem Zafer ÇAĞLAR","Mesleki görgü ve bilgimi geliştirmek ve medya çalışmaları hakkında bilgi edinmek amacıyla, İspanya'nın Başkenti Madrid ve önemli şehirlerinden Barselona'yı performans puanlarımdan karşılanmak üzere ziyaret etmek.","Gidiş","İstanbul","Madrid","Uçak","400.00 TL",{"$f":"IFERROR(VALUE(SUBSTITUTE(ArraySep(H33,\" \",1),\".\",\",\")),0)","v":400},{"$f":"IF(I33>0,ArraySep(H33,\" \",2),\"\")","v":"TL"},400]
["365","Muharrem Zafer ÇAĞLAR","Mesleki görgü ve bilgimi geliştirmek ve medya çalışmaları hakkında bilgi edinmek amacıyla, İspanya'nın Başkenti Madrid ve önemli şehirlerinden Barselona'yı performans puanlarımdan karşılanmak üzere ziyaret etmek.","Dönüş","Barcelona","İstanbul","Uçak","400.00 TL",{"$f":"IFERROR(VALUE(SUBSTITUTE(ArraySep(H34,\" \",1),\".\",\",\")),0)","v":400},{"$f":"IF(I34>0,ArraySep(H34,\" \",2),\"\")","v":"TL"},400]
["365","Muharrem Zafer ÇAĞLAR","Mesleki görgü ve bilgimi geliştirmek ve medya çalışmaları hakkında bilgi edinmek amacıyla, İspanya'nın Başkenti Madrid ve önemli şehirlerinden Barselona'yı performans puanlarımdan karşılanmak üzere ziyaret etmek.","Dönüş","İstanbul","Isparta","Uçak","125.00 TL",{"$f":"IFERROR(VALUE(SUBSTITUTE(ArraySep(H35,\" \",1),\".\",\",\")),0)","v":125},{"$f":"IF(I35>0,ArraySep(H35,\" \",2),\"\")","v":"TL"},125]
["365","Muharrem Zafer ÇAĞLAR","Mesleki görgü ve bilgimi geliştirmek ve medya çalışmaları hakkında bilgi edinmek amacıyla, İspanya'nın Başkenti Madrid ve önemli şehirlerinden Barselona'yı performans puanlarımdan karşılanmak üzere ziyaret etmek.","Gidiş","Isparta","İstanbul","Uçak","125.00 TL",{"$f":"IFERROR(VALUE(SUBSTITUTE(ArraySep(H36,\" \",1),\".\",\",\")),0)","v":125},{"$f":"IF(I36>0,ArraySep(H36,\" \",2),\"\")","v":"TL"},125]
["365","Muharrem Zafer ÇAĞLAR","Mesleki görgü ve bilgimi geliştirmek ve medya çalışmaları hakkında bilgi edinmek amacıyla, İspanya'nın Başkenti Madrid ve önemli şehirlerinden Barselona'yı performans puanlarımdan karşılanmak üzere ziyaret etmek.","Gidiş","İstanbul","Madrid","Uçak","400.00 TL",{"$f":"IFERROR(VALUE(SUBSTITUTE(ArraySep(H37,\" \",1),\".\",\",\")),0)","v":400},{"$f":"IF(I37>0,ArraySep(H37,\" \",2),\"\")","v":"TL"},400]
["365","Muharrem Zafer ÇAĞLAR","Mesleki görgü ve bilgimi geliştirmek ve medya çalışmaları hakkında bilgi edinmek amacıyla, İspanya'nın Başkenti Madrid ve önemli şehirlerinden Barselona'yı performans puanlarımdan karşılanmak üzere ziyaret etmek.","Dönüş","Barcelona","İstanbul","Uçak","400.00 TL",{"$f":"IFERROR(VALUE(SUBSTITUTE(ArraySep(H38,\" \",1),\".\",\",\")),0)","v":400},{"$f":"IF(I38>0,ArraySep(H38,\" \",2),\"\")","v":"TL"},400]
["365","Muharrem Zafer ÇAĞLAR","Mesleki görgü ve bilgimi geliştirmek ve medya çalışmaları hakkında bilgi edinmek amacıyla, İspanya'nın Başkenti Madrid ve önemli şehirlerinden Barselona'yı performans puanlarımdan karşılanmak üzere ziyaret etmek.","Dönüş","İstanbul","Isparta","Uçak","125.00 TL",{"$f":"IFERROR(VALUE(SUBSTITUTE(ArraySep(H39,\" \",1),\".\",\",\")),0)","v":125},{"$f":"IF(I39>0,ArraySep(H39,\" \",2),\"\")","v":"TL"},125]
["367","Personel Daire Başkanlığı","232","Gidiş","5453","543","Resmi","0.00 TL",{"$f":"IFERROR(VALUE(SUBSTITUTE(ArraySep(H40,\" \",1),\".\",\",\")),0)","v":0},{"$f":"IF(I40>0,ArraySep(H40,\" \",2),\"\")","v":""},0]
["370","Hüseyin FAKİR","Orman Fakültesi Dekanlar Toplantısı","Gidiş","06.12.2016","07.12.2016","Karayolu","190.00 TL",{"$f":"IFERROR(VALUE(SUBSTITUTE(ArraySep(H41,\" \",1),\".\",\",\")),0)","v":190},{"$f":"IF(I41>0,ArraySep(H41,\" \",2),\"\")","v":"TL"},190]
["371","Ömer ÇON","EU Clinical Trial Regulation New Legal Framework for Multicenter Clinical Trials","Gidiş","Antalya","Basel","Uçak","500.00 TL",{"$f":"IFERROR(VALUE(SUBSTITUTE(ArraySep(H42,\" \",1),\".\",\",\")),0)","v":500},{"$f":"IF(I42>0,ArraySep(H42,\" \",2),\"\")","v":"TL"},500]
["371","Ömer ÇON","EU Clinical Trial Regulation New Legal Framework for Multicenter Clinical Trials","Dönüş","basel","antalya","Uçak","500.00 TL",{"$f":"IFERROR(VALUE(SUBSTITUTE(ArraySep(H43,\" \",1),\".\",\",\")),0)","v":500},{"$f":"IF(I43>0,ArraySep(H43,\" \",2),\"\")","v":"TL"},500]
["372","Abdurrahman KAVASOĞLU","EU Clinical Trial Regulation New Legal Framework for Multicenter Clinical Trials","Gidiş","antalya","basel","Uçak","500.00 TL",{"$f":"IFERROR(VALUE(SUBSTITUTE(ArraySep(H44,\" \",1),\".\",\",\")),0)","v":500},{"$f":"IF(I44>0,ArraySep(H44,\" \",2),\"\")","v":"TL"},500]
["372","Abdurrahman KAVASOĞLU","EU Clinical Trial Regulation New Legal Framework for Multicenter Clinical Trials","Dönüş","basel","antalya","Uçak","500.00 TL",{"$f":"IFERROR(VALUE(SUBSTITUTE(ArraySep(H45,\" \",1),\".\",\",\")),0)","v":500},{"$f":"IF(I45>0,ArraySep(H45,\" \",2),\"\")","v":"TL"},500]
["373","Gürkan KALKAN","YİYECEK İÇECEK DEPARTMANINDA ÇALIŞANLARIN BEŞ FAKTÖR KİŞİLİK ÖZELLİKLERİNİN HİZMET VERMEYE YATKINLIĞI VE İŞ TATMİNİ DÜZEYLERİ ARASINDAKİ İLİŞKİLERİ; KÜLTÜRLER ARASI KARŞILAŞTIRMALI BİR ARAŞTIRMA","Gidiş","Isparta","Belek","Karayolu","50.00 TL",{"$f":"IFERROR(VALUE(SUBSTITUTE(ArraySep(H46,\" \",1),\".\",\",\")),0)","v":50},{"$f":"IF(I46>0,ArraySep(H46,\" \",2),\"\")","v":"TL"},50]
["373","Gürkan KALKAN","YİYECEK İÇECEK DEPARTMANINDA ÇALIŞANLARIN BEŞ FAKTÖR KİŞİLİK ÖZELLİKLERİNİN HİZMET VERMEYE YATKINLIĞI VE İŞ TATMİNİ DÜZEYLERİ ARASINDAKİ İLİŞKİLERİ; KÜLTÜRLER ARASI KARŞILAŞTIRMALI BİR ARAŞTIRMA","Dönüş","Belek","Isparta","Karayolu","50.00 TL",{"$f":"IFERROR(VALUE(SUBSTITUTE(ArraySep(H47,\" \",1),\".\",\",\")),0)","v":50},{"$f":"IF(I47>0,ArraySep(H47,\" \",2),\"\")","v":"TL"},50]
["373","Gürkan KALKAN","YİYECEK İÇECEK DEPARTMANINDA ÇALIŞANLARIN BEŞ FAKTÖR KİŞİLİK ÖZELLİKLERİNİN HİZMET VERMEYE YATKINLIĞI VE İŞ TATMİNİ DÜZEYLERİ ARASINDAKİ İLİŞKİLERİ; KÜLTÜRLER ARASI KARŞILAŞTIRMALI BİR ARAŞTIRMA","Gidiş","Isparta","Belek","Karayolu","50.00 TL",{"$f":"IFERROR(VALUE(SUBSTITUTE(ArraySep(H48,\" \",1),\".\",\",\")),0)","v":50},{"$f":"IF(I48>0,ArraySep(H48,\" \",2),\"\")","v":"TL"},50]
["373","Gürkan KALKAN","YİYECEK İÇECEK DEPARTMANINDA ÇALIŞANLARIN BEŞ FAKTÖR KİŞİLİK ÖZELLİKLERİNİN HİZMET VERMEYE YATKINLIĞI VE İŞ TATMİNİ DÜZEYLERİ ARASINDAKİ İLİŞKİLERİ; KÜLTÜRLER ARASI KARŞILAŞTIRMALI BİR ARAŞTIRMA","Dönüş","Belek","Isparta","Karayolu","50.00 TL",{"$f":"IFERROR(VALUE(SUBSTITUTE(ArraySep(H49,\" \",1),\".\",\",\")),0)","v":50},{"$f":"IF(I49>0,ArraySep(H49,\" \",2),\"\")","v":"TL"},50]
["375","Gürkan KALKAN","YİYECEK İÇECEK DEPARTMANINDA ÇALIŞANLARIN BEŞ FAKTÖR KİŞİLİK ÖZELLİKLERİNİN HİZMET VERMEYE YATKINLIĞI VE İŞ TATMİNİ DÜZEYLERİ ARASINDAKİ İLİŞKİLERİ; KÜLTÜRLER ARASI KARŞILAŞTIRMALI BİR ARAŞTIRMA","Gidiş","Isparta","Belek","Karayolu","50.00 TL",{"$f":"IFERROR(VALUE(SUBSTITUTE(ArraySep(H50,\" \",1),\".\",\",\")),0)","v":50},{"$f":"IF(I50>0,ArraySep(H50,\" \",2),\"\")","v":"TL"},50]
["375","Gürkan KALKAN","YİYECEK İÇECEK DEPARTMANINDA ÇALIŞANLARIN BEŞ FAKTÖR KİŞİLİK ÖZELLİKLERİNİN HİZMET VERMEYE YATKINLIĞI VE İŞ TATMİNİ DÜZEYLERİ ARASINDAKİ İLİŞKİLERİ; KÜLTÜRLER ARASI KARŞILAŞTIRMALI BİR ARAŞTIRMA","Dönüş","Belek","Antalya","Karayolu","50.00 TL",{"$f":"IFERROR(VALUE(SUBSTITUTE(ArraySep(H51,\" \",1),\".\",\",\")),0)","v":50},{"$f":"IF(I51>0,ArraySep(H51,\" \",2),\"\")","v":"TL"},50]
["375","Gürkan KALKAN","YİYECEK İÇECEK DEPARTMANINDA ÇALIŞANLARIN BEŞ FAKTÖR KİŞİLİK ÖZELLİKLERİNİN HİZMET VERMEYE YATKINLIĞI VE İŞ TATMİNİ DÜZEYLERİ ARASINDAKİ İLİŞKİLERİ; KÜLTÜRLER ARASI KARŞILAŞTIRMALI BİR ARAŞTIRMA","Gidiş","Isparta","Belek","Karayolu","50.00 TL",{"$f":"IFERROR(VALUE(SUBSTITUTE(ArraySep(H52,\" \",1),\".\",\",\")),0)","v":50},{"$f":"IF(I52>0,ArraySep(H52,\" \",2),\"\")","v":"TL"},50]
["375","Gürkan KALKAN","YİYECEK İÇECEK DEPARTMANINDA ÇALIŞANLARIN BEŞ FAKTÖR KİŞİLİK ÖZELLİKLERİNİN HİZMET VERMEYE YATKINLIĞI VE İŞ TATMİNİ DÜZEYLERİ ARASINDAKİ İLİŞKİLERİ; KÜLTÜRLER ARASI KARŞILAŞTIRMALI BİR ARAŞTIRMA","Dönüş","Belek","Antalya","Karayolu","50.00 TL",{"$f":"IFERROR(VALUE(SUBSTITUTE(ArraySep(H53,\" \",1),\".\",\",\")),0)","v":50},{"$f":"IF(I53>0,ArraySep(H53,\" \",2),\"\")","v":"TL"},50]
["376","Gürkan KALKAN","YİYECEK İÇECEK DEPARTMANINDA ÇALIŞANLARIN BEŞ FAKTÖR KİŞİLİK ÖZELLİKLERİNİN HİZMET VERMEYE YATKINLIĞI VE İŞ TATMİNİ DÜZEYLERİ ARASINDAKİ İLİŞKİLERİ; KÜLTÜRLER ARASI KARŞILAŞTIRMALI BİR ARAŞTIRMA","Gidiş","Isparta","Belek","Karayolu","50.00 TL",{"$f":"IFERROR(VALUE(SUBSTITUTE(ArraySep(H54,\" \",1),\".\",\",\")),0)","v":50},{"$f":"IF(I54>0,ArraySep(H54,\" \",2),\"\")","v":"TL"},50]
["376","Gürkan KALKAN","YİYECEK İÇECEK DEPARTMANINDA ÇALIŞANLARIN BEŞ FAKTÖR KİŞİLİK ÖZELLİKLERİNİN HİZMET VERMEYE YATKINLIĞI VE İŞ TATMİNİ DÜZEYLERİ ARASINDAKİ İLİŞKİLERİ; KÜLTÜRLER ARASI KARŞILAŞTIRMALI BİR ARAŞTIRMA","Dönüş","Belek","Antalya","Karayolu","50.00 TL",{"$f":"IFERROR(VALUE(SUBSTITUTE(ArraySep(H55,\" \",1),\".\",\",\")),0)","v":50},{"$f":"IF(I55>0,ArraySep(H55,\" \",2),\"\")","v":"TL"},50]
["376","Gürkan KALKAN","YİYECEK İÇECEK DEPARTMANINDA ÇALIŞANLARIN BEŞ FAKTÖR KİŞİLİK ÖZELLİKLERİNİN HİZMET VERMEYE YATKINLIĞI VE İŞ TATMİNİ DÜZEYLERİ ARASINDAKİ İLİŞKİLERİ; KÜLTÜRLER ARASI KARŞILAŞTIRMALI BİR ARAŞTIRMA","Gidiş","Isparta","Belek","Karayolu","50.00 TL",{"$f":"IFERROR(VALUE(SUBSTITUTE(ArraySep(H56,\" \",1),\".\",\",\")),0)","v":50},{"$f":"IF(I56>0,ArraySep(H56,\" \",2),\"\")","v":"TL"},50]
["376","Gürkan KALKAN","YİYECEK İÇECEK DEPARTMANINDA ÇALIŞANLARIN BEŞ FAKTÖR KİŞİLİK ÖZELLİKLERİNİN HİZMET VERMEYE YATKINLIĞI VE İŞ TATMİNİ DÜZEYLERİ ARASINDAKİ İLİŞKİLERİ; KÜLTÜRLER ARASI KARŞILAŞTIRMALI BİR ARAŞTIRMA","Dönüş","Belek","Isparta","Karayolu","50.00 TL",{"$f":"IFERROR(VALUE(SUBSTITUTE(ArraySep(H57,\" \",1),\".\",\",\")),0)","v":50},{"$f":"IF(I57>0,ArraySep(H57,\" \",2),\"\")","v":"TL"},50]
["376","Gürkan KALKAN","YİYECEK İÇECEK DEPARTMANINDA ÇALIŞANLARIN BEŞ FAKTÖR KİŞİLİK ÖZELLİKLERİNİN HİZMET VERMEYE YATKINLIĞI VE İŞ TATMİNİ DÜZEYLERİ ARASINDAKİ İLİŞKİLERİ; KÜLTÜRLER ARASI KARŞILAŞTIRMALI BİR ARAŞTIRMA","Gidiş","Isparta","Belek","Karayolu","50.00 TL",{"$f":"IFERROR(VALUE(SUBSTITUTE(ArraySep(H58,\" \",1),\".\",\",\")),0)","v":50},{"$f":"IF(I58>0,ArraySep(H58,\" \",2),\"\")","v":"TL"},50]
["376","Gürkan KALKAN","YİYECEK İÇECEK DEPARTMANINDA ÇALIŞANLARIN BEŞ FAKTÖR KİŞİLİK ÖZELLİKLERİNİN HİZMET VERMEYE YATKINLIĞI VE İŞ TATMİNİ DÜZEYLERİ ARASINDAKİ İLİŞKİLERİ; KÜLTÜRLER ARASI KARŞILAŞTIRMALI BİR ARAŞTIRMA","Dönüş","Belek","Antalya","Karayolu","50.00 TL",{"$f":"IFERROR(VALUE(SUBSTITUTE(ArraySep(H59,\" \",1),\".\",\",\")),0)","v":50},{"$f":"IF(I59>0,ArraySep(H59,\" \",2),\"\")","v":"TL"},50]
["376","Gürkan KALKAN","YİYECEK İÇECEK DEPARTMANINDA ÇALIŞANLARIN BEŞ FAKTÖR KİŞİLİK ÖZELLİKLERİNİN HİZMET VERMEYE YATKINLIĞI VE İŞ TATMİNİ DÜZEYLERİ ARASINDAKİ İLİŞKİLERİ; KÜLTÜRLER ARASI KARŞILAŞTIRMALI BİR ARAŞTIRMA","Gidiş","Isparta","Belek","Karayolu","50.00 TL",{"$f":"IFERROR(VALUE(SUBSTITUTE(ArraySep(H60,\" \",1),\".\",\",\")),0)","v":50},{"$f":"IF(I60>0,ArraySep(H60,\" \",2),\"\")","v":"TL"},50]
["376","Gürkan KALKAN","YİYECEK İÇECEK DEPARTMANINDA ÇALIŞANLARIN BEŞ FAKTÖR KİŞİLİK ÖZELLİKLERİNİN HİZMET VERMEYE YATKINLIĞI VE İŞ TATMİNİ DÜZEYLERİ ARASINDAKİ İLİŞKİLERİ; KÜLTÜRLER ARASI KARŞILAŞTIRMALI BİR ARAŞTIRMA","Dönüş","Belek","Isparta","Karayolu","50.00 TL",{"$f":"IFERROR(VALUE(SUBSTITUTE(ArraySep(H61,\" \",1),\".\",\",\")),0)","v":50},{"$f":"IF(I61>0,ArraySep(H61,\" \",2),\"\")","v":"TL"},50]
["377","Gürkan KALKAN","YİYECEK İÇECEK DEPARTMANINDA ÇALIŞANLARIN BEŞ FAKTÖR KİŞİLİK ÖZELLİKLERİNİN HİZMET VERMEYE YATKINLIĞI VE İŞ TATMİNİ DÜZEYLERİ ARASINDAKİ İLİŞKİLERİ; KÜLTÜRLER ARASI KARŞILAŞTIRMALI BİR ARAŞTIRMA","Gidiş","Isparta","Belek","Karayolu","50.00 TL",{"$f":"IFERROR(VALUE(SUBSTITUTE(ArraySep(H62,\" \",1),\".\",\",\")),0)","v":50},{"$f":"IF(I62>0,ArraySep(H62,\" \",2),\"\")","v":"TL"},50]
["377","Gürkan KALKAN","YİYECEK İÇECEK DEPARTMANINDA ÇALIŞANLARIN BEŞ FAKTÖR KİŞİLİK ÖZELLİKLERİNİN HİZMET VERMEYE YATKINLIĞI VE İŞ TATMİNİ DÜZEYLERİ ARASINDAKİ İLİŞKİLERİ; KÜLTÜRLER ARASI KARŞILAŞTIRMALI BİR ARAŞTIRMA","Dönüş","Belek","Antalya","Karayolu","50.00 TL",{"$f":"IFERROR(VALUE(SUBSTITUTE(ArraySep(H63,\" \",1),\".\",\",\")),0)","v":50},{"$f":"IF(I63>0,ArraySep(H63,\" \",2),\"\")","v":"TL"},50]
["377","Gürkan KALKAN","YİYECEK İÇECEK DEPARTMANINDA ÇALIŞANLARIN BEŞ FAKTÖR KİŞİLİK ÖZELLİKLERİNİN HİZMET VERMEYE YATKINLIĞI VE İŞ TATMİNİ DÜZEYLERİ ARASINDAKİ İLİŞKİLERİ; KÜLTÜRLER ARASI KARŞILAŞTIRMALI BİR ARAŞTIRMA","Gidiş","Isparta","Belek","Karayolu","50.00 TL",{"$f":"IFERROR(VALUE(SUBSTITUTE(ArraySep(H64,\" \",1),\".\",\",\")),0)","v":50},{"$f":"IF(I64>0,ArraySep(H64,\" \",2),\"\")","v":"TL"},50]
["377","Gürkan KALKAN","YİYECEK İÇECEK DEPARTMANINDA ÇALIŞANLARIN BEŞ FAKTÖR KİŞİLİK ÖZELLİKLERİNİN HİZMET VERMEYE YATKINLIĞI VE İŞ TATMİNİ DÜZEYLERİ ARASINDAKİ İLİŞKİLERİ; KÜLTÜRLER ARASI KARŞILAŞTIRMALI BİR ARAŞTIRMA","Dönüş","Belek","Isparta","Karayolu","50.00 TL",{"$f":"IFERROR(VALUE(SUBSTITUTE(ArraySep(H65,\" \",1),\".\",\",\")),0)","v":50},{"$f":"IF(I65>0,ArraySep(H65,\" \",2),\"\")","v":"TL"},50]
["377","Gürkan KALKAN","YİYECEK İÇECEK DEPARTMANINDA ÇALIŞANLARIN BEŞ FAKTÖR KİŞİLİK ÖZELLİKLERİNİN HİZMET VERMEYE YATKINLIĞI VE İŞ TATMİNİ DÜZEYLERİ ARASINDAKİ İLİŞKİLERİ; KÜLTÜRLER ARASI KARŞILAŞTIRMALI BİR ARAŞTIRMA","Gidiş","Isparta","Belek","Karayolu","50.00 TL",{"$f":"IFERROR(VALUE(SUBSTITUTE(ArraySep(H66,\" \",1),\".\",\",\")),0)","v":50},{"$f":"IF(I66>0,ArraySep(H66,\" \",2),\"\")","v":"TL"},50]
["377","Gürkan KALKAN","YİYECEK İÇECEK DEPARTMANINDA ÇALIŞANLARIN BEŞ FAKTÖR KİŞİLİK ÖZELLİKLERİNİN HİZMET VERMEYE YATKINLIĞI VE İŞ TATMİNİ DÜZEYLERİ ARASINDAKİ İLİŞKİLERİ; KÜLTÜRLER ARASI KARŞILAŞTIRMALI BİR ARAŞTIRMA","Dönüş","Belek","Isparta","Karayolu","50.00 TL",{"$f":"IFERROR(VALUE(SUBSTITUTE(ArraySep(H67,\" \",1),\".\",\",\")),0)","v":50},{"$f":"IF(I67>0,ArraySep(H67,\" \",2),\"\")","v":"TL"},{"$f":"I67*IF(J67=\"DOLAR\",3,IF(J67=\"EURO\",3.5,1))","v":50}]
["377","Gürkan KALKAN","YİYECEK İÇECEK DEPARTMANINDA ÇALIŞANLARIN BEŞ FAKTÖR KİŞİLİK ÖZELLİKLERİNİN HİZMET VERMEYE YATKINLIĞI VE İŞ TATMİNİ DÜZEYLERİ ARASINDAKİ İLİŞKİLERİ; KÜLTÜRLER ARASI KARŞILAŞTIRMALI BİR ARAŞTIRMA","Gidiş","Isparta","Belek","Karayolu","50.00 TL",{"$f":"IFERROR(VALUE(SUBSTITUTE(ArraySep(H68,\" \",1),\".\",\",\")),0)","v":50},{"$f":"IF(I68>0,ArraySep(H68,\" \",2),\"\")","v":"TL"},50]
["377","Gürkan KALKAN","YİYECEK İÇECEK DEPARTMANINDA ÇALIŞANLARIN BEŞ FAKTÖR KİŞİLİK ÖZELLİKLERİNİN HİZMET VERMEYE YATKINLIĞI VE İŞ TATMİNİ DÜZEYLERİ ARASINDAKİ İLİŞKİLERİ; KÜLTÜRLER ARASI KARŞILAŞTIRMALI BİR ARAŞTIRMA","Dönüş","Belek","Antalya","Karayolu","50.00 TL",{"$f":"IFERROR(VALUE(SUBSTITUTE(ArraySep(H69,\" \",1),\".\",\",\")),0)","v":50},{"$f":"IF(I69>0,ArraySep(H69,\" \",2),\"\")","v":"TL"},50]
["377","Gürkan KALKAN","YİYECEK İÇECEK DEPARTMANINDA ÇALIŞANLARIN BEŞ FAKTÖR KİŞİLİK ÖZELLİKLERİNİN HİZMET VERMEYE YATKINLIĞI VE İŞ TATMİNİ DÜZEYLERİ ARASINDAKİ İLİŞKİLERİ; KÜLTÜRLER ARASI KARŞILAŞTIRMALI BİR ARAŞTIRMA","Gidiş","Isparta","Belek","Karayolu","50.00 TL",{"$f":"IFERROR(VALUE(SUBSTITUTE(ArraySep(H70,\" \",1),\".\",\",\")),0)","v":50},{"$f":"IF(I70>0,ArraySep(H70,\" \",2),\"\")","v":"TL"},50]
["377","Gürkan KALKAN","YİYECEK İÇECEK DEPARTMANINDA ÇALIŞANLARIN BEŞ FAKTÖR KİŞİLİK ÖZELLİKLERİNİN HİZMET VERMEYE YATKINLIĞI VE İŞ TATMİNİ DÜZEYLERİ ARASINDAKİ İLİŞKİLERİ; KÜLTÜRLER ARASI KARŞILAŞTIRMALI BİR ARAŞTIRMA","Dönüş","Belek","Isparta","Karayolu","50.00 TL",{"$f":"IFERROR(VALUE(SUBSTITUTE(ArraySep(H71,\" \",1),\".\",\",\")),0)","v":50},{"$f":"IF(I71>0,ArraySep(H71,\" \",2),\"\")","v":"TL"},50]
["377","Gürkan KALKAN","YİYECEK İÇECEK DEPARTMANINDA ÇALIŞANLARIN BEŞ FAKTÖR KİŞİLİK ÖZELLİKLERİNİN HİZMET VERMEYE YATKINLIĞI VE İŞ TATMİNİ DÜZEYLERİ ARASINDAKİ İLİŞKİLERİ; KÜLTÜRLER ARASI KARŞILAŞTIRMALI BİR ARAŞTIRMA","Gidiş","Isparta","Belek","Karayolu","50.00 TL",{"$f":"IFERROR(VALUE(SUBSTITUTE(ArraySep(H72,\" \",1),\".\",\",\")),0)","v":50},{"$f":"IF(I72>0,ArraySep(H72,\" \",2),\"\")","v":"TL"},50]
["377","Gürkan KALKAN","YİYECEK İÇECEK DEPARTMANINDA ÇALIŞANLARIN BEŞ FAKTÖR KİŞİLİK ÖZELLİKLERİNİN HİZMET VERMEYE YATKINLIĞI VE İŞ TATMİNİ DÜZEYLERİ ARASINDAKİ İLİŞKİLERİ; KÜLTÜRLER ARASI KARŞILAŞTIRMALI BİR ARAŞTIRMA","Dönüş","Belek","Isparta","Karayolu","50.00 TL",{"$f":"IFERROR(VALUE(SUBSTITUTE(ArraySep(H73,\" \",1),\".\",\",\")),0)","v":50},{"$f":"IF(I73>0,ArraySep(H73,\" \",2),\"\")","v":"TL"},50]
["378","Gürkan KALKAN","YİYECEK İÇECEK DEPARTMANINDA ÇALIŞANLARIN BEŞ FAKTÖR KİŞİLİK ÖZELLİKLERİNİN HİZMET VERMEYE YATKINLIĞI VE İŞ TATMİNİ DÜZEYLERİ ARASINDAKİ İLİŞKİLERİ; KÜLTÜRLER ARASI KARŞILAŞTIRMALI BİR ARAŞTIRMA","Gidiş","Isparta","Belek","Karayolu","50.00 TL",{"$f":"IFERROR(VALUE(SUBSTITUTE(ArraySep(H74,\" \",1),\".\",\",\")),0)","v":50},{"$f":"IF(I74>0,ArraySep(H74,\" \",2),\"\")","v":"TL"},50]
["378","Gürkan KALKAN","YİYECEK İÇECEK DEPARTMANINDA ÇALIŞANLARIN BEŞ FAKTÖR KİŞİLİK ÖZELLİKLERİNİN HİZMET VERMEYE YATKINLIĞI VE İŞ TATMİNİ DÜZEYLERİ ARASINDAKİ İLİŞKİLERİ; KÜLTÜRLER ARASI KARŞILAŞTIRMALI BİR ARAŞTIRMA","Dönüş","Belek","Isparta","Karayolu","50.00 TL",{"$f":"IFERROR(VALUE(SUBSTITUTE(ArraySep(H75,\" \",1),\".\",\",\")),0)","v":50},{"$f":"IF(I75>0,ArraySep(H75,\" \",2),\"\")","v":"TL"},50]
["378","Gürkan KALKAN","YİYECEK İÇECEK DEPARTMANINDA ÇALIŞANLARIN BEŞ FAKTÖR KİŞİLİK ÖZELLİKLERİNİN HİZMET VERMEYE YATKINLIĞI VE İŞ TATMİNİ DÜZEYLERİ ARASINDAKİ İLİŞKİLERİ; KÜLTÜRLER ARASI KARŞILAŞTIRMALI BİR ARAŞTIRMA","Gidiş","Isparta","Belek","Karayolu","50.00 TL",{"$f":"IFERROR(VALUE(SUBSTITUTE(ArraySep(H76,\" \",1),\".\",\",\")),0)","v":50},{"$f":"IF(I76>0,ArraySep(H76,\" \",2),\"\")","v":"TL"},50]
["378","Gürkan KALKAN","YİYECEK İÇECEK DEPARTMANINDA ÇALIŞANLARIN BEŞ FAKTÖR KİŞİLİK ÖZELLİKLERİNİN HİZMET VERMEYE YATKINLIĞI VE İŞ TATMİNİ DÜZEYLERİ ARASINDAKİ İLİŞKİLERİ; KÜLTÜRLER ARASI KARŞILAŞTIRMALI BİR ARAŞTIRMA","Dönüş","Belek","Isparta","Karayolu","50.00 TL",{"$f":"IFERROR(VALUE(SUBSTITUTE(ArraySep(H77,\" \",1),\".\",\",\")),0)","v":50},{"$f":"IF(I77>0,ArraySep(H77,\" \",2),\"\")","v":"TL"},50]
["379","Gürkan KALKAN","YİYECEK İÇECEK DEPARTMANINDA ÇALIŞANLARIN BEŞ FAKTÖR KİŞİLİK ÖZELLİKLERİNİN HİZMET VERMEYE YATKINLIĞI VE İŞ TATMİNİ DÜZEYLERİ ARASINDAKİ İLİŞKİLERİ; KÜLTÜRLER ARASI KARŞILAŞTIRMALI BİR ARAŞTIRMA","Gidiş","Isparta","Belek","Karayolu","50.00 TL",{"$f":"IFERROR(VALUE(SUBSTITUTE(ArraySep(H78,\" \",1),\".\",\",\")),0)","v":50},{"$f":"IF(I78>0,ArraySep(H78,\" \",2),\"\")","v":"TL"},50]
["379","Gürkan KALKAN","YİYECEK İÇECEK DEPARTMANINDA ÇALIŞANLARIN BEŞ FAKTÖR KİŞİLİK ÖZELLİKLERİNİN HİZMET VERMEYE YATKINLIĞI VE İŞ TATMİNİ DÜZEYLERİ ARASINDAKİ İLİŞKİLERİ; KÜLTÜRLER ARASI KARŞILAŞTIRMALI BİR ARAŞTIRMA","Dönüş","Belek","Isparta","Karayolu","50.00 TL",{"$f":"IFERROR(VALUE(SUBSTITUTE(ArraySep(H79,\" \",1),\".\",\",\")),0)","v":50},{"$f":"IF(I79>0,ArraySep(H79,\" \",2),\"\")","v":"TL"},50]
["379","Gürkan KALKAN","YİYECEK İÇECEK DEPARTMANINDA ÇALIŞANLARIN BEŞ FAKTÖR KİŞİLİK ÖZELLİKLERİNİN HİZMET VERMEYE YATKINLIĞI VE İŞ TATMİNİ DÜZEYLERİ ARASINDAKİ İLİŞKİLERİ; KÜLTÜRLER ARASI KARŞILAŞTIRMALI BİR ARAŞTIRMA","Gidiş","Isparta","Belek","Karayolu","50.00 TL",{"$f":"IFERROR(VALUE(SUBSTITUTE(ArraySep(H80,\" \",1),\".\",\",\")),0)","v":50},{"$f":"IF(I80>0,ArraySep(H80,\" \",2),\"\")","v":"TL"},50]
["379","Gürkan KALKAN","YİYECEK İÇECEK DEPARTMANINDA ÇALIŞANLARIN BEŞ FAKTÖR KİŞİLİK ÖZELLİKLERİNİN HİZMET VERMEYE YATKINLIĞI VE İŞ TATMİNİ DÜZEYLERİ ARASINDAKİ İLİŞKİLERİ; KÜLTÜRLER ARASI KARŞILAŞTIRMALI BİR ARAŞTIRMA","Dönüş","Belek","Isparta","Karayolu","50.00 TL",{"$f":"IFERROR(VALUE(SUBSTITUTE(ArraySep(H81,\" \",1),\".\",\",\")),0)","v":50},{"$f":"IF(I81>0,ArraySep(H81,\" \",2),\"\")","v":"TL"},50]
["379","Gürkan KALKAN","YİYECEK İÇECEK DEPARTMANINDA ÇALIŞANLARIN BEŞ FAKTÖR KİŞİLİK ÖZELLİKLERİNİN HİZMET VERMEYE YATKINLIĞI VE İŞ TATMİNİ DÜZEYLERİ ARASINDAKİ İLİŞKİLERİ; KÜLTÜRLER ARASI KARŞILAŞTIRMALI BİR ARAŞTIRMA","Gidiş","Isparta","Belek","Karayolu","50.00 TL",{"$f":"IFERROR(VALUE(SUBSTITUTE(ArraySep(H82,\" \",1),\".\",\",\")),0)","v":50},{"$f":"IF(I82>0,ArraySep(H82,\" \",2),\"\")","v":"TL"},50]
["379","Gürkan KALKAN","YİYECEK İÇECEK DEPARTMANINDA ÇALIŞANLARIN BEŞ FAKTÖR KİŞİLİK ÖZELLİKLERİNİN HİZMET VERMEYE YATKINLIĞI VE İŞ TATMİNİ DÜZEYLERİ ARASINDAKİ İLİŞKİLERİ; KÜLTÜRLER ARASI KARŞILAŞTIRMALI BİR ARAŞTIRMA","Dönüş","Belek","Isparta","Karayolu","50.00 TL",{"$f":"IFERROR(VALUE(SUBSTITUTE(ArraySep(H83,\" \",1),\".\",\",\")),0)","v":50},{"$f":"IF(I83>0,ArraySep(H83,\" \",2),\"\")","v":"TL"},50]
["379","Gürkan KALKAN","YİYECEK İÇECEK DEPARTMANINDA ÇALIŞANLARIN BEŞ FAKTÖR KİŞİLİK ÖZELLİKLERİNİN HİZMET VERMEYE YATKINLIĞI VE İŞ TATMİNİ DÜZEYLERİ ARASINDAKİ İLİŞKİLERİ; KÜLTÜRLER ARASI KARŞILAŞTIRMALI BİR ARAŞTIRMA","Gidiş","Isparta","Belek","Karayolu","50.00 TL",{"$f":"IFERROR(VALUE(SUBSTITUTE(ArraySep(H84,\" \",1),\".\",\",\")),0)","v":50},{"$f":"IF(I84>0,ArraySep(H84,\" \",2),\"\")","v":"TL"},50]
["379","Gürkan KALKAN","YİYECEK İÇECEK DEPARTMANINDA ÇALIŞANLARIN BEŞ FAKTÖR KİŞİLİK ÖZELLİKLERİNİN HİZMET VERMEYE YATKINLIĞI VE İŞ TATMİNİ DÜZEYLERİ ARASINDAKİ İLİŞKİLERİ; KÜLTÜRLER ARASI KARŞILAŞTIRMALI BİR ARAŞTIRMA","Dönüş","Belek","Isparta","Karayolu","50.00 TL",{"$f":"IFERROR(VALUE(SUBSTITUTE(ArraySep(H85,\" \",1),\".\",\",\")),0)","v":50},{"$f":"IF(I85>0,ArraySep(H85,\" \",2),\"\")","v":"TL"},50]
["380","Gürkan KALKAN","YİYECEK İÇECEK DEPARTMANINDA ÇALIŞANLARIN BEŞ FAKTÖR KİŞİLİK ÖZELLİKLERİNİN HİZMET VERMEYE YATKINLIĞI VE İŞ TATMİNİ DÜZEYLERİ ARASINDAKİ İLİŞKİLERİ; KÜLTÜRLER ARASI KARŞILAŞTIRMALI BİR ARAŞTIRMA","Gidiş","Isparta","Belek","Karayolu","50.00 TL",{"$f":"IFERROR(VALUE(SUBSTITUTE(ArraySep(H86,\" \",1),\".\",\",\")),0)","v":50},{"$f":"IF(I86>0,ArraySep(H86,\" \",2),\"\")","v":"TL"},50]
["380","Gürkan KALKAN","YİYECEK İÇECEK DEPARTMANINDA ÇALIŞANLARIN BEŞ FAKTÖR KİŞİLİK ÖZELLİKLERİNİN HİZMET VERMEYE YATKINLIĞI VE İŞ TATMİNİ DÜZEYLERİ ARASINDAKİ İLİŞKİLERİ; KÜLTÜRLER ARASI KARŞILAŞTIRMALI BİR ARAŞTIRMA","Dönüş","Belek","Isparta","Karayolu","50.00 TL",{"$f":"IFERROR(VALUE(SUBSTITUTE(ArraySep(H87,\" \",1),\".\",\",\")),0)","v":50},{"$f":"IF(I87>0,ArraySep(H87,\" \",2),\"\")","v":"TL"},50]
["380","Gürkan KALKAN","YİYECEK İÇECEK DEPARTMANINDA ÇALIŞANLARIN BEŞ FAKTÖR KİŞİLİK ÖZELLİKLERİNİN HİZMET VERMEYE YATKINLIĞI VE İŞ TATMİNİ DÜZEYLERİ ARASINDAKİ İLİŞKİLERİ; KÜLTÜRLER ARASI KARŞILAŞTIRMALI BİR ARAŞTIRMA","Gidiş","Isparta","Belek","Karayolu","50.00 TL",{"$f":"IFERROR(VALUE(SUBSTITUTE(ArraySep(H88,\" \",1),\".\",\",\")),0)","v":50},{"$f":"IF(I88>0,ArraySep(H88,\" \",2),\"\")","v":"TL"},50]
["380","Gürkan KALKAN","YİYECEK İÇECEK DEPARTMANINDA ÇALIŞANLARIN BEŞ FAKTÖR KİŞİLİK ÖZELLİKLERİNİN HİZMET VERMEYE YATKINLIĞI VE İŞ TATMİNİ DÜZEYLERİ ARASINDAKİ İLİŞKİLERİ; KÜLTÜRLER ARASI KARŞILAŞTIRMALI BİR ARAŞTIRMA","Dönüş","Belek","Isparta","Karayolu","50.00 TL",{"$f":"IFERROR(VALUE(SUBSTITUTE(ArraySep(H89,\" \",1),\".\",\",\")),0)","v":50},{"$f":"IF(I89>0,ArraySep(H89,\" \",2),\"\")","v":"TL"},50]
["380","Gürkan KALKAN","YİYECEK İÇECEK DEPARTMANINDA ÇALIŞANLARIN BEŞ FAKTÖR KİŞİLİK ÖZELLİKLERİNİN HİZMET VERMEYE YATKINLIĞI VE İŞ TATMİNİ DÜZEYLERİ ARASINDAKİ İLİŞKİLERİ; KÜLTÜRLER ARASI KARŞILAŞTIRMALI BİR ARAŞTIRMA","Gidiş","Isparta","Belek","Karayolu","50.00 TL",{"$f":"IFERROR(VALUE(SUBSTITUTE(ArraySep(H90,\" \",1),\".\",\",\")),0)","v":50},{"$f":"IF(I90>0,ArraySep(H90,\" \",2),\"\")","v":"TL"},50]
["380","Gürkan KALKAN","YİYECEK İÇECEK DEPARTMANINDA ÇALIŞANLARIN BEŞ FAKTÖR KİŞİLİK ÖZELLİKLERİNİN HİZMET VERMEYE YATKINLIĞI VE İŞ TATMİNİ DÜZEYLERİ ARASINDAKİ İLİŞKİLERİ; KÜLTÜRLER ARASI KARŞILAŞTIRMALI BİR ARAŞTIRMA","Dönüş","Belek","Isparta","Karayolu","50.00 TL",{"$f":"IFERROR(VALUE(SUBSTITUTE(ArraySep(H91,\" \",1),\".\",\",\")),0)","v":50},{"$f":"IF(I91>0,ArraySep(H91,\" \",2),\"\")","v":"TL"},50]
["380","Gürkan KALKAN","YİYECEK İÇECEK DEPARTMANINDA ÇALIŞANLARIN BEŞ FAKTÖR KİŞİLİK ÖZELLİKLERİNİN HİZMET VERMEYE YATKINLIĞI VE İŞ TATMİNİ DÜZEYLERİ ARASINDAKİ İLİŞKİLERİ; KÜLTÜRLER ARASI KARŞILAŞTIRMALI BİR ARAŞTIRMA","Gidiş","Isparta","Belek","Karayolu","50.00 TL",{"$f":"IFERROR(VALUE(SUBSTITUTE(ArraySep(H92,\" \",1),\".\",\",\")),0)","v":50},{"$f":"IF(I92>0,ArraySep(H92,\" \",2),\"\")","v":"TL"},50]
["380","Gürkan KALKAN","YİYECEK İÇECEK DEPARTMANINDA ÇALIŞANLARIN BEŞ FAKTÖR KİŞİLİK ÖZELLİKLERİNİN HİZMET VERMEYE YATKINLIĞI VE İŞ TATMİNİ DÜZEYLERİ ARASINDAKİ İLİŞKİLERİ; KÜLTÜRLER ARASI KARŞILAŞTIRMALI BİR ARAŞTIRMA","Dönüş","Belek","Isparta","Karayolu","50.00 TL",{"$f":"IFERROR(VALUE(SUBSTITUTE(ArraySep(H93,\" \",1),\".\",\",\")),0)","v":50},{"$f":"IF(I93>0,ArraySep(H93,\" \",2),\"\")","v":"TL"},50]
["380","Gürkan KALKAN","YİYECEK İÇECEK DEPARTMANINDA ÇALIŞANLARIN BEŞ FAKTÖR KİŞİLİK ÖZELLİKLERİNİN HİZMET VERMEYE YATKINLIĞI VE İŞ TATMİNİ DÜZEYLERİ ARASINDAKİ İLİŞKİLERİ; KÜLTÜRLER ARASI KARŞILAŞTIRMALI BİR ARAŞTIRMA","Gidiş","Isparta","Belek","Karayolu","50.00 TL",{"$f":"IFERROR(VALUE(SUBSTITUTE(ArraySep(H94,\" \",1),\".\",\",\")),0)","v":50},{"$f":"IF(I94>0,ArraySep(H94,\" \",2),\"\")","v":"TL"},50]
["380","Gürkan KALKAN","YİYECEK İÇECEK DEPARTMANINDA ÇALIŞANLARIN BEŞ FAKTÖR KİŞİLİK ÖZELLİKLERİNİN HİZMET VERMEYE YATKINLIĞI VE İŞ TATMİNİ DÜZEYLERİ ARASINDAKİ İLİŞKİLERİ; KÜLTÜRLER ARASI KARŞILAŞTIRMALI BİR ARAŞTIRMA","Dönüş","Belek","Isparta","Karayolu","50.00 TL",{"$f":"IFERROR(VALUE(SUBSTITUTE(ArraySep(H95,\" \",1),\".\",\",\")),0)","v":50},{"$f":"IF(I95>0,ArraySep(H95,\" \",2),\"\")","v":"TL"},50]
["380","Gürkan KALKAN","YİYECEK İÇECEK DEPARTMANINDA ÇALIŞANLARIN BEŞ FAKTÖR KİŞİLİK ÖZELLİKLERİNİN HİZMET VERMEYE YATKINLIĞI VE İŞ TATMİNİ DÜZEYLERİ ARASINDAKİ İLİŞKİLERİ; KÜLTÜRLER ARASI KARŞILAŞTIRMALI BİR ARAŞTIRMA","Gidiş","Isparta","Belek","Karayolu","50.00 TL",{"$f":"IFERROR(VALUE(SUBSTITUTE(ArraySep(H96,\" \",1),\".\",\",\")),0)","v":50},{"$f":"IF(I96>0,ArraySep(H96,\" \",2),\"\")","v":"TL"},50]
["380","Gürkan KALKAN","YİYECEK İÇECEK DEPARTMANINDA ÇALIŞANLARIN BEŞ FAKTÖR KİŞİLİK ÖZELLİKLERİNİN HİZMET VERMEYE YATKINLIĞI VE İŞ TATMİNİ DÜZEYLERİ ARASINDAKİ İLİŞKİLERİ; KÜLTÜRLER ARASI KARŞILAŞTIRMALI BİR ARAŞTIRMA","Dönüş","Belek","Isparta","Karayolu","50.00 TL",{"$f":"IFERROR(VALUE(SUBSTITUTE(ArraySep(H97,\" \",1),\".\",\",\")),0)","v":50},{"$f":"IF(I97>0,ArraySep(H97,\" \",2),\"\")","v":"TL"},50]
["381","Yıldız BOLAT","Balıkçılık Araştırma Grubu Toplantısı","Gidiş","01.12.2016","02.12.2016","Karayolu","50.00 TL",{"$f":"IFERROR(VALUE(SUBSTITUTE(ArraySep(H98,\" \",1),\".\",\",\")),0)","v":50},{"$f":"IF(I98>0,ArraySep(H98,\" \",2),\"\")","v":"TL"},50]
["381","Yıldız BOLAT","Balıkçılık Araştırma Grubu Toplantısı","Dönüş","2.12.2016","3.12.2016","Karayolu","50.00 TL",{"$f":"IFERROR(VALUE(SUBSTITUTE(ArraySep(H99,\" \",1),\".\",\",\")),0)","v":50},{"$f":"IF(I99>0,ArraySep(H99,\" \",2),\"\")","v":"TL"},50]
["391","Hasan GÖKSU","The Relationship Between Personality Traits of Employees and Service Orientation and Job Satisfaction in Food and Beverage Department: A Cross Cultural Research","Gidiş","Isparta","İstanbul","Uçak","95.00 TL",{"$f":"IFERROR(VALUE(SUBSTITUTE(ArraySep(H100,\" \",1),\".\",\",\")),0)","v":95},{"$f":"IF(I100>0,ArraySep(H100,\" \",2),\"\")","v":"TL"},95]
["391","Hasan GÖKSU","The Relationship Between Personality Traits of Employees and Service Orientation and Job Satisfaction in Food and Beverage Department: A Cross Cultural Research","Gidiş","İstanbul","Bangkok","Uçak","1125.00 TL",{"$f":"IFERROR(VALUE(SUBSTITUTE(ArraySep(H101,\" \",1),\".\",\",\")),0)","v":1125},{"$f":"IF(I101>0,ArraySep(H101,\" \",2),\"\")","v":"TL"},1125]
["391","Hasan GÖKSU","The Relationship Between Personality Traits of Employees and Service Orientation and Job Satisfaction in Food and Beverage Department: A Cross Cultural Research","Dönüş","Bangkok","İstanbul","Uçak","1125.00 TL",{"$f":"IFERROR(VALUE(SUBSTITUTE(ArraySep(H102,\" \",1),\".\",\",\")),0)","v":1125},{"$f":"IF(I102>0,ArraySep(H102,\" \",2),\"\")","v":"TL"},1125]
["391","Hasan GÖKSU","The Relationship Between Personality Traits of Employees and Service Orientation and Job Satisfaction in Food and Beverage Department: A Cross Cultural Research","Dönüş","İstanbul","Antalya","Uçak","65.00 TL",{"$f":"IFERROR(VALUE(SUBSTITUTE(ArraySep(H103,\" \",1),\".\",\",\")),0)","v":65},{"$f":"IF(I103>0,ArraySep(H103,\" \",2),\"\")","v":"TL"},65]
["391","Hasan GÖKSU","The Relationship Between Personality Traits of Employees and Service Orientation and Job Satisfaction in Food and Beverage Department: A Cross Cultural Research","Dönüş","Antalya","Isparta","Karayolu","20.00 TL",{"$f":"IFERROR(VALUE(SUBSTITUTE(ArraySep(H104,\" \",1),\".\",\",\")),0)","v":20},{"$f":"IF(I104>0,ArraySep(H104,\" \",2),\"\")","v":"TL"},20]
["392","Ahmet SONGUR","6th Annual International Conference on Humanities and Social Sciences","Gidiş","Isparta","Antalya","Karayolu","25.00 TL",{"$f":"IFERROR(VALUE(SUBSTITUTE(ArraySep(H105,\" \",1),\".\",\",\")),0)","v":25},{"$f":"IF(I105>0,ArraySep(H105,\" \",2),\"\")","v":"TL"},25]
["392","Ahmet SONGUR","6th Annual International Conference on Humanities and Social Sciences","Gidiş","Antalya","Barselona","Uçak","1000.00 TL",{"$f":"IFERROR(VALUE(SUBSTITUTE(ArraySep(H106,\" \",1),\".\",\",\")),0)","v":1000},{"$f":"IF(I106>0,ArraySep(H106,\" \",2),\"\")","v":"TL"},1000]
["392","Ahmet SONGUR","6th Annual International Conference on Humanities and Social Sciences","Dönüş","Barselona","Antalya","Uçak","1000.00 TL",{"$f":"IFERROR(VALUE(SUBSTITUTE(ArraySep(H107,\" \",1),\".\",\",\")),0)","v":1000},{"$f":"IF(I107>0,ArraySep(H107,\" \",2),\"\")","v":"TL"},1000]
["392","Ahmet SONGUR","6th Annual International Conference on Humanities and Social Sciences","Dönüş","Antalya","Isparta","Karayolu","25.00 TL",{"$f":"IFERROR(VALUE(SUBSTITUTE(ArraySep(H108,\" \",1),\".\",\",\")),0)","v":25},{"$f":"IF(I108>0,ArraySep(H108,\" \",2),\"\")","v":"TL"},25]
["393","Nedret ÇAĞLAR","Mesleki görgü ve bilgi birikimimi geliştirmek ve medya faaliyetleri hakkında bilgi edinmek amacıyla, İspanya'nın Madrid ve Barcelona şehirlerini performansımdan karşılanmak üzere ziyaret etmek.","Gidiş","Isparta","İstanbul","Uçak","125.00 TL",{"$f":"IFERROR(VALUE(SUBSTITUTE(ArraySep(H109,\" \",1),\".\",\",\")),0)","v":125},{"$f":"IF(I109>0,ArraySep(H109,\" \",2),\"\")","v":"TL"},125]
["393","Nedret ÇAĞLAR","Mesleki görgü ve bilgi birikimimi geliştirmek ve medya faaliyetleri hakkında bilgi edinmek amacıyla, İspanya'nın Madrid ve Barcelona şehirlerini performansımdan karşılanmak üzere ziyaret etmek.","Gidiş","İstanbul","Madrid","Uçak","400.00 TL",{"$f":"IFERROR(VALUE(SUBSTITUTE(ArraySep(H110,\" \",1),\".\",\",\")),0)","v":400},{"$f":"IF(I110>0,ArraySep(H110,\" \",2),\"\")","v":"TL"},400]
["393","Nedret ÇAĞLAR","Mesleki görgü ve bilgi birikimimi geliştirmek ve medya faaliyetleri hakkında bilgi edinmek amacıyla, İspanya'nın Madrid ve Barcelona şehirlerini performansımdan karşılanmak üzere ziyaret etmek.","Dönüş","Barcelona","İstanbul","Uçak","400.00 TL",{"$f":"IFERROR(VALUE(SUBSTITUTE(ArraySep(H111,\" \",1),\".\",\",\")),0)","v":400},{"$f":"IF(I111>0,ArraySep(H111,\" \",2),\"\")","v":"TL"},400]
["393","Nedret ÇAĞLAR","Mesleki görgü ve bilgi birikimimi geliştirmek ve medya faaliyetleri hakkında bilgi edinmek amacıyla, İspanya'nın Madrid ve Barcelona şehirlerini performansımdan karşılanmak üzere ziyaret etmek.","Dönüş","İstanbul","Isparta","Uçak","125.00 TL",{"$f":"IFERROR(VALUE(SUBSTITUTE(ArraySep(H112,\" \",1),\".\",\",\")),0)","v":125},{"$f":"IF(I112>0,ArraySep(H112,\" \",2),\"\")","v":"TL"},125]
["393","Nedret ÇAĞLAR","Mesleki görgü ve bilgi birikimimi geliştirmek ve medya faaliyetleri hakkında bilgi edinmek amacıyla, İspanya'nın Madrid ve Barcelona şehirlerini performansımdan karşılanmak üzere ziyaret etmek.","Gidiş","Isparta","İstanbul","Uçak","125.00 TL",{"$f":"IFERROR(VALUE(SUBSTITUTE(ArraySep(H113,\" \",1),\".\",\",\")),0)","v":125},{"$f":"IF(I113>0,ArraySep(H113,\" \",2),\"\")","v":"TL"},125]
["393","Nedret ÇAĞLAR","Mesleki görgü ve bilgi birikimimi geliştirmek ve medya faaliyetleri hakkında bilgi edinmek amacıyla, İspanya'nın Madrid ve Barcelona şehirlerini performansımdan karşılanmak üzere ziyaret etmek.","Gidiş","İstanbul","Madrid","Uçak","400.00 TL",{"$f":"IFERROR(VALUE(SUBSTITUTE(ArraySep(H114,\" \",1),\".\",\",\")),0)","v":400},{"$f":"IF(I114>0,ArraySep(H114,\" \",2),\"\")","v":"TL"},400]
["393","Nedret ÇAĞLAR","Mesleki görgü ve bilgi birikimimi geliştirmek ve medya faaliyetleri hakkında bilgi edinmek amacıyla, İspanya'nın Madrid ve Barcelona şehirlerini performansımdan karşılanmak üzere ziyaret etmek.","Dönüş","Barcelona","İstanbul","Uçak","400.00 TL",{"$f":"IFERROR(VALUE(SUBSTITUTE(ArraySep(H115,\" \",1),\".\",\",\")),0)","v":400},{"$f":"IF(I115>0,ArraySep(H115,\" \",2),\"\")","v":"TL"},400]
["393","Nedret ÇAĞLAR","Mesleki görgü ve bilgi birikimimi geliştirmek ve medya faaliyetleri hakkında bilgi edinmek amacıyla, İspanya'nın Madrid ve Barcelona şehirlerini performansımdan karşılanmak üzere ziyaret etmek.","Dönüş","İstanbul","Isparta","Uçak","125.00 TL",{"$f":"IFERROR(VALUE(SUBSTITUTE(ArraySep(H116,\" \",1),\".\",\",\")),0)","v":125},{"$f":"IF(I116>0,ArraySep(H116,\" \",2),\"\")","v":"TL"},125]
["395","İbrahim DEMİRTAŞ","6th Annual International Conference on Humanities and Social Sciences","Gidiş","ısparta","Antalya","Karayolu","25.00 TL",{"$f":"IFERROR(VALUE(SUBSTITUTE(ArraySep(H117,\" \",1),\".\",\",\")),0)","v":25},{"$f":"IF(I117>0,ArraySep(H117,\" \",2),\"\")","v":"TL"},25]
["395","İbrahim DEMİRTAŞ","6th Annual International Conference on Humanities and Social Sciences","Gidiş","Antalya","Barselona","Uçak","1000.00 TL",{"$f":"IFERROR(VALUE(SUBSTITUTE(ArraySep(H118,\" \",1),\".\",\",\")),0)","v":1000},{"$f":"IF(I118>0,ArraySep(H118,\" \",2),\"\")","v":"TL"},1000]
["395","İbrahim DEMİRTAŞ","6th Annual International Conference on Humanities and Social Sciences","Dönüş","Barselona","Antalya","Uçak","1000.00 TL",{"$f":"IFERROR(VALUE(SUBSTITUTE(ArraySep(H119,\" \",1),\".\",\",\")),0)","v":1000},{"$f":"IF(I119>0,ArraySep(H119,\" \",2),\"\")","v":"TL"},1000]
["395","İbrahim DEMİRTAŞ","6th Annual International Conference on Humanities and Social Sciences","Dönüş","Antalya","Isparta","Karayolu","25.00 TL",{"$f":"IFERROR(VALUE(SUBSTITUTE(ArraySep(H120,\" \",1),\".\",\",\")),0)","v":25},{"$f":"IF(I120>0,ArraySep(H120,\" \",2),\"\")","v":"TL"},25]
["396","Deniz AKBAY","Afyon Kocatepe Üniversitesi Doğal Taş Analiz Laboratuvarı doktora tez çalışması kapsamında deney yapma","Gidiş","Ev","Isparta Otogar","Karayolu","10.00 TL",{"$f":"IFERROR(VALUE(SUBSTITUTE(ArraySep(H121,\" \",1),\".\",\",\")),0)","v":10},{"$f":"IF(I121>0,ArraySep(H121,\" \",2),\"\")","v":"TL"},10]
["396","Deniz AKBAY","Afyon Kocatepe Üniversitesi Doğal Taş Analiz Laboratuvarı doktora tez çalışması kapsamında deney yapma","Gidiş","Isparta Otogar","Afyonkarahisar Otogar","Karayolu","30.00 TL",{"$f":"IFERROR(VALUE(SUBSTITUTE(ArraySep(H122,\" \",1),\".\",\",\")),0)","v":30},{"$f":"IF(I122>0,ArraySep(H122,\" \",2),\"\")","v":"TL"},30]
["396","Deniz AKBAY","Afyon Kocatepe Üniversitesi Doğal Taş Analiz Laboratuvarı doktora tez çalışması kapsamında deney yapma","Gidiş","Afyonkarahisar Otogar","Afyon Kocatepe Üniversitesi","Karayolu","10.00 TL",{"$f":"IFERROR(VALUE(SUBSTITUTE(ArraySep(H123,\" \",1),\".\",\",\")),0)","v":10},{"$f":"IF(I123>0,ArraySep(H123,\" \",2),\"\")","v":"TL"},10]
["396","Deniz AKBAY","Afyon Kocatepe Üniversitesi Doğal Taş Analiz Laboratuvarı doktora tez çalışması kapsamında deney yapma","Dönüş","Afyon Kocatepe Üniversitesi","Afyonkarahisar Otogar","Karayolu","10.00 TL",{"$f":"IFERROR(VALUE(SUBSTITUTE(ArraySep(H124,\" \",1),\".\",\",\")),0)","v":10},{"$f":"IF(I124>0,ArraySep(H124,\" \",2),\"\")","v":"TL"},10]
["396","Deniz AKBAY","Afyon Kocatepe Üniversitesi Doğal Taş Analiz Laboratuvarı doktora tez çalışması kapsamında deney yapma","Dönüş","Afyonkarahisar Otogar","Isparta Otogar","Karayolu","30.00 TL",{"$f":"IFERROR(VALUE(SUBSTITUTE(ArraySep(H125,\" \",1),\".\",\",\")),0)","v":30},{"$f":"IF(I125>0,ArraySep(H125,\" \",2),\"\")","v":"TL"},30]
["396","Deniz AKBAY","Afyon Kocatepe Üniversitesi Doğal Taş Analiz Laboratuvarı doktora tez çalışması kapsamında deney yapma","Dönüş","Isparta Otogar","Ev","Karayolu","10.00 TL",{"$f":"IFERROR(VALUE(SUBSTITUTE(ArraySep(H126,\" \",1),\".\",\",\")),0)","v":10},{"$f":"IF(I126>0,ArraySep(H126,\" \",2),\"\")","v":"TL"},10]
["399","Deniz AKBAY","Denizli Pamukkale Üniversitesi Jeoloji Mühendisliği Laboratuvarı’nda doktora tez çalışması kapsamında deney yapmak","Gidiş","Ev","Isparta Otogar","Karayolu","10.00 TL",{"$f":"IFERROR(VALUE(SUBSTITUTE(ArraySep(H127,\" \",1),\".\",\",\")),0)","v":10},{"$f":"IF(I127>0,ArraySep(H127,\" \",2),\"\")","v":"TL"},10]
["399","Deniz AKBAY","Denizli Pamukkale Üniversitesi Jeoloji Mühendisliği Laboratuvarı’nda doktora tez çalışması kapsamında deney yapmak","Gidiş","Isparta Otogar","Denizli Otogar","Karayolu","33.00 TL",{"$f":"IFERROR(VALUE(SUBSTITUTE(ArraySep(H128,\" \",1),\".\",\",\")),0)","v":33},{"$f":"IF(I128>0,ArraySep(H128,\" \",2),\"\")","v":"TL"},33]
["399","Deniz AKBAY","Denizli Pamukkale Üniversitesi Jeoloji Mühendisliği Laboratuvarı’nda doktora tez çalışması kapsamında deney yapmak","Gidiş","Denizli Otogar","Pamukkale Üniversitesi","Karayolu","10.00 TL",{"$f":"IFERROR(VALUE(SUBSTITUTE(ArraySep(H129,\" \",1),\".\",\",\")),0)","v":10},{"$f":"IF(I129>0,ArraySep(H129,\" \",2),\"\")","v":"TL"},10]
["399","Deniz AKBAY","Denizli Pamukkale Üniversitesi Jeoloji Mühendisliği Laboratuvarı’nda doktora tez çalışması kapsamında deney yapmak","Dönüş","Pamukkale Üniversitesi","Denizli Otogar","Karayolu","10.00 TL",{"$f":"IFERROR(VALUE(SUBSTITUTE(ArraySep(H130,\" \",1),\".\",\",\")),0)","v":10},{"$f":"IF(I130>0,ArraySep(H130,\" \",2),\"\")","v":"TL"},10]
["399","Deniz AKBAY","Denizli Pamukkale Üniversitesi Jeoloji Mühendisliği Laboratuvarı’nda doktora tez çalışması kapsamında deney yapmak","Dönüş","Denizli Otogar","Isparta Otogar","Karayolu","33.00 TL",{"$f":"IFERROR(VALUE(SUBSTITUTE(ArraySep(H131,\" \",1),\".\",\",\")),0)","v":33},{"$f":"IF(I131>0,ArraySep(H131,\" \",2),\"\")","v":"TL"},{"$f":"I131*IF(J131=\"DOLAR\",3,IF(J131=\"EURO\",3.5,1))","v":33}]
["399","Deniz AKBAY","Denizli Pamukkale Üniversitesi Jeoloji Mühendisliği Laboratuvarı’nda doktora tez çalışması kapsamında deney yapmak","Dönüş","Isparta Otogar","Ev","Karayolu","10.00 TL",{"$f":"IFERROR(VALUE(SUBSTITUTE(ArraySep(H132,\" \",1),\".\",\",\")),0)","v":10},{"$f":"IF(I132>0,ArraySep(H132,\" \",2),\"\")","v":"TL"},10]
["400","Deniz AKBAY","Antalya Akdeniz Üniversitesi Jeoloji Mühendisliği Laboratuvarı’nda doktora tez çalışması kapsamında deney yapmak","Gidiş","Ev","Isparta Otogar","Karayolu","10.00 TL",{"$f":"IFERROR(VALUE(SUBSTITUTE(ArraySep(H133,\" \",1),\".\",\",\")),0)","v":10},{"$f":"IF(I133>0,ArraySep(H133,\" \",2),\"\")","v":"TL"},10]
["400","Deniz AKBAY","Antalya Akdeniz Üniversitesi Jeoloji Mühendisliği Laboratuvarı’nda doktora tez çalışması kapsamında deney yapmak","Gidiş","Isparta Otogar","Antalya Otogar","Karayolu","20.00 TL",{"$f":"IFERROR(VALUE(SUBSTITUTE(ArraySep(H134,\" \",1),\".\",\",\")),0)","v":20},{"$f":"IF(I134>0,ArraySep(H134,\" \",2),\"\")","v":"TL"},20]
["400","Deniz AKBAY","Antalya Akdeniz Üniversitesi Jeoloji Mühendisliği Laboratuvarı’nda doktora tez çalışması kapsamında deney yapmak","Gidiş","Antalya Otogar","Akdeniz Üniversitesi","Karayolu","10.00 TL",{"$f":"IFERROR(VALUE(SUBSTITUTE(ArraySep(H135,\" \",1),\".\",\",\")),0)","v":10},{"$f":"IF(I135>0,ArraySep(H135,\" \",2),\"\")","v":"TL"},10]
["400","Deniz AKBAY","Antalya Akdeniz Üniversitesi Jeoloji Mühendisliği Laboratuvarı’nda doktora tez çalışması kapsamında deney yapmak","Dönüş","Akdeniz Üniversitesi","Antalya Otogar","Karayolu","10.00 TL",{"$f":"IFERROR(VALUE(SUBSTITUTE(ArraySep(H136,\" \",1),\".\",\",\")),0)","v":10},{"$f":"IF(I136>0,ArraySep(H136,\" \",2),\"\")","v":"TL"},10]
["400","Deniz AKBAY","Antalya Akdeniz Üniversitesi Jeoloji Mühendisliği Laboratuvarı’nda doktora tez çalışması kapsamında deney yapmak","Dönüş","Antalya Otogar","Isparta Otogar","Karayolu","20.00 TL",{"$f":"IFERROR(VALUE(SUBSTITUTE(ArraySep(H137,\" \",1),\".\",\",\")),0)","v":20},{"$f":"IF(I137>0,ArraySep(H137,\" \",2),\"\")","v":"TL"},20]
["400","Deniz AKBAY","Antalya Akdeniz Üniversitesi Jeoloji Mühendisliği Laboratuvarı’nda doktora tez çalışması kapsamında deney yapmak","Dönüş","Isparta Otogar","Ev","Karayolu","10.00 TL",{"$f":"IFERROR(VALUE(SUBSTITUTE(ArraySep(H138,\" \",1),\".\",\",\")),0)","v":10},{"$f":"IF(I138>0,ArraySep(H138,\" \",2),\"\")","v":"TL"},10]
["402","İbrahim ÖZDEMİR","TÜBİTAK 1001 Projesi Arazi Çalışması","Gidiş","Isparta","Fethiye","Karayolu","125.00 TL",{"$f":"IFERROR(VALUE(SUBSTITUTE(ArraySep(H139,\" \",1),\".\",\",\")),0)","v":125},{"$f":"IF(I139>0,ArraySep(H139,\" \",2),\"\")","v":"TL"},125]
["402","İbrahim ÖZDEMİR","TÜBİTAK 1001 Projesi Arazi Çalışması","Dönüş","Fethiye","Isparta","Karayolu","125.00 TL",{"$f":"IFERROR(VALUE(SUBSTITUTE(ArraySep(H140,\" \",1),\".\",\",\")),0)","v":125},{"$f":"IF(I140>0,ArraySep(H140,\" \",2),\"\")","v":"TL"},125]
["402","İbrahim ÖZDEMİR","TÜBİTAK 1001 Projesi Arazi Çalışması","Gidiş","Isparta","Fethiye","Karayolu","125.00 TL",{"$f":"IFERROR(VALUE(SUBSTITUTE(ArraySep(H141,\" \",1),\".\",\",\")),0)","v":125},{"$f":"IF(I141>0,ArraySep(H141,\" \",2),\"\")","v":"TL"},125]
["402","İbrahim ÖZDEMİR","TÜBİTAK 1001 Projesi Arazi Çalışması","Dönüş","Fethiye","Isparta","Karayolu","125.00 TL",{"$f":"IFERROR(VALUE(SUBSTITUTE(ArraySep(H142,\" \",1),\".\",\",\")),0)","v":125},{"$f":"IF(I142>0,ArraySep(H142,\" \",2),\"\")","v":"TL"},125]
["403","İbrahim ÖZDEMİR","TÜBİTAK 1001 Projesi arazi çalışması","Gidiş","Isparta","Fethiye","Karayolu","125.00 TL",{"$f":"IFERROR(VALUE(SUBSTITUTE(ArraySep(H143,\" \",1),\".\",\",\")),0)","v":125},{"$f":"IF(I143>0,ArraySep(H143,\" \",2),\"\")","v":"TL"},125]
["403","İbrahim ÖZDEMİR","TÜBİTAK 1001 Projesi arazi çalışması","Dönüş","Fethiye","Isparta","Karayolu","125.00 TL",{"$f":"IFERROR(VALUE(SUBSTITUTE(ArraySep(H144,\" \",1),\".\",\",\")),0)","v":125},{"$f":"IF(I144>0,ArraySep(H144,\" \",2),\"\")","v":"TL"},125]
["403","İbrahim ÖZDEMİR","TÜBİTAK 1001 Projesi arazi çalışması","Gidiş","Isparta","Fethiye","Karayolu","125.00 TL",{"$f":"IFERROR(VALUE(SUBSTITUTE(ArraySep(H145,\" \",1),\".\",\",\")),0)","v":125},{"$f":"IF(I145>0,ArraySep(H145,\" \",2),\"\")","v":"TL"},125]
["403","İbrahim ÖZDEMİR","TÜBİTAK 1001 Projesi arazi çalışması","Dönüş","Fethiye","Isparta","Karayolu","125.00 TL",{"$f":"IFERROR(VALUE(SUBSTITUTE(ArraySep(H146,\" \",1),\".\",\",\")),0)","v":125},{"$f":"IF(I146>0,ArraySep(H146,\" \",2),\"\")","v":"TL"},125]
["406","Bilgehan İlker HARMAN","114Y598 nolu TÜBİTAK Proje Toplantısı","Gidiş","Isparta","Antalya","Özel Araç","35.00 TL",{"$f":"IFERROR(VALUE(SUBSTITUTE(ArraySep(H147,\" \",1),\".\",\",\")),0)","v":35},{"$f":"IF(I147>0,ArraySep(H147,\" \",2),\"\")","v":"TL"},35]
["406","Bilgehan İlker HARMAN","114Y598 nolu TÜBİTAK Proje Toplantısı","Gidiş","Antalya","Tel Aviv","Uçak","600.00 TL",{"$f":"IFERROR(VALUE(SUBSTITUTE(ArraySep(H148,\" \",1),\".\",\",\")),0)","v":600},{"$f":"IF(I148>0,ArraySep(H148,\" \",2),\"\")","v":"TL"},600]
["406","Bilgehan İlker HARMAN","114Y598 nolu TÜBİTAK Proje Toplantısı","Dönüş","Tel Aviv","Antalya","Uçak","0.00 TL",{"$f":"IFERROR(VALUE(SUBSTITUTE(ArraySep(H149,\" \",1),\".\",\",\")),0)","v":0},{"$f":"IF(I149>0,ArraySep(H149,\" \",2),\"\")","v":""},0]
["406","Bilgehan İlker HARMAN","114Y598 nolu TÜBİTAK Proje Toplantısı","Dönüş","Antalya","Isparta","Özel Araç","35.00 TL",{"$f":"IFERROR(VALUE(SUBSTITUTE(ArraySep(H150,\" \",1),\".\",\",\")),0)","v":35},{"$f":"IF(I150>0,ArraySep(H150,\" \",2),\"\")","v":"TL"},35]
["406","Bilgehan İlker HARMAN","114Y598 nolu TÜBİTAK Proje Toplantısı","Gidiş","Isparta","Antalya","Özel Araç","35.00 TL",{"$f":"IFERROR(VALUE(SUBSTITUTE(ArraySep(H151,\" \",1),\".\",\",\")),0)","v":35},{"$f":"IF(I151>0,ArraySep(H151,\" \",2),\"\")","v":"TL"},35]
["406","Bilgehan İlker HARMAN","114Y598 nolu TÜBİTAK Proje Toplantısı","Gidiş","Antalya","Tel Aviv","Uçak","600.00 TL",{"$f":"IFERROR(VALUE(SUBSTITUTE(ArraySep(H152,\" \",1),\".\",\",\")),0)","v":600},{"$f":"IF(I152>0,ArraySep(H152,\" \",2),\"\")","v":"TL"},600]
["406","Bilgehan İlker HARMAN","114Y598 nolu TÜBİTAK Proje Toplantısı","Dönüş","Tel Aviv","Antalya","Uçak","0.00 TL",{"$f":"IFERROR(VALUE(SUBSTITUTE(ArraySep(H153,\" \",1),\".\",\",\")),0)","v":0},{"$f":"IF(I153>0,ArraySep(H153,\" \",2),\"\")","v":""},0]
["406","Bilgehan İlker HARMAN","114Y598 nolu TÜBİTAK Proje Toplantısı","Dönüş","Antalya","Isparta","Özel Araç","35.00 TL",{"$f":"IFERROR(VALUE(SUBSTITUTE(ArraySep(H154,\" \",1),\".\",\",\")),0)","v":35},{"$f":"IF(I154>0,ArraySep(H154,\" \",2),\"\")","v":"TL"},35]
["407","Halil SÜEL","Biyolojik Çeşitlilik Ölçüm Süreçleri: Envanter, Veri Transfer ve Hesaplama Teknikleri Projesi","Gidiş","Isparta","Antalya","Özel Araç","0.00 TL",{"$f":"IFERROR(VALUE(SUBSTITUTE(ArraySep(H155,\" \",1),\".\",\",\")),0)","v":0},{"$f":"IF(I155>0,ArraySep(H155,\" \",2),\"\")","v":""},0]
["407","Halil SÜEL","Biyolojik Çeşitlilik Ölçüm Süreçleri: Envanter, Veri Transfer ve Hesaplama Teknikleri Projesi","Dönüş","Antalya","Isparta","Özel Araç","0.00 TL",{"$f":"IFERROR(VALUE(SUBSTITUTE(ArraySep(H156,\" \",1),\".\",\",\")),0)","v":0},{"$f":"IF(I156>0,ArraySep(H156,\" \",2),\"\")","v":""},0]
["407","Halil SÜEL","Biyolojik Çeşitlilik Ölçüm Süreçleri: Envanter, Veri Transfer ve Hesaplama Teknikleri Projesi","Gidiş","Isparta","Antalya","Özel Araç","0.00 TL",{"$f":"IFERROR(VALUE(SUBSTITUTE(ArraySep(H157,\" \",1),\".\",\",\")),0)","v":0},{"$f":"IF(I157>0,ArraySep(H157,\" \",2),\"\")","v":""},0]
["407","Halil SÜEL","Biyolojik Çeşitlilik Ölçüm Süreçleri: Envanter, Veri Transfer ve Hesaplama Teknikleri Projesi","Dönüş","Antalya","Isparta","Özel Araç","0.00 TL",{"$f":"IFERROR(VALUE(SUBSTITUTE(ArraySep(H158,\" \",1),\".\",\",\")),0)","v":0},{"$f":"IF(I158>0,ArraySep(H158,\" \",2),\"\")","v":""},0]
["408","Nevzat Özgü YİĞİT","114Y598 nolu TÜBİTAK proje Toplantısı","Gidiş","Isparta","Antalya","Özel Araç","0.00 TL",{"$f":"IFERROR(VALUE(SUBSTITUTE(ArraySep(H159,\" \",1),\".\",\",\")),0)","v":0},{"$f":"IF(I159>0,ArraySep(H159,\" \",2),\"\")","v":""},0]
["408","Nevzat Özgü YİĞİT","114Y598 nolu TÜBİTAK proje Toplantısı","Gidiş","Antalya","Tel Aviv","Uçak","300.00 TL",{"$f":"IFERROR(VALUE(SUBSTITUTE(ArraySep(H160,\" \",1),\".\",\",\")),0)","v":300},{"$f":"IF(I160>0,ArraySep(H160,\" \",2),\"\")","v":"TL"},300]
["408","Nevzat Özgü YİĞİT","114Y598 nolu TÜBİTAK proje Toplantısı","Dönüş","Tel Aviv","Antalya","Uçak","300.00 TL",{"$f":"IFERROR(VALUE(SUBSTITUTE(ArraySep(H161,\" \",1),\".\",\",\")),0)","v":300},{"$f":"IF(I161>0,ArraySep(H161,\" \",2),\"\")","v":"TL"},300]
["408","Nevzat Özgü YİĞİT","114Y598 nolu TÜBİTAK proje Toplantısı","Dönüş","Antalya","Isparta","Özel Araç","0.00 TL",{"$f":"IFERROR(VALUE(SUBSTITUTE(ArraySep(H162,\" \",1),\".\",\",\")),0)","v":0},{"$f":"IF(I162>0,ArraySep(H162,\" \",2),\"\")","v":""},0]
["408","Nevzat Özgü YİĞİT","114Y598 nolu TÜBİTAK proje Toplantısı","Gidiş","Isparta","Antalya","Özel Araç","0.00 TL",{"$f":"IFERROR(VALUE(SUBSTITUTE(ArraySep(H163,\" \",1),\".\",\",\")),0)","v":0},{"$f":"IF(I163>0,ArraySep(H163,\" \",2),\"\")","v":""},0]
["408","Nevzat Özgü YİĞİT","114Y598 nolu TÜBİTAK proje Toplantısı","Gidiş","Antalya","Tel Aviv","Uçak","300.00 TL",{"$f":"IFERROR(VALUE(SUBSTITUTE(ArraySep(H164,\" \",1),\".\",\",\")),0)","v":300},{"$f":"IF(I164>0,ArraySep(H164,\" \",2),\"\")","v":"TL"},300]
["408","Nevzat Özgü YİĞİT","114Y598 nolu TÜBİTAK proje Toplantısı","Dönüş","Tel Aviv","Antalya","Uçak","300.00 TL",{"$f":"IFERROR(VALUE(SUBSTITUTE(ArraySep(H165,\" \",1),\".\",\",\")),0)","v":300},{"$f":"IF(I165>0,ArraySep(H165,\" \",2),\"\")","v":"TL"},300]
["408","Nevzat Özgü YİĞİT","114Y598 nolu TÜBİTAK proje Toplantısı","Dönüş","Antalya","Isparta","Özel Araç","0.00 TL",{"$f":"IFERROR(VALUE(SUBSTITUTE(ArraySep(H166,\" \",1),\".\",\",\")),0)","v":0},{"$f":"IF(I166>0,ArraySep(H166,\" \",2),\"\")","v":""},0]
["409","Şehnaz Şule KAPLAN BEKAROĞLU","114Y598 nolu TÜBİTAK Proje Toplantısı","Gidiş","Isparta","Antalya","Özel Araç","0.00 TL",{"$f":"IFERROR(VALUE(SUBSTITUTE(ArraySep(H167,\" \",1),\".\",\",\")),0)","v":0},{"$f":"IF(I167>0,ArraySep(H167,\" \",2),\"\")","v":""},0]
["409","Şehnaz Şule KAPLAN BEKAROĞLU","114Y598 nolu TÜBİTAK Proje Toplantısı","Gidiş","Antalya","Tel Aviv","Uçak","300.00 TL",{"$f":"IFERROR(VALUE(SUBSTITUTE(ArraySep(H168,\" \",1),\".\",\",\")),0)","v":300},{"$f":"IF(I168>0,ArraySep(H168,\" \",2),\"\")","v":"TL"},300]
["409","Şehnaz Şule KAPLAN BEKAROĞLU","114Y598 nolu TÜBİTAK Proje Toplantısı","Dönüş","Tel Aviv","Antalya","Uçak","300.00 TL",{"$f":"IFERROR(VALUE(SUBSTITUTE(ArraySep(H169,\" \",1),\".\",\",\")),0)","v":300},{"$f":"IF(I169>0,ArraySep(H169,\" \",2),\"\")","v":"TL"},300]
["409","Şehnaz Şule KAPLAN BEKAROĞLU","114Y598 nolu TÜBİTAK Proje Toplantısı","Dönüş","Antalya","Isparta","Özel Araç","0.00 TL",{"$f":"IFERROR(VALUE(SUBSTITUTE(ArraySep(H170,\" \",1),\".\",\",\")),0)","v":0},{"$f":"IF(I170>0,ArraySep(H170,\" \",2),\"\")","v":""},0]
["409","Şehnaz Şule KAPLAN BEKAROĞLU","114Y598 nolu TÜBİTAK Proje Toplantısı","Gidiş","Isparta","Antalya","Özel Araç","0.00 TL",{"$f":"IFERROR(VALUE(SUBSTITUTE(ArraySep(H171,\" \",1),\".\",\",\")),0)","v":0},{"$f":"IF(I171>0,ArraySep(H171,\" \",2),\"\")","v":""},0]
["409","Şehnaz Şule KAPLAN BEKAROĞLU","114Y598 nolu TÜBİTAK Proje Toplantısı","Gidiş","Antalya","Tel Aviv","Uçak","300.00 TL",{"$f":"IFERROR(VALUE(SUBSTITUTE(ArraySep(H172,\" \",1),\".\",\",\")),0)","v":300},{"$f":"IF(I172>0,ArraySep(H172,\" \",2),\"\")","v":"TL"},300]
["409","Şehnaz Şule KAPLAN BEKAROĞLU","114Y598 nolu TÜBİTAK Proje Toplantısı","Dönüş","Tel Aviv","Antalya","Uçak","300.00 TL",{"$f":"IFERROR(VALUE(SUBSTITUTE(ArraySep(H173,\" \",1),\".\",\",\")),0)","v":300},{"$f":"IF(I173>0,ArraySep(H173,\" \",2),\"\")","v":"TL"},300]
["409","Şehnaz Şule KAPLAN BEKAROĞLU","114Y598 nolu TÜBİTAK Proje Toplantısı","Dönüş","Antalya","Isparta","Özel Araç","0.00 TL",{"$f":"IFERROR(VALUE(SUBSTITUTE(ArraySep(H174,\" \",1),\".\",\",\")),0)","v":0},{"$f":"IF(I174>0,ArraySep(H174,\" \",2),\"\")","v":""},0]
["410","Tuğba SARDOHAN KÖSEOĞLU","114Y598 nolu TÜBİTAK proje Toplantısı","Gidiş","Isparta","Antalya","Özel Araç","0.00 TL",{"$f":"IFERROR(VALUE(SUBSTITUTE(ArraySep(H175,\" \",1),\".\",\",\")),0)","v":0},{"$f":"IF(I175>0,ArraySep(H175,\" \",2),\"\")","v":""},0]
["410","Tuğba SARDOHAN KÖSEOĞLU","114Y598 nolu TÜBİTAK proje Toplantısı","Gidiş","Antalya","Tel Aviv","Uçak","300.00 TL",{"$f":"IFERROR(VALUE(SUBSTITUTE(ArraySep(H176,\" \",1),\".\",\",\")),0)","v":300},{"$f":"IF(I176>0,ArraySep(H176,\" \",2),\"\")","v":"TL"},300]
["410","Tuğba SARDOHAN KÖSEOĞLU","114Y598 nolu TÜBİTAK proje Toplantısı","Dönüş","Tel Aviv","Antalya","Uçak","300.00 TL",{"$f":"IFERROR(VALUE(SUBSTITUTE(ArraySep(H177,\" \",1),\".\",\",\")),0)","v":300},{"$f":"IF(I177>0,ArraySep(H177,\" \",2),\"\")","v":"TL"},300]
["410","Tuğba SARDOHAN KÖSEOĞLU","114Y598 nolu TÜBİTAK proje Toplantısı","Dönüş","Antalya","Isparta","Özel Araç","0.00 TL",{"$f":"IFERROR(VALUE(SUBSTITUTE(ArraySep(H178,\" \",1),\".\",\",\")),0)","v":0},{"$f":"IF(I178>0,ArraySep(H178,\" \",2),\"\")","v":""},0]
["410","Tuğba SARDOHAN KÖSEOĞLU","114Y598 nolu TÜBİTAK proje Toplantısı","Gidiş","Isparta","Antalya","Özel Araç","0.00 TL",{"$f":"IFERROR(VALUE(SUBSTITUTE(ArraySep(H179,\" \",1),\".\",\",\")),0)","v":0},{"$f":"IF(I179>0,ArraySep(H179,\" \",2),\"\")","v":""},0]
["410","Tuğba SARDOHAN KÖSEOĞLU","114Y598 nolu TÜBİTAK proje Toplantısı","Gidiş","Antalya","Tel Aviv","Uçak","300.00 TL",{"$f":"IFERROR(VALUE(SUBSTITUTE(ArraySep(H180,\" \",1),\".\",\",\")),0)","v":300},{"$f":"IF(I180>0,ArraySep(H180,\" \",2),\"\")","v":"TL"},300]
["410","Tuğba SARDOHAN KÖSEOĞLU","114Y598 nolu TÜBİTAK proje Toplantısı","Dönüş","Tel Aviv","Antalya","Uçak","300.00 TL",{"$f":"IFERROR(VALUE(SUBSTITUTE(ArraySep(H181,\" \",1),\".\",\",\")),0)","v":300},{"$f":"IF(I181>0,ArraySep(H181,\" \",2),\"\")","v":"TL"},300]
["410","Tuğba SARDOHAN KÖSEOĞLU","114Y598 nolu TÜBİTAK proje Toplantısı","Dönüş","Antalya","Isparta","Özel Araç","0.00 TL",{"$f":"IFERROR(VALUE(SUBSTITUTE(ArraySep(H182,\" \",1),\".\",\",\")),0)","v":0},{"$f":"IF(I182>0,ArraySep(H182,\" \",2),\"\")","v":""},0]
["411","Kürşad ÖZKAN","Biyolojik çeşitlilik ölçüm süreçleri - envanter, veri transferi ve hesaplama teknikleri","Gidiş","Isparta","Antalya","Özel Araç","0.00 TL",{"$f":"IFERROR(VALUE(SUBSTITUTE(ArraySep(H183,\" \",1),\".\",\",\")),0)","v":0},{"$f":"IF(I183>0,ArraySep(H183,\" \",2),\"\")","v":""},0]
["411","Kürşad ÖZKAN","Biyolojik çeşitlilik ölçüm süreçleri - envanter, veri transferi ve hesaplama teknikleri","Dönüş","Antalya","Isparta","Özel Araç","0.00 TL",{"$f":"IFERROR(VALUE(SUBSTITUTE(ArraySep(H184,\" \",1),\".\",\",\")),0)","v":0},{"$f":"IF(I184>0,ArraySep(H184,\" \",2),\"\")","v":""},0]
["411","Kürşad ÖZKAN","Biyolojik çeşitlilik ölçüm süreçleri - envanter, veri transferi ve hesaplama teknikleri","Gidiş","Isparta","Antalya","Özel Araç","0.00 TL",{"$f":"IFERROR(VALUE(SUBSTITUTE(ArraySep(H185,\" \",1),\".\",\",\")),0)","v":0},{"$f":"IF(I185>0,ArraySep(H185,\" \",2),\"\")","v":""},0]
["411","Kürşad ÖZKAN","Biyolojik çeşitlilik ölçüm süreçleri - envanter, veri transferi ve hesaplama teknikleri","Dönüş","Antalya","Isparta","Özel Araç","0.00 TL",{"$f":"IFERROR(VALUE(SUBSTITUTE(ArraySep(H186,\" \",1),\".\",\",\")),0)","v":0},{"$f":"IF(I186>0,ArraySep(H186,\" \",2),\"\")","v":""},0]
["412","Ali ŞENOL","Biyolojik çeşitlilik ölçüm süreçleri - envanter, veri transferi ve hesaplama teknikleri","Gidiş","Isparta","Antalya","Özel Araç","0.00 TL",{"$f":"IFERROR(VALUE(SUBSTITUTE(ArraySep(H187,\" \",1),\".\",\",\")),0)","v":0},{"$f":"IF(I187>0,ArraySep(H187,\" \",2),\"\")","v":""},0]
["412","Ali ŞENOL","Biyolojik çeşitlilik ölçüm süreçleri - envanter, veri transferi ve hesaplama teknikleri","Dönüş","Antalya","Isparta","Özel Araç","0.00 TL",{"$f":"IFERROR(VALUE(SUBSTITUTE(ArraySep(H188,\" \",1),\".\",\",\")),0)","v":0},{"$f":"IF(I188>0,ArraySep(H188,\" \",2),\"\")","v":""},0]
["412","Ali ŞENOL","Biyolojik çeşitlilik ölçüm süreçleri - envanter, veri transferi ve hesaplama teknikleri","Gidiş","Isparta","Antalya","Özel Araç","0.00 TL",{"$f":"IFERROR(VALUE(SUBSTITUTE(ArraySep(H189,\" \",1),\".\",\",\")),0)","v":0},{"$f":"IF(I189>0,ArraySep(H189,\" \",2),\"\")","v":""},0]
["412","Ali ŞENOL","Biyolojik çeşitlilik ölçüm süreçleri - envanter, veri transferi ve hesaplama teknikleri","Dönüş","Antalya","Isparta","Özel Araç","0.00 TL",{"$f":"IFERROR(VALUE(SUBSTITUTE(ArraySep(H190,\" \",1),\".\",\",\")),0)","v":0},{"$f":"IF(I190>0,ArraySep(H190,\" \",2),\"\")","v":""},0]
["413","Elçin ESENLİK","13. Uluslar Arası Dudak Damak Yarıkları Kongresi","Gidiş","ISPARTA","ANKARA","Karayolu","45.00 TL",{"$f":"IFERROR(VALUE(SUBSTITUTE(ArraySep(H191,\" \",1),\".\",\",\")),0)","v":45},{"$f":"IF(I191>0,ArraySep(H191,\" \",2),\"\")","v":"TL"},45]
["413","Elçin ESENLİK","13. Uluslar Arası Dudak Damak Yarıkları Kongresi","Gidiş","ANKARA","DOHA","Uçak","2650.00 TL",{"$f":"IFERROR(VALUE(SUBSTITUTE(ArraySep(H192,\" \",1),\".\",\",\")),0)","v":2650},{"$f":"IF(I192>0,ArraySep(H192,\" \",2),\"\")","v":"TL"},2650]
["413","Elçin ESENLİK","13. Uluslar Arası Dudak Damak Yarıkları Kongresi","Gidiş","DOHA","CHENNAI","Uçak","2650.00 TL",{"$f":"IFERROR(VALUE(SUBSTITUTE(ArraySep(H193,\" \",1),\".\",\",\")),0)","v":2650},{"$f":"IF(I193>0,ArraySep(H193,\" \",2),\"\")","v":"TL"},2650]
["413","Elçin ESENLİK","13. Uluslar Arası Dudak Damak Yarıkları Kongresi","Dönüş","CHENNAI","DOHA","Uçak","2650.00 TL",{"$f":"IFERROR(VALUE(SUBSTITUTE(ArraySep(H194,\" \",1),\".\",\",\")),0)","v":2650},{"$f":"IF(I194>0,ArraySep(H194,\" \",2),\"\")","v":"TL"},2650]
["413","Elçin ESENLİK","13. Uluslar Arası Dudak Damak Yarıkları Kongresi","Dönüş","DOHA","ANKARA","Uçak","2650.00 TL",{"$f":"IFERROR(VALUE(SUBSTITUTE(ArraySep(H195,\" \",1),\".\",\",\")),0)","v":2650},{"$f":"IF(I195>0,ArraySep(H195,\" \",2),\"\")","v":"TL"},{"$f":"I195*IF(J195=\"DOLAR\",3,IF(J195=\"EURO\",3.5,1))","v":2650}]
["413","Elçin ESENLİK","13. Uluslar Arası Dudak Damak Yarıkları Kongresi","Dönüş","ANKARA","ISPARTA","Karayolu","45.00 TL",{"$f":"IFERROR(VALUE(SUBSTITUTE(ArraySep(H196,\" \",1),\".\",\",\")),0)","v":45},{"$f":"IF(I196>0,ArraySep(H196,\" \",2),\"\")","v":"TL"},45]
["415","Mehmet Güvenç NEGİZ","Biyolojik Çeşitlilik Ölçüm Süreçleri - Envanter, Veri Transfer ve Hesaplama Teknikleri Projesi","Gidiş","Isparta","Antalya","Karayolu","0.00 TL",{"$f":"IFERROR(VALUE(SUBSTITUTE(ArraySep(H197,\" \",1),\".\",\",\")),0)","v":0},{"$f":"IF(I197>0,ArraySep(H197,\" \",2),\"\")","v":""},0]
["415","Mehmet Güvenç NEGİZ","Biyolojik Çeşitlilik Ölçüm Süreçleri - Envanter, Veri Transfer ve Hesaplama Teknikleri Projesi","Dönüş","Antalya","Isparta","Karayolu","0.00 TL",{"$f":"IFERROR(VALUE(SUBSTITUTE(ArraySep(H198,\" \",1),\".\",\",\")),0)","v":0},{"$f":"IF(I198>0,ArraySep(H198,\" \",2),\"\")","v":""},0]
["415","Mehmet Güvenç NEGİZ","Biyolojik Çeşitlilik Ölçüm Süreçleri - Envanter, Veri Transfer ve Hesaplama Teknikleri Projesi","Gidiş","Isparta","Antalya","Karayolu","0.00 TL",{"$f":"IFERROR(VALUE(SUBSTITUTE(ArraySep(H199,\" \",1),\".\",\",\")),0)","v":0},{"$f":"IF(I199>0,ArraySep(H199,\" \",2),\"\")","v":""},0]
["415","Mehmet Güvenç NEGİZ","Biyolojik Çeşitlilik Ölçüm Süreçleri - Envanter, Veri Transfer ve Hesaplama Teknikleri Projesi","Dönüş","Antalya","Isparta","Karayolu","0.00 TL",{"$f":"IFERROR(VALUE(SUBSTITUTE(ArraySep(H200,\" \",1),\".\",\",\")),0)","v":0},{"$f":"IF(I200>0,ArraySep(H200,\" \",2),\"\")","v":""},0]
["416","Serkan GÜLSOY","Biyolojik çeşitlilik ölçüm süreçleri - envanter, veri transferi ve hesaplama teknikleri","Gidiş","Isparta","Antalya","Özel Araç","0.00 TL",{"$f":"IFERROR(VALUE(SUBSTITUTE(ArraySep(H201,\" \",1),\".\",\",\")),0)","v":0},{"$f":"IF(I201>0,ArraySep(H201,\" \",2),\"\")","v":""},0]
["416","Serkan GÜLSOY","Biyolojik çeşitlilik ölçüm süreçleri - envanter, veri transferi ve hesaplama teknikleri","Dönüş","Antalya","Isparta","Özel Araç","0.00 TL",{"$f":"IFERROR(VALUE(SUBSTITUTE(ArraySep(H202,\" \",1),\".\",\",\")),0)","v":0},{"$f":"IF(I202>0,ArraySep(H202,\" \",2),\"\")","v":""},0]
["416","Serkan GÜLSOY","Biyolojik çeşitlilik ölçüm süreçleri - envanter, veri transferi ve hesaplama teknikleri","Gidiş","Isparta","Antalya","Özel Araç","0.00 TL",{"$f":"IFERROR(VALUE(SUBSTITUTE(ArraySep(H203,\" \",1),\".\",\",\")),0)","v":0},{"$f":"IF(I203>0,ArraySep(H203,\" \",2),\"\")","v":""},0]
["416","Serkan GÜLSOY","Biyolojik çeşitlilik ölçüm süreçleri - envanter, veri transferi ve hesaplama teknikleri","Dönüş","Antalya","Isparta","Özel Araç","0.00 TL",{"$f":"IFERROR(VALUE(SUBSTITUTE(ArraySep(H204,\" \",1),\".\",\",\")),0)","v":0},{"$f":"IF(I204>0,ArraySep(H204,\" \",2),\"\")","v":""},0]
["417","Ramazan ÖZÇELİK","Bucak Yöresi Doğal Sedir (Cedrus libani A. Rich.) ve Toros Göknarı (Abies cilicica Car.) Karışık Meşcereleri İçin Ticari Hacim Denklemlerinin Geliştirilmesi","Gidiş","Isparta","Bucak","Karayolu","15.00 TL",{"$f":"IFERROR(VALUE(SUBSTITUTE(ArraySep(H205,\" \",1),\".\",\",\")),0)","v":15},{"$f":"IF(I205>0,ArraySep(H205,\" \",2),\"\")","v":"TL"},15]
["417","Ramazan ÖZÇELİK","Bucak Yöresi Doğal Sedir (Cedrus libani A. Rich.) ve Toros Göknarı (Abies cilicica Car.) Karışık Meşcereleri İçin Ticari Hacim Denklemlerinin Geliştirilmesi","Dönüş","Bucak","Isparta","Karayolu","15.00 TL",{"$f":"IFERROR(VALUE(SUBSTITUTE(ArraySep(H206,\" \",1),\".\",\",\")),0)","v":15},{"$f":"IF(I206>0,ArraySep(H206,\" \",2),\"\")","v":"TL"},15]
["417","Ramazan ÖZÇELİK","Bucak Yöresi Doğal Sedir (Cedrus libani A. Rich.) ve Toros Göknarı (Abies cilicica Car.) Karışık Meşcereleri İçin Ticari Hacim Denklemlerinin Geliştirilmesi","Gidiş","Isparta","Bucak","Karayolu","15.00 TL",{"$f":"IFERROR(VALUE(SUBSTITUTE(ArraySep(H207,\" \",1),\".\",\",\")),0)","v":15},{"$f":"IF(I207>0,ArraySep(H207,\" \",2),\"\")","v":"TL"},15]
["417","Ramazan ÖZÇELİK","Bucak Yöresi Doğal Sedir (Cedrus libani A. Rich.) ve Toros Göknarı (Abies cilicica Car.) Karışık Meşcereleri İçin Ticari Hacim Denklemlerinin Geliştirilmesi","Dönüş","Bucak","Isparta","Karayolu","15.00 TL",{"$f":"IFERROR(VALUE(SUBSTITUTE(ArraySep(H208,\" \",1),\".\",\",\")),0)","v":15},{"$f":"IF(I208>0,ArraySep(H208,\" \",2),\"\")","v":"TL"},15]
["418","Bayram ÇEVİK","COST FA1405 Annual Meeting , \"Systems biology approaches to identify mechanisms underlying crop-arthropod-microbe interactions\"  semposyumu  and \"Hands-on Systems Biology Training School\"","Gidiş","Isparta","Antalya","Karayolu","60.00 TL",{"$f":"IFERROR(VALUE(SUBSTITUTE(ArraySep(H209,\" \",1),\".\",\",\")),0)","v":60},{"$f":"IF(I209>0,ArraySep(H209,\" \",2),\"\")","v":"TL"},60]
["418","Bayram ÇEVİK","COST FA1405 Annual Meeting , \"Systems biology approaches to identify mechanisms underlying crop-arthropod-microbe interactions\"  semposyumu  and \"Hands-on Systems Biology Training School\"","Gidiş","Antalya","Ljubljana","Uçak","1200.00 TL",{"$f":"IFERROR(VALUE(SUBSTITUTE(ArraySep(H210,\" \",1),\".\",\",\")),0)","v":1200},{"$f":"IF(I210>0,ArraySep(H210,\" \",2),\"\")","v":"TL"},1200]
["418","Bayram ÇEVİK","COST FA1405 Annual Meeting , \"Systems biology approaches to identify mechanisms underlying crop-arthropod-microbe interactions\"  semposyumu  and \"Hands-on Systems Biology Training School\"","Dönüş","Ljubljana","Antalya","Uçak","0.00 TL",{"$f":"IFERROR(VALUE(SUBSTITUTE(ArraySep(H211,\" \",1),\".\",\",\")),0)","v":0},{"$f":"IF(I211>0,ArraySep(H211,\" \",2),\"\")","v":""},0]
["418","Bayram ÇEVİK","COST FA1405 Annual Meeting , \"Systems biology approaches to identify mechanisms underlying crop-arthropod-microbe interactions\"  semposyumu  and \"Hands-on Systems Biology Training School\"","Dönüş","Antalya","Isparta","Karayolu","60.00 TL",{"$f":"IFERROR(VALUE(SUBSTITUTE(ArraySep(H212,\" \",1),\".\",\",\")),0)","v":60},{"$f":"IF(I212>0,ArraySep(H212,\" \",2),\"\")","v":"TL"},60]
["418","Bayram ÇEVİK","COST FA1405 Annual Meeting , \"Systems biology approaches to identify mechanisms underlying crop-arthropod-microbe interactions\"  semposyumu  and \"Hands-on Systems Biology Training School\"","Gidiş","Isparta","Antalya","Karayolu","60.00 TL",{"$f":"IFERROR(VALUE(SUBSTITUTE(ArraySep(H213,\" \",1),\".\",\",\")),0)","v":60},{"$f":"IF(I213>0,ArraySep(H213,\" \",2),\"\")","v":"TL"},60]
["418","Bayram ÇEVİK","COST FA1405 Annual Meeting , \"Systems biology approaches to identify mechanisms underlying crop-arthropod-microbe interactions\"  semposyumu  and \"Hands-on Systems Biology Training School\"","Gidiş","Antalya","Ljubljana","Uçak","1200.00 TL",{"$f":"IFERROR(VALUE(SUBSTITUTE(ArraySep(H214,\" \",1),\".\",\",\")),0)","v":1200},{"$f":"IF(I214>0,ArraySep(H214,\" \",2),\"\")","v":"TL"},1200]
["418","Bayram ÇEVİK","COST FA1405 Annual Meeting , \"Systems biology approaches to identify mechanisms underlying crop-arthropod-microbe interactions\"  semposyumu  and \"Hands-on Systems Biology Training School\"","Dönüş","Ljubljana","Antalya","Uçak","0.00 TL",{"$f":"IFERROR(VALUE(SUBSTITUTE(ArraySep(H215,\" \",1),\".\",\",\")),0)","v":0},{"$f":"IF(I215>0,ArraySep(H215,\" \",2),\"\")","v":""},0]
["418","Bayram ÇEVİK","COST FA1405 Annual Meeting , \"Systems biology approaches to identify mechanisms underlying crop-arthropod-microbe interactions\"  semposyumu  and \"Hands-on Systems Biology Training School\"","Dönüş","Antalya","Isparta","Karayolu","60.00 TL",{"$f":"IFERROR(VALUE(SUBSTITUTE(ArraySep(H216,\" \",1),\".\",\",\")),0)","v":60},{"$f":"IF(I216>0,ArraySep(H216,\" \",2),\"\")","v":"TL"},60]
["419","Mahmut DEMİR","Utrecht International Tourism & Recreation Fair","Gidiş","Isparta","Utrecht","Uçak","1600.00 TL",{"$f":"IFERROR(VALUE(SUBSTITUTE(ArraySep(H217,\" \",1),\".\",\",\")),0)","v":1600},{"$f":"IF(I217>0,ArraySep(H217,\" \",2),\"\")","v":"TL"},1600]
["419","Mahmut DEMİR","Utrecht International Tourism & Recreation Fair","Dönüş","Utrecht","Isparta","Uçak","0.00 TL",{"$f":"IFERROR(VALUE(SUBSTITUTE(ArraySep(H218,\" \",1),\".\",\",\")),0)","v":0},{"$f":"IF(I218>0,ArraySep(H218,\" \",2),\"\")","v":""},0]
["419","Mahmut DEMİR","Utrecht International Tourism & Recreation Fair","Gidiş","Isparta","Utrecht","Uçak","1600.00 TL",{"$f":"IFERROR(VALUE(SUBSTITUTE(ArraySep(H219,\" \",1),\".\",\",\")),0)","v":1600},{"$f":"IF(I219>0,ArraySep(H219,\" \",2),\"\")","v":"TL"},1600]
["419","Mahmut DEMİR","Utrecht International Tourism & Recreation Fair","Dönüş","Utrecht","Isparta","Uçak","0.00 TL",{"$f":"IFERROR(VALUE(SUBSTITUTE(ArraySep(H220,\" \",1),\".\",\",\")),0)","v":0},{"$f":"IF(I220>0,ArraySep(H220,\" \",2),\"\")","v":""},0]
["424","Murat Yusuf UÇAN","TIM-InoSuıt-Inovasyon Odaklı Mentörlük Projesi(üniversite-sanayi işbirliği ) 3 aylık deneyim paylaşım toplantısının 1. toplantısı","Gidiş","ısparta-antalya","istanbul","Uçak","200.00 TL",{"$f":"IFERROR(VALUE(SUBSTITUTE(ArraySep(H221,\" \",1),\".\",\",\")),0)","v":200},{"$f":"IF(I221>0,ArraySep(H221,\" \",2),\"\")","v":"TL"},200]
["424","Murat Yusuf UÇAN","TIM-InoSuıt-Inovasyon Odaklı Mentörlük Projesi(üniversite-sanayi işbirliği ) 3 aylık deneyim paylaşım toplantısının 1. toplantısı","Dönüş","istanbul","antalya-ısparta","Uçak","200.00 TL",{"$f":"IFERROR(VALUE(SUBSTITUTE(ArraySep(H222,\" \",1),\".\",\",\")),0)","v":200},{"$f":"IF(I222>0,ArraySep(H222,\" \",2),\"\")","v":"TL"},200]
["425","Muhammet Hamdi MÜCEVHER","6th Annual Conference on Humanities and Social Sciences","Gidiş","Isparta","Antalya","Karayolu","25.00 TL",{"$f":"IFERROR(VALUE(SUBSTITUTE(ArraySep(H223,\" \",1),\".\",\",\")),0)","v":25},{"$f":"IF(I223>0,ArraySep(H223,\" \",2),\"\")","v":"TL"},25]
["425","Muhammet Hamdi MÜCEVHER","6th Annual Conference on Humanities and Social Sciences","Dönüş","Antalya","Isparta","Karayolu","25.00 TL",{"$f":"IFERROR(VALUE(SUBSTITUTE(ArraySep(H224,\" \",1),\".\",\",\")),0)","v":25},{"$f":"IF(I224>0,ArraySep(H224,\" \",2),\"\")","v":"TL"},25]
["425","Muhammet Hamdi MÜCEVHER","6th Annual Conference on Humanities and Social Sciences","Gidiş","Antalya","Barselona","Uçak","1000.00 TL",{"$f":"IFERROR(VALUE(SUBSTITUTE(ArraySep(H225,\" \",1),\".\",\",\")),0)","v":1000},{"$f":"IF(I225>0,ArraySep(H225,\" \",2),\"\")","v":"TL"},1000]
["425","Muhammet Hamdi MÜCEVHER","6th Annual Conference on Humanities and Social Sciences","Dönüş","Barselona","Antalya","Uçak","1000.00 TL",{"$f":"IFERROR(VALUE(SUBSTITUTE(ArraySep(H226,\" \",1),\".\",\",\")),0)","v":1000},{"$f":"IF(I226>0,ArraySep(H226,\" \",2),\"\")","v":"TL"},1000]
["426","Erdal EKE","6th Annual Conference on Humanities and Social Sciences","Gidiş","Isparta","Antalya","Karayolu","25.00 TL",{"$f":"IFERROR(VALUE(SUBSTITUTE(ArraySep(H227,\" \",1),\".\",\",\")),0)","v":25},{"$f":"IF(I227>0,ArraySep(H227,\" \",2),\"\")","v":"TL"},25]
["426","Erdal EKE","6th Annual Conference on Humanities and Social Sciences","Gidiş","Antalya","Barselona","Uçak","1000.00 TL",{"$f":"IFERROR(VALUE(SUBSTITUTE(ArraySep(H228,\" \",1),\".\",\",\")),0)","v":1000},{"$f":"IF(I228>0,ArraySep(H228,\" \",2),\"\")","v":"TL"},1000]
["426","Erdal EKE","6th Annual Conference on Humanities and Social Sciences","Dönüş","Barselona","Antalya","Uçak","1000.00 TL",{"$f":"IFERROR(VALUE(SUBSTITUTE(ArraySep(H229,\" \",1),\".\",\",\")),0)","v":1000},{"$f":"IF(I229>0,ArraySep(H229,\" \",2),\"\")","v":"TL"},1000]
["426","Erdal EKE","6th Annual Conference on Humanities and Social Sciences","Dönüş","Antalya","Isparta","Karayolu","25.00 TL",{"$f":"IFERROR(VALUE(SUBSTITUTE(ArraySep(H230,\" \",1),\".\",\",\")),0)","v":25},{"$f":"IF(I230>0,ArraySep(H230,\" \",2),\"\")","v":"TL"},25]
["427","Bülent DEDE","7. Kozmetik Kimyası Üretimi ve Standardizasyonu Kongresi","Gidiş","Isparta","Antalya","Özel Araç","0.00 TL",{"$f":"IFERROR(VALUE(SUBSTITUTE(ArraySep(H231,\" \",1),\".\",\",\")),0)","v":0},{"$f":"IF(I231>0,ArraySep(H231,\" \",2),\"\")","v":""},0]
["427","Bülent DEDE","7. Kozmetik Kimyası Üretimi ve Standardizasyonu Kongresi","Dönüş","Antalya","Isparta","Özel Araç","0.00 TL",{"$f":"IFERROR(VALUE(SUBSTITUTE(ArraySep(H232,\" \",1),\".\",\",\")),0)","v":0},{"$f":"IF(I232>0,ArraySep(H232,\" \",2),\"\")","v":""},0]
["427","Bülent DEDE","7. Kozmetik Kimyası Üretimi ve Standardizasyonu Kongresi","Gidiş","Isparta","Antalya","Özel Araç","0.00 TL",{"$f":"IFERROR(VALUE(SUBSTITUTE(ArraySep(H233,\" \",1),\".\",\",\")),0)","v":0},{"$f":"IF(I233>0,ArraySep(H233,\" \",2),\"\")","v":""},0]
["427","Bülent DEDE","7. Kozmetik Kimyası Üretimi ve Standardizasyonu Kongresi","Dönüş","Antalya","Isparta","Özel Araç","0.00 TL",{"$f":"IFERROR(VALUE(SUBSTITUTE(ArraySep(H234,\" \",1),\".\",\",\")),0)","v":0},{"$f":"IF(I234>0,ArraySep(H234,\" \",2),\"\")","v":""},0]
["428","Şirvan ŞEN DEMİR","21. Doğu Akdeniz Uluslararası Turizm ve Seyahat Fuarı","Gidiş","Isparta","İstanbul","Özel Araç","0.00 TL",{"$f":"IFERROR(VALUE(SUBSTITUTE(ArraySep(H235,\" \",1),\".\",\",\")),0)","v":0},{"$f":"IF(I235>0,ArraySep(H235,\" \",2),\"\")","v":""},0]
["428","Şirvan ŞEN DEMİR","21. Doğu Akdeniz Uluslararası Turizm ve Seyahat Fuarı","Dönüş","İstanbul","Isparta","Özel Araç","0.00 TL",{"$f":"IFERROR(VALUE(SUBSTITUTE(ArraySep(H236,\" \",1),\".\",\",\")),0)","v":0},{"$f":"IF(I236>0,ArraySep(H236,\" \",2),\"\")","v":""},0]
["429","Mahmut DEMİR","21. Doğu Akdeniz Uluslararası Turizm ve Seyahat Fuarı","Gidiş","Isparta","İstanbul","Özel Araç","0.00 TL",{"$f":"IFERROR(VALUE(SUBSTITUTE(ArraySep(H237,\" \",1),\".\",\",\")),0)","v":0},{"$f":"IF(I237>0,ArraySep(H237,\" \",2),\"\")","v":""},0]
["429","Mahmut DEMİR","21. Doğu Akdeniz Uluslararası Turizm ve Seyahat Fuarı","Dönüş","İstanbul","Isparta","Özel Araç","0.00 TL",{"$f":"IFERROR(VALUE(SUBSTITUTE(ArraySep(H238,\" \",1),\".\",\",\")),0)","v":0},{"$f":"IF(I238>0,ArraySep(H238,\" \",2),\"\")","v":""},0]
["430","Özgür DAVRAS","Sosyal Bilimlerde Bilimsel Makale Yazma Eğitimi","Gidiş","Isparta","Antalya","Karayolu","20.00 TL",{"$f":"IFERROR(VALUE(SUBSTITUTE(ArraySep(H239,\" \",1),\".\",\",\")),0)","v":20},{"$f":"IF(I239>0,ArraySep(H239,\" \",2),\"\")","v":"TL"},20]
["430","Özgür DAVRAS","Sosyal Bilimlerde Bilimsel Makale Yazma Eğitimi","Dönüş","Antalya","Isparta","Karayolu","20.00 TL",{"$f":"IFERROR(VALUE(SUBSTITUTE(ArraySep(H240,\" \",1),\".\",\",\")),0)","v":20},{"$f":"IF(I240>0,ArraySep(H240,\" \",2),\"\")","v":"TL"},20]
["430","Özgür DAVRAS","Sosyal Bilimlerde Bilimsel Makale Yazma Eğitimi","Gidiş","Isparta","Antalya","Karayolu","20.00 TL",{"$f":"IFERROR(VALUE(SUBSTITUTE(ArraySep(H241,\" \",1),\".\",\",\")),0)","v":20},{"$f":"IF(I241>0,ArraySep(H241,\" \",2),\"\")","v":"TL"},20]
["430","Özgür DAVRAS","Sosyal Bilimlerde Bilimsel Makale Yazma Eğitimi","Dönüş","Antalya","Isparta","Karayolu","20.00 TL",{"$f":"IFERROR(VALUE(SUBSTITUTE(ArraySep(H242,\" \",1),\".\",\",\")),0)","v":20},{"$f":"IF(I242>0,ArraySep(H242,\" \",2),\"\")","v":"TL"},20]
["431","Ceylan YOL","The WEI International Academic Conference on Education and Humanities in Barcelona","Gidiş","ısparta","istanbul","Uçak","95.00 TL",{"$f":"IFERROR(VALUE(SUBSTITUTE(ArraySep(H243,\" \",1),\".\",\",\")),0)","v":95},{"$f":"IF(I243>0,ArraySep(H243,\" \",2),\"\")","v":"TL"},95]
["431","Ceylan YOL","The WEI International Academic Conference on Education and Humanities in Barcelona","Dönüş","istanbul","ısparta","Uçak","95.00 TL",{"$f":"IFERROR(VALUE(SUBSTITUTE(ArraySep(H244,\" \",1),\".\",\",\")),0)","v":95},{"$f":"IF(I244>0,ArraySep(H244,\" \",2),\"\")","v":"TL"},95]
["431","Ceylan YOL","The WEI International Academic Conference on Education and Humanities in Barcelona","Gidiş","istanbul","barcelona","Uçak","528.00 TL",{"$f":"IFERROR(VALUE(SUBSTITUTE(ArraySep(H245,\" \",1),\".\",\",\")),0)","v":528},{"$f":"IF(I245>0,ArraySep(H245,\" \",2),\"\")","v":"TL"},528]
["431","Ceylan YOL","The WEI International Academic Conference on Education and Humanities in Barcelona","Dönüş","barcelona","istanbul","Uçak","558.00 TL",{"$f":"IFERROR(VALUE(SUBSTITUTE(ArraySep(H246,\" \",1),\".\",\",\")),0)","v":558},{"$f":"IF(I246>0,ArraySep(H246,\" \",2),\"\")","v":"TL"},558]
["432","Osman ÇÖLLÜ","6th Annual Conference on Humanities and Social Sciences","Gidiş","Isparta","Antalya","Karayolu","25.00 TL",{"$f":"IFERROR(VALUE(SUBSTITUTE(ArraySep(H247,\" \",1),\".\",\",\")),0)","v":25},{"$f":"IF(I247>0,ArraySep(H247,\" \",2),\"\")","v":"TL"},25]
["432","Osman ÇÖLLÜ","6th Annual Conference on Humanities and Social Sciences","Gidiş","Antalya","Barselona","Uçak","1000.00 TL",{"$f":"IFERROR(VALUE(SUBSTITUTE(ArraySep(H248,\" \",1),\".\",\",\")),0)","v":1000},{"$f":"IF(I248>0,ArraySep(H248,\" \",2),\"\")","v":"TL"},1000]
["432","Osman ÇÖLLÜ","6th Annual Conference on Humanities and Social Sciences","Dönüş","Barselona","Antalya","Uçak","1000.00 TL",{"$f":"IFERROR(VALUE(SUBSTITUTE(ArraySep(H249,\" \",1),\".\",\",\")),0)","v":1000},{"$f":"IF(I249>0,ArraySep(H249,\" \",2),\"\")","v":"TL"},1000]
["432","Osman ÇÖLLÜ","6th Annual Conference on Humanities and Social Sciences","Dönüş","Antalya","Isparta","Karayolu","25.00 TL",{"$f":"IFERROR(VALUE(SUBSTITUTE(ArraySep(H250,\" \",1),\".\",\",\")),0)","v":25},{"$f":"IF(I250>0,ArraySep(H250,\" \",2),\"\")","v":"TL"},25]
["433","Zeynep Gazali DEMİRTAŞ","6th Annual Conference on Humanities and Social Sciences","Gidiş","Isparta","Antalya","Karayolu","25.00 TL",{"$f":"IFERROR(VALUE(SUBSTITUTE(ArraySep(H251,\" \",1),\".\",\",\")),0)","v":25},{"$f":"IF(I251>0,ArraySep(H251,\" \",2),\"\")","v":"TL"},25]
["433","Zeynep Gazali DEMİRTAŞ","6th Annual Conference on Humanities and Social Sciences","Gidiş","Antalya","Barselona","Uçak","1000.00 TL",{"$f":"IFERROR(VALUE(SUBSTITUTE(ArraySep(H252,\" \",1),\".\",\",\")),0)","v":1000},{"$f":"IF(I252>0,ArraySep(H252,\" \",2),\"\")","v":"TL"},1000]
["433","Zeynep Gazali DEMİRTAŞ","6th Annual Conference on Humanities and Social Sciences","Dönüş","Barselona","Antalya","Uçak","1000.00 TL",{"$f":"IFERROR(VALUE(SUBSTITUTE(ArraySep(H253,\" \",1),\".\",\",\")),0)","v":1000},{"$f":"IF(I253>0,ArraySep(H253,\" \",2),\"\")","v":"TL"},1000]
["433","Zeynep Gazali DEMİRTAŞ","6th Annual Conference on Humanities and Social Sciences","Dönüş","Antalya","Isparta","Karayolu","25.00 TL",{"$f":"IFERROR(VALUE(SUBSTITUTE(ArraySep(H254,\" \",1),\".\",\",\")),0)","v":25},{"$f":"IF(I254>0,ArraySep(H254,\" \",2),\"\")","v":"TL"},25]
["434","Ahmet TOLUNAY","Mesleki Örgütlenmesini Yapmış Meslek Mensuplarının Örgütsel Kazançları","Dönüş","İstanbul","Isparta","Karayolu","100.00 TL",{"$f":"IFERROR(VALUE(SUBSTITUTE(ArraySep(H255,\" \",1),\".\",\",\")),0)","v":100},{"$f":"IF(I255>0,ArraySep(H255,\" \",2),\"\")","v":"TL"},100]
["434","Ahmet TOLUNAY","Mesleki Örgütlenmesini Yapmış Meslek Mensuplarının Örgütsel Kazançları","Gidiş","Isparta","İstanbul","Karayolu","100.00 TL",{"$f":"IFERROR(VALUE(SUBSTITUTE(ArraySep(H256,\" \",1),\".\",\",\")),0)","v":100},{"$f":"IF(I256>0,ArraySep(H256,\" \",2),\"\")","v":"TL"},100]
["434","Ahmet TOLUNAY","Mesleki Örgütlenmesini Yapmış Meslek Mensuplarının Örgütsel Kazançları","Dönüş","İstanbul","Isparta","Karayolu","100.00 TL",{"$f":"IFERROR(VALUE(SUBSTITUTE(ArraySep(H257,\" \",1),\".\",\",\")),0)","v":100},{"$f":"IF(I257>0,ArraySep(H257,\" \",2),\"\")","v":"TL"},100]
["434","Ahmet TOLUNAY","Mesleki Örgütlenmesini Yapmış Meslek Mensuplarının Örgütsel Kazançları","Gidiş","Isparta","İstanbul","Karayolu","100.00 TL",{"$f":"IFERROR(VALUE(SUBSTITUTE(ArraySep(H258,\" \",1),\".\",\",\")),0)","v":100},{"$f":"IF(I258>0,ArraySep(H258,\" \",2),\"\")","v":"TL"},100]
["435","Ahmet TOLUNAY","Mesleki Örgütlenmesini Tamamlamış Meslek Mensuplarının Örgütsel Kazançları","Gidiş","Isparta","Ankara","Karayolu","75.00 TL",{"$f":"IFERROR(VALUE(SUBSTITUTE(ArraySep(H259,\" \",1),\".\",\",\")),0)","v":75},{"$f":"IF(I259>0,ArraySep(H259,\" \",2),\"\")","v":"TL"},{"$f":"I259*IF(J259=\"DOLAR\",3,IF(J259=\"EURO\",3.5,1))","v":75}]
["435","Ahmet TOLUNAY","Mesleki Örgütlenmesini Tamamlamış Meslek Mensuplarının Örgütsel Kazançları","Dönüş","Ankara","Isparta","Karayolu","75.00 TL",{"$f":"IFERROR(VALUE(SUBSTITUTE(ArraySep(H260,\" \",1),\".\",\",\")),0)","v":75},{"$f":"IF(I260>0,ArraySep(H260,\" \",2),\"\")","v":"TL"},75]
["435","Ahmet TOLUNAY","Mesleki Örgütlenmesini Tamamlamış Meslek Mensuplarının Örgütsel Kazançları","Gidiş","Isparta","Ankara","Karayolu","75.00 TL",{"$f":"IFERROR(VALUE(SUBSTITUTE(ArraySep(H261,\" \",1),\".\",\",\")),0)","v":75},{"$f":"IF(I261>0,ArraySep(H261,\" \",2),\"\")","v":"TL"},75]
["435","Ahmet TOLUNAY","Mesleki Örgütlenmesini Tamamlamış Meslek Mensuplarının Örgütsel Kazançları","Dönüş","Ankara","Isparta","Karayolu","75.00 TL",{"$f":"IFERROR(VALUE(SUBSTITUTE(ArraySep(H262,\" \",1),\".\",\",\")),0)","v":75},{"$f":"IF(I262>0,ArraySep(H262,\" \",2),\"\")","v":"TL"},75]
["436","Ahmet TOLUNAY","Mesleki Örgütlenmesini Tamamlamış Meslek Mensuplarının Örgütsel Kazançları","Gidiş","Isparta","İzmir","Karayolu","100.00 TL",{"$f":"IFERROR(VALUE(SUBSTITUTE(ArraySep(H263,\" \",1),\".\",\",\")),0)","v":100},{"$f":"IF(I263>0,ArraySep(H263,\" \",2),\"\")","v":"TL"},100]
["436","Ahmet TOLUNAY","Mesleki Örgütlenmesini Tamamlamış Meslek Mensuplarının Örgütsel Kazançları","Dönüş","İzmir","Isparta","Karayolu","100.00 TL",{"$f":"IFERROR(VALUE(SUBSTITUTE(ArraySep(H264,\" \",1),\".\",\",\")),0)","v":100},{"$f":"IF(I264>0,ArraySep(H264,\" \",2),\"\")","v":"TL"},100]
["436","Ahmet TOLUNAY","Mesleki Örgütlenmesini Tamamlamış Meslek Mensuplarının Örgütsel Kazançları","Gidiş","Isparta","İzmir","Karayolu","100.00 TL",{"$f":"IFERROR(VALUE(SUBSTITUTE(ArraySep(H265,\" \",1),\".\",\",\")),0)","v":100},{"$f":"IF(I265>0,ArraySep(H265,\" \",2),\"\")","v":"TL"},100]
["436","Ahmet TOLUNAY","Mesleki Örgütlenmesini Tamamlamış Meslek Mensuplarının Örgütsel Kazançları","Dönüş","İzmir","Isparta","Karayolu","100.00 TL",{"$f":"IFERROR(VALUE(SUBSTITUTE(ArraySep(H266,\" \",1),\".\",\",\")),0)","v":100},{"$f":"IF(I266>0,ArraySep(H266,\" \",2),\"\")","v":"TL"},100]
["437","Ahmet TOLUNAY","Mesleki Örgütlenmesini Tamamlamış Meslek Mensuplarının Örgütsel Kazançları","Gidiş","Isparta","İzmir","Karayolu","100.00 TL",{"$f":"IFERROR(VALUE(SUBSTITUTE(ArraySep(H267,\" \",1),\".\",\",\")),0)","v":100},{"$f":"IF(I267>0,ArraySep(H267,\" \",2),\"\")","v":"TL"},100]
["437","Ahmet TOLUNAY","Mesleki Örgütlenmesini Tamamlamış Meslek Mensuplarının Örgütsel Kazançları","Dönüş","İzmir","Isparta","Karayolu","100.00 TL",{"$f":"IFERROR(VALUE(SUBSTITUTE(ArraySep(H268,\" \",1),\".\",\",\")),0)","v":100},{"$f":"IF(I268>0,ArraySep(H268,\" \",2),\"\")","v":"TL"},100]
["437","Ahmet TOLUNAY","Mesleki Örgütlenmesini Tamamlamış Meslek Mensuplarının Örgütsel Kazançları","Gidiş","Isparta","İzmir","Karayolu","100.00 TL",{"$f":"IFERROR(VALUE(SUBSTITUTE(ArraySep(H269,\" \",1),\".\",\",\")),0)","v":100},{"$f":"IF(I269>0,ArraySep(H269,\" \",2),\"\")","v":"TL"},100]
["437","Ahmet TOLUNAY","Mesleki Örgütlenmesini Tamamlamış Meslek Mensuplarının Örgütsel Kazançları","Dönüş","İzmir","Isparta","Karayolu","100.00 TL",{"$f":"IFERROR(VALUE(SUBSTITUTE(ArraySep(H270,\" \",1),\".\",\",\")),0)","v":100},{"$f":"IF(I270>0,ArraySep(H270,\" \",2),\"\")","v":"TL"},100]
["438","Ahmet TOLUNAY","Mesleki Örgütlenmesini Tamamlamış Meslek Mensuplarının Örgütsel Kazançları","Gidiş","Isparta","İstanbul","Karayolu","100.00 TL",{"$f":"IFERROR(VALUE(SUBSTITUTE(ArraySep(H271,\" \",1),\".\",\",\")),0)","v":100},{"$f":"IF(I271>0,ArraySep(H271,\" \",2),\"\")","v":"TL"},100]
["438","Ahmet TOLUNAY","Mesleki Örgütlenmesini Tamamlamış Meslek Mensuplarının Örgütsel Kazançları","Dönüş","İstanbul","Isparta","Karayolu","100.00 TL",{"$f":"IFERROR(VALUE(SUBSTITUTE(ArraySep(H272,\" \",1),\".\",\",\")),0)","v":100},{"$f":"IF(I272>0,ArraySep(H272,\" \",2),\"\")","v":"TL"},100]
["438","Ahmet TOLUNAY","Mesleki Örgütlenmesini Tamamlamış Meslek Mensuplarının Örgütsel Kazançları","Gidiş","Isparta","İstanbul","Karayolu","100.00 TL",{"$f":"IFERROR(VALUE(SUBSTITUTE(ArraySep(H273,\" \",1),\".\",\",\")),0)","v":100},{"$f":"IF(I273>0,ArraySep(H273,\" \",2),\"\")","v":"TL"},100]
["438","Ahmet TOLUNAY","Mesleki Örgütlenmesini Tamamlamış Meslek Mensuplarının Örgütsel Kazançları","Dönüş","İstanbul","Isparta","Karayolu","100.00 TL",{"$f":"IFERROR(VALUE(SUBSTITUTE(ArraySep(H274,\" \",1),\".\",\",\")),0)","v":100},{"$f":"IF(I274>0,ArraySep(H274,\" \",2),\"\")","v":"TL"},100]
["439","Elif AKKAŞ","6th Annual Conference on Humanities and Social Sciences","Dönüş","Barcelona","Isparta","Uçak","800.00 TL",{"$f":"IFERROR(VALUE(SUBSTITUTE(ArraySep(H275,\" \",1),\".\",\",\")),0)","v":800},{"$f":"IF(I275>0,ArraySep(H275,\" \",2),\"\")","v":"TL"},800]
["439","Elif AKKAŞ","6th Annual Conference on Humanities and Social Sciences","Gidiş","Isparta","Barcelona","Uçak","800.00 TL",{"$f":"IFERROR(VALUE(SUBSTITUTE(ArraySep(H276,\" \",1),\".\",\",\")),0)","v":800},{"$f":"IF(I276>0,ArraySep(H276,\" \",2),\"\")","v":"TL"},800]
["440","Ahmet ALKAN","6th Annual Conference on Humanities and Social Sciences","Gidiş","Isparta","Barcelona","Uçak","800.00 TL",{"$f":"IFERROR(VALUE(SUBSTITUTE(ArraySep(H277,\" \",1),\".\",\",\")),0)","v":800},{"$f":"IF(I277>0,ArraySep(H277,\" \",2),\"\")","v":"TL"},800]
["440","Ahmet ALKAN","6th Annual Conference on Humanities and Social Sciences","Dönüş","Barcelona","Isparta","Uçak","800.00 TL",{"$f":"IFERROR(VALUE(SUBSTITUTE(ArraySep(H278,\" \",1),\".\",\",\")),0)","v":800},{"$f":"IF(I278>0,ArraySep(H278,\" \",2),\"\")","v":"TL"},800]
["441","Ramazan ERDEM","6th Annual Conference on Humanities and Social Sciences","Gidiş","Isparta","Barcelona","Uçak","800.00 TL",{"$f":"IFERROR(VALUE(SUBSTITUTE(ArraySep(H279,\" \",1),\".\",\",\")),0)","v":800},{"$f":"IF(I279>0,ArraySep(H279,\" \",2),\"\")","v":"TL"},800]
["441","Ramazan ERDEM","6th Annual Conference on Humanities and Social Sciences","Dönüş","Barcelona","Isparta","Uçak","800.00 TL",{"$f":"IFERROR(VALUE(SUBSTITUTE(ArraySep(H280,\" \",1),\".\",\",\")),0)","v":800},{"$f":"IF(I280>0,ArraySep(H280,\" \",2),\"\")","v":"TL"},800]
["442","Devrim VURAL YILMAZ","INTCESS 2017- 4th INTERNATIONAL CONFERENCE ON EDUCATION, AND SOCIAL SCIENCES","Gidiş","ısparta","antalya","Karayolu","20.00 TL",{"$f":"IFERROR(VALUE(SUBSTITUTE(ArraySep(H281,\" \",1),\".\",\",\")),0)","v":20},{"$f":"IF(I281>0,ArraySep(H281,\" \",2),\"\")","v":"TL"},20]
["442","Devrim VURAL YILMAZ","INTCESS 2017- 4th INTERNATIONAL CONFERENCE ON EDUCATION, AND SOCIAL SCIENCES","Gidiş","antalya","istanbul","Uçak","200.00 TL",{"$f":"IFERROR(VALUE(SUBSTITUTE(ArraySep(H282,\" \",1),\".\",\",\")),0)","v":200},{"$f":"IF(I282>0,ArraySep(H282,\" \",2),\"\")","v":"TL"},200]
["442","Devrim VURAL YILMAZ","INTCESS 2017- 4th INTERNATIONAL CONFERENCE ON EDUCATION, AND SOCIAL SCIENCES","Dönüş","istanbul","antalya","Uçak","200.00 TL",{"$f":"IFERROR(VALUE(SUBSTITUTE(ArraySep(H283,\" \",1),\".\",\",\")),0)","v":200},{"$f":"IF(I283>0,ArraySep(H283,\" \",2),\"\")","v":"TL"},200]
["442","Devrim VURAL YILMAZ","INTCESS 2017- 4th INTERNATIONAL CONFERENCE ON EDUCATION, AND SOCIAL SCIENCES","Dönüş","antalya","ısparta","Karayolu","20.00 TL",{"$f":"IFERROR(VALUE(SUBSTITUTE(ArraySep(H284,\" \",1),\".\",\",\")),0)","v":20},{"$f":"IF(I284>0,ArraySep(H284,\" \",2),\"\")","v":"TL"},20]
["443","HÜSEYİN KÖKER","İKİNCİ ULUSLARARASI AKDENİZ DÜNYASINDA PARA TARİHİ VE NUMİSMATİK KONGRESİ","Gidiş","Isparta","Antalya","Karayolu","20.00 TL",{"$f":"IFERROR(VALUE(SUBSTITUTE(ArraySep(H285,\" \",1),\".\",\",\")),0)","v":20},{"$f":"IF(I285>0,ArraySep(H285,\" \",2),\"\")","v":"TL"},20]
["443","HÜSEYİN KÖKER","İKİNCİ ULUSLARARASI AKDENİZ DÜNYASINDA PARA TARİHİ VE NUMİSMATİK KONGRESİ","Dönüş","Antalya","Isparta","Karayolu","20.00 TL",{"$f":"IFERROR(VALUE(SUBSTITUTE(ArraySep(H286,\" \",1),\".\",\",\")),0)","v":20},{"$f":"IF(I286>0,ArraySep(H286,\" \",2),\"\")","v":"TL"},20]
["445","Mehmet Ali KOYUNCU","10 th International Frutic Symposium Quality and Safety of Fresh Horticultural commodities","Gidiş","Antalya","Berlin","Uçak","446.00 TL",{"$f":"IFERROR(VALUE(SUBSTITUTE(ArraySep(H287,\" \",1),\".\",\",\")),0)","v":446},{"$f":"IF(I287>0,ArraySep(H287,\" \",2),\"\")","v":"TL"},446]
["445","Mehmet Ali KOYUNCU","10 th International Frutic Symposium Quality and Safety of Fresh Horticultural commodities","Dönüş","berlin","antalya","Uçak","504.00 TL",{"$f":"IFERROR(VALUE(SUBSTITUTE(ArraySep(H288,\" \",1),\".\",\",\")),0)","v":504},{"$f":"IF(I288>0,ArraySep(H288,\" \",2),\"\")","v":"TL"},504]
["446","Mehmet Ali KOYUNCU","10 th International Frutic Symposium Quality and Safety of Fresh Horticultural Commodities","Gidiş","Antalya","Berlin","Uçak","446.00 TL",{"$f":"IFERROR(VALUE(SUBSTITUTE(ArraySep(H289,\" \",1),\".\",\",\")),0)","v":446},{"$f":"IF(I289>0,ArraySep(H289,\" \",2),\"\")","v":"TL"},446]
["446","Mehmet Ali KOYUNCU","10 th International Frutic Symposium Quality and Safety of Fresh Horticultural Commodities","Dönüş","berlin","antalya","Uçak","504.00 TL",{"$f":"IFERROR(VALUE(SUBSTITUTE(ArraySep(H290,\" \",1),\".\",\",\")),0)","v":504},{"$f":"IF(I290>0,ArraySep(H290,\" \",2),\"\")","v":"TL"},504]
["450","DİLRUBA İZGÜDEN","6th Annual Conference on Humanities and Social Sciences","Gidiş","ısparta","antalya","Karayolu","20.00 TL",{"$f":"IFERROR(VALUE(SUBSTITUTE(ArraySep(H291,\" \",1),\".\",\",\")),0)","v":20},{"$f":"IF(I291>0,ArraySep(H291,\" \",2),\"\")","v":"TL"},20]
["450","DİLRUBA İZGÜDEN","6th Annual Conference on Humanities and Social Sciences","Gidiş","antalya","barselona","Uçak","445.00 TL",{"$f":"IFERROR(VALUE(SUBSTITUTE(ArraySep(H292,\" \",1),\".\",\",\")),0)","v":445},{"$f":"IF(I292>0,ArraySep(H292,\" \",2),\"\")","v":"TL"},445]
["450","DİLRUBA İZGÜDEN","6th Annual Conference on Humanities and Social Sciences","Dönüş","barselona","antalya","Uçak","445.00 TL",{"$f":"IFERROR(VALUE(SUBSTITUTE(ArraySep(H293,\" \",1),\".\",\",\")),0)","v":445},{"$f":"IF(I293>0,ArraySep(H293,\" \",2),\"\")","v":"TL"},445]
["450","DİLRUBA İZGÜDEN","6th Annual Conference on Humanities and Social Sciences","Dönüş","antalya","ısparta","Karayolu","20.00 TL",{"$f":"IFERROR(VALUE(SUBSTITUTE(ArraySep(H294,\" \",1),\".\",\",\")),0)","v":20},{"$f":"IF(I294>0,ArraySep(H294,\" \",2),\"\")","v":"TL"},20]
["452","Nurdan ORAL KARA","6th Annual Conference on Humanities and Social Sciences (AGP 2017)","Gidiş","ankara","barcelona","Uçak","500.00 TL",{"$f":"IFERROR(VALUE(SUBSTITUTE(ArraySep(H295,\" \",1),\".\",\",\")),0)","v":500},{"$f":"IF(I295>0,ArraySep(H295,\" \",2),\"\")","v":"TL"},500]
["452","Nurdan ORAL KARA","6th Annual Conference on Humanities and Social Sciences (AGP 2017)","Dönüş","barcelona","ankara","Uçak","500.00 TL",{"$f":"IFERROR(VALUE(SUBSTITUTE(ArraySep(H296,\" \",1),\".\",\",\")),0)","v":500},{"$f":"IF(I296>0,ArraySep(H296,\" \",2),\"\")","v":"TL"},500]
["452","Nurdan ORAL KARA","6th Annual Conference on Humanities and Social Sciences (AGP 2017)","Dönüş","ankara","burdur","Karayolu","70.00 TL",{"$f":"IFERROR(VALUE(SUBSTITUTE(ArraySep(H297,\" \",1),\".\",\",\")),0)","v":70},{"$f":"IF(I297>0,ArraySep(H297,\" \",2),\"\")","v":"TL"},70]
["452","Nurdan ORAL KARA","6th Annual Conference on Humanities and Social Sciences (AGP 2017)","Gidiş","burdur","ankara","Karayolu","70.00 TL",{"$f":"IFERROR(VALUE(SUBSTITUTE(ArraySep(H298,\" \",1),\".\",\",\")),0)","v":70},{"$f":"IF(I298>0,ArraySep(H298,\" \",2),\"\")","v":"TL"},70]
["454","Aslı VERGİLİ","6th Annual Conference on Humanities and Social Sciences (AGP 2017)","Gidiş","istanbul","Barcelona","Uçak","410.00 TL",{"$f":"IFERROR(VALUE(SUBSTITUTE(ArraySep(H299,\" \",1),\".\",\",\")),0)","v":410},{"$f":"IF(I299>0,ArraySep(H299,\" \",2),\"\")","v":"TL"},410]
["454","Aslı VERGİLİ","6th Annual Conference on Humanities and Social Sciences (AGP 2017)","Gidiş","antalya","istanbul","Uçak","100.00 TL",{"$f":"IFERROR(VALUE(SUBSTITUTE(ArraySep(H300,\" \",1),\".\",\",\")),0)","v":100},{"$f":"IF(I300>0,ArraySep(H300,\" \",2),\"\")","v":"TL"},100]
["454","Aslı VERGİLİ","6th Annual Conference on Humanities and Social Sciences (AGP 2017)","Dönüş","barcelona","istanbul","Uçak","410.00 TL",{"$f":"IFERROR(VALUE(SUBSTITUTE(ArraySep(H301,\" \",1),\".\",\",\")),0)","v":410},{"$f":"IF(I301>0,ArraySep(H301,\" \",2),\"\")","v":"TL"},410]
["454","Aslı VERGİLİ","6th Annual Conference on Humanities and Social Sciences (AGP 2017)","Dönüş","istanbul","antalya","Uçak","100.00 TL",{"$f":"IFERROR(VALUE(SUBSTITUTE(ArraySep(H302,\" \",1),\".\",\",\")),0)","v":100},{"$f":"IF(I302>0,ArraySep(H302,\" \",2),\"\")","v":"TL"},100]
["458","KEVSER SEZER KORUCU","6th Annual Conference on Humanities and Social Sciences","Gidiş","İSTANBUL","BARCELONA","Uçak","405.00 TL",{"$f":"IFERROR(VALUE(SUBSTITUTE(ArraySep(H303,\" \",1),\".\",\",\")),0)","v":405},{"$f":"IF(I303>0,ArraySep(H303,\" \",2),\"\")","v":"TL"},405]
["458","KEVSER SEZER KORUCU","6th Annual Conference on Humanities and Social Sciences","Dönüş","BARCELONA","İSTANBUL","Uçak","405.00 TL",{"$f":"IFERROR(VALUE(SUBSTITUTE(ArraySep(H304,\" \",1),\".\",\",\")),0)","v":405},{"$f":"IF(I304>0,ArraySep(H304,\" \",2),\"\")","v":"TL"},405]
["458","KEVSER SEZER KORUCU","6th Annual Conference on Humanities and Social Sciences","Gidiş","ISPARTA","İSTANBUL","Karayolu","70.00 TL",{"$f":"IFERROR(VALUE(SUBSTITUTE(ArraySep(H305,\" \",1),\".\",\",\")),0)","v":70},{"$f":"IF(I305>0,ArraySep(H305,\" \",2),\"\")","v":"TL"},70]
["458","KEVSER SEZER KORUCU","6th Annual Conference on Humanities and Social Sciences","Dönüş","İSTANBUL","ISPARTA","Karayolu","70.00 TL",{"$f":"IFERROR(VALUE(SUBSTITUTE(ArraySep(H306,\" \",1),\".\",\",\")),0)","v":70},{"$f":"IF(I306>0,ArraySep(H306,\" \",2),\"\")","v":"TL"},70]
["460","MERVE UYSAL","Annual International Conference on Humanities and Social Sciences","Gidiş","antalya","istanbul","Uçak","100.00 TL",{"$f":"IFERROR(VALUE(SUBSTITUTE(ArraySep(H307,\" \",1),\".\",\",\")),0)","v":100},{"$f":"IF(I307>0,ArraySep(H307,\" \",2),\"\")","v":"TL"},100]
["460","MERVE UYSAL","Annual International Conference on Humanities and Social Sciences","Gidiş","istanbul","barcelona","Uçak","410.00 TL",{"$f":"IFERROR(VALUE(SUBSTITUTE(ArraySep(H308,\" \",1),\".\",\",\")),0)","v":410},{"$f":"IF(I308>0,ArraySep(H308,\" \",2),\"\")","v":"TL"},410]
["460","MERVE UYSAL","Annual International Conference on Humanities and Social Sciences","Dönüş","barcelona","istanbul","Uçak","410.00 TL",{"$f":"IFERROR(VALUE(SUBSTITUTE(ArraySep(H309,\" \",1),\".\",\",\")),0)","v":410},{"$f":"IF(I309>0,ArraySep(H309,\" \",2),\"\")","v":"TL"},410]
["460","MERVE UYSAL","Annual International Conference on Humanities and Social Sciences","Dönüş","istanbul","antalya","Uçak","100.00 TL",{"$f":"IFERROR(VALUE(SUBSTITUTE(ArraySep(H310,\" \",1),\".\",\",\")),0)","v":100},{"$f":"IF(I310>0,ArraySep(H310,\" \",2),\"\")","v":"TL"},100]
["463","Abuzer SARP","Tez Araştırması","Gidiş","Isparta","Cidde","Uçak","2000.00 TL",{"$f":"IFERROR(VALUE(SUBSTITUTE(ArraySep(H311,\" \",1),\".\",\",\")),0)","v":2000},{"$f":"IF(I311>0,ArraySep(H311,\" \",2),\"\")","v":"TL"},2000]
["463","Abuzer SARP","Tez Araştırması","Dönüş","cidde","ısparta","Uçak","2000.00 TL",{"$f":"IFERROR(VALUE(SUBSTITUTE(ArraySep(H312,\" \",1),\".\",\",\")),0)","v":2000},{"$f":"IF(I312>0,ArraySep(H312,\" \",2),\"\")","v":"TL"},2000]

{"sheet":"Yurtdisi","index":4,"n_rows":34,"n_cols":11,"rows_kept":34,"cut":false,"hidden":false,"merged":[]}
[]
[]
[]
[null,1,1,1,null,1,1,1,null,1,1]
["Amerika Birleşik Devletleri",{"$f":"F5*$J5*$K5","v":526.5},{"$f":"G5*$J5*$K5","v":495},418.5,null,117,110,93,"DOLAR",1.5,3]
["Azerbaycan",{"$f":"F6*$J6*$K6","v":450},427.5,360,null,100,95,80,"DOLAR",1.5,3]
["Bosna-Hersek",450,427.5,360,null,100,95,80,"DOLAR",1.5,3]
["Bulgaristan",425.25,399,341.25,null,81,76,65,"EURO",1.5,3.5]
["Çek Cumhuriyeti",425.25,399,341.25,null,81,76,65,"EURO",1.5,3.5]
["Fransa",535.5,504,425.25,null,102,96,81,"EURO",1.5,3.5]
["Almanya",{"$f":"F11*$J11*$K11","v":535.5},{"$f":"G11*$J11*$K11","v":504},{"$f":"H11*$J11*$K11","v":425.25},null,102,96,81,"EURO",1.5,3.5]
["Hollanda",525,493.5,420,null,100,94,80,"EURO",1.5,3.5]
["Isviçre",841.65,795.15,664.95,null,181,171,143,"FRANK",1.5,3.1]
["Japonya",893.2392000000001,839.20440000000008,706.58159999999998,null,20118,18901,15914,"YEN",1.5,2.9600000000000001E-2]
["Kıbrıs",104.98,87.47,70.010000000000005,null,104.98,87.47,70.010000000000005,"TL",1,1]
["Macaristan",425.25,399,341.25,null,81,76,65,"EURO",1.5,3.5]
["Hindistan",450,427.5,360,null,100,95,80,"DOLAR",1.5,3]
["Vietnam",{"$f":"F18*$J18*$K18","v":450},{"$f":"G18*$J18*$K18","v":427.5},{"$f":"H18*$J18*$K18","v":360},null,100,95,80,"DOLAR",1.5,3]
["Filistin",{"$f":"F19*$J19*$K19","v":450},{"$f":"G19*$J19*$K19","v":427.5},{"$f":"H19*$J19*$K19","v":360},null,100,95,80,"DOLAR",1.5,3]
["Suudi Arabistan",{"$f":"F20*$J20*$K20","v":450},{"$f":"G20*$J20*$K20","v":427.5},{"$f":"H20*$J20*$K20","v":360},null,100,95,80,"DOLAR",1.5,3]
["Polonya",425.25,399,341.25,null,81,76,65,"EURO",1.5,3.5]
["Slovenya",425.25,399,341.25,null,81,76,65,"EURO",1.5,3.5]
["Portekiz",519.75,488.25,409.5,null,99,93,78,"EURO",1.5,3.5]
["Romanya",425.25,399,341.25,null,81,76,65,"EURO",1.5,3.5]
["Sırbistan ve Karadağ",425.25,399,341.25,null,81,76,65,"EURO",1.5,3.5]
["Sri Lanka",450,427.5,360,null,100,95,80,"DOLAR",1.5,3]
["Ukrayna",450,427.5,360,null,100,95,80,"DOLAR",1.5,3]
["İspanya",{"$f":"F28*$J28*$K28","v":530.25},498.75,420,null,101,95,80,"EURO",1.5,3.5]
["Isveç",466.22924999999998,440.41724999999997,369.43424999999996,null,867,819,687,"İSVEÇ KRONU",1.5,0.35849999999999999]
["Birleşik Arap Emirlikleri",450,427.5,360,null,100,95,80,"DOLAR",1.5,3]
["Malezya",450,427.5,360,null,100,95,80,"DOLAR",1.5,3]
["Makedonya",450,427.5,360,null,100,95,80,"DOLAR",1.5,3]
["Tayland",450,427.5,360,null,100,95,80,"DOLAR",1.5,3]
["Yunanistan",530.25,498.75,420,null,101,95,80,"EURO",1.5,3.5]